Ref No,Fund Type,Dept,Cost Centre Description    ,Description    ,Creditor Name    ,GL Code Net Amount,Payment date        
2,Revenue,CAHD,Central - Commissioned Services,Permanent Residential,1 St Georges House,13333.52, 20-Sep-2022
3,Revenue,CAHD,Central - Commissioned Services,Fees & Charges Income - General,1 St Georges House,-438.80, 20-Sep-2022
4,Revenue,CAHD,CSC -Woodleaze/HSF,Independent Living,1625 Independent People,5773.79, 29-Sep-2022
5,Revenue,CAHD,CSC - LAC Housing Support Grants,Grants to Voluntary Bodies,1625 Independent People,3343.00, 26-Sep-2022
6,Revenue,CAHD,Supporting People Programme,Grants to Voluntary Bodies,1625 Independent People,15629.08, 01-Sep-2022
7,Revenue,CAHD,Supporting People Programme,Grants to Voluntary Bodies,1625 Independent People,15622.00, 01-Sep-2022
8,Revenue,CAHD,Supporting People Programme,Grants to Voluntary Bodies,1625 Independent People,15622.00, 30-Sep-2022
9,Revenue,CAHD,Supporting People Programme,Grants to Voluntary Bodies,1625 Independent People,15629.08, 30-Sep-2022
10,Revenue,CAHD,CSC - Asylum Seekers - Unaccompanied,Independent Living,16Pluscare Support Solutions,18883.34, 06-Sep-2022
11,Revenue,CAHD,CSC - Care Leavers Independent Living,Independent Living,16Pluscare Support Solutions,13225.34, 12-Sep-2022
12,Revenue,CAHD,South - Commissioned Services,Permanent Residential,2Nd Floor Building,5630.76, 20-Sep-2022
13,Revenue,CAHD,South - Commissioned Services,Fees & Charges Income - General,2Nd Floor Building,-438.80, 20-Sep-2022
14,Revenue,CAHD,North - Community based support,Permanent Residential,2Nd Floor Building,4938.12, 20-Sep-2022
15,Revenue,CAHD,North - Community based support,Fees & Charges Income - General,2Nd Floor Building,-438.80, 20-Sep-2022
16,Revenue,CAHD,Central - Commissioned Services,Supported Living,3 Trees Community Support Limited,5929.70, 07-Sep-2022
17,Revenue,CAHD,Central - Commissioned Services,Supported Living,3 Trees Community Support Limited,5815.88, 07-Sep-2022
18,Revenue,CAHD,Central - Commissioned Services,Supported Living,3 Trees Community Support Limited,5878.15, 07-Sep-2022
19,Revenue,CAHD,South - Commissioned Services,Supported Living,3 Trees Community Support Limited,7257.60, 07-Sep-2022
20,Revenue,CAHD,Central - Commissioned Services,Supported Living,3 Trees Community Support Limited,6048.90, 06-Sep-2022
21,Revenue,CAHD,Central - Commissioned Services,Supported Living,3 Trees Community Support Limited,5946.36, 06-Sep-2022
22,Revenue,CAHD,Central - Commissioned Services,Supported Living,3 Trees Community Support Limited,6057.03, 06-Sep-2022
23,Revenue,CAHD,South - Commissioned Services,Supported Living,3 Trees Community Support Limited,7257.60, 06-Sep-2022
24,Revenue,CAHD,South - Commissioned Services,Permanent Residential,5Th Floor Harlech Court,12291.40, 20-Sep-2022
25,Revenue,CAHD,South - Commissioned Services,Permanent Residential,5Th Floor Harlech Court,17913.24, 20-Sep-2022
26,Revenue,CAHD,South - Commissioned Services,Permanent Residential,5Th Floor Harlech Court,18839.56, 20-Sep-2022
27,Revenue,CAHD,South - Commissioned Services,Fees & Charges Income - General,5Th Floor Harlech Court,-582.88, 20-Sep-2022
28,Revenue,CAHD,South - Commissioned Services,Fees & Charges Income - General,5Th Floor Harlech Court,-438.80, 20-Sep-2022
29,Revenue,CAHD,South - Commissioned Services,Fees & Charges Income - General,5Th Floor Harlech Court,-418.80, 20-Sep-2022
30,Revenue,CAHD,S28A cases,Permanent Residential,5Th Floor Harlech Court,11719.96, 20-Sep-2022
31,Revenue,CAHD,S28A cases,Fees & Charges Income - General,5Th Floor Harlech Court,-399.80, 20-Sep-2022
32,Revenue,CAHD,North - Community based support,Permanent Residential,5Th Floor Harlech Court,12498.56, 20-Sep-2022
33,Revenue,CAHD,North - Community based support,Fees & Charges Income - General,5Th Floor Harlech Court,-450.80, 20-Sep-2022
34,Revenue,CAHD,Central - Commissioned Services,Permanent Residential,5Th Floor Harlech Court,17683.61, 20-Sep-2022
35,Revenue,CAHD,Central - Commissioned Services,Fees & Charges Income - General,5Th Floor Harlech Court,-438.80, 20-Sep-2022
36,Revenue,CAHD,North - Community based support,Permanent Residential,5Th Floor Harlech Court,12472.87, 20-Sep-2022
37,Revenue,CAHD,North - Community based support,Permanent Residential,5Th Floor Harlech Court,12512.99, 20-Sep-2022
38,Revenue,CAHD,North - Community based support,Fees & Charges Income - General,5Th Floor Harlech Court,-438.80, 20-Sep-2022
39,Revenue,CAHD,CSC - Section 17 0-25,Preventative Assistance,A+bility Ltd,570.00, 20-Sep-2022
40,Revenue,CAHD,CSC - Section 17 0-25,Preventative Assistance,A+bility Ltd,720.00, 15-Sep-2022
41,Revenue,CAHD,Central - Commissioned Services,Non Residential Care Income,A4E Management Ltd,-112.74, 02-Sep-2022
42,Revenue,CAHD,Central - Commissioned Services,Non Residential Care Income,A4E Management Ltd,-112.74, 16-Sep-2022
43,Revenue,CAHD,Central - Commissioned Services,Non Residential Care Income,A4E Management Ltd,-112.74, 30-Sep-2022
44,Revenue,CAHD,CSC - Asylum Seekers - Unaccompanied,Independent Living,Ability Supported Living Limited,6700.42, 06-Sep-2022
45,Revenue,CAHD,South - Commissioned Services,Other Small Contracts,About Me Care and Support Limited,836.58, 22-Sep-2022
46,Revenue,CAHD,South - Commissioned Services,Permanent Nursing,Acacia House,3085.88, 20-Sep-2022
47,Revenue,CAHD,South - Commissioned Services,Fees & Charges Income - General,Acacia House,-1074.60, 20-Sep-2022
48,Revenue,CAHD,Central - Commissioned Services,Permanent Nursing,Acacia House,3777.92, 20-Sep-2022
49,Revenue,CAHD,Central - Commissioned Services,Permanent Residential,Acer House Care Home.,5225.00, 20-Sep-2022
50,Revenue,CAHD,Central - Commissioned Services,Fees & Charges Income - General,Acer House Care Home.,-1093.68, 20-Sep-2022
51,Revenue,CAHD,South - Commissioned Services,Supported Living,Achieve Together Limited,765.52, 15-Sep-2022
52,Revenue,CAHD,South - Commissioned Services,Supported Living,Achieve Together Limited,765.52, 15-Sep-2022
53,Revenue,CAHD,MH Purchasing - Younger,Permanent Residential,Acorn Care Providers,6920.56, 20-Sep-2022
54,Revenue,CAHD,MH Purchasing - Younger,Permanent Residential,Acorn Care Providers,6795.68, 20-Sep-2022
55,Revenue,CAHD,North - S117,Permanent Residential,Acorn Care Providers,4311.40, 20-Sep-2022
56,Revenue,CAHD,Section 117 Placements MH Younger,Permanent Residential,Acorn Care Providers,5941.40, 20-Sep-2022
57,Revenue,CAHD,Jointly Funded H&SC Packages,Permanent Residential,Acorn Care Providers,3515.52, 20-Sep-2022
58,Revenue,CAHD,Jointly Funded H&SC Packages,Permanent Residential,Acorn Care Providers,2366.36, 20-Sep-2022
59,Revenue,CAHD,Jointly Funded H&SC Packages,Permanent Residential,Acorn Care Providers,2193.40, 20-Sep-2022
60,Revenue,CAHD,CSC - Vinney Green Secure Unit,Training Expenses,Acorn Health & Safety Limited,1257.00, 12-Sep-2022
61,Revenue,CAHD,CSC - Agency Fostering,Foster Parent Allowances,Action for Children,3826.33, 07-Sep-2022
62,Revenue,CAHD,CSC - Agency Fostering,Foster Parent Allowances,Action for Children,3826.33, 07-Sep-2022
63,Revenue,CAHD,CSC - Agency Fostering,Foster Parent Allowances,Action for Children,1547.81, 09-Sep-2022
64,Revenue,CAHD,CSC - Agency Fostering,Foster Parent Allowances,Action for Children,3788.20, 21-Sep-2022
65,Revenue,CAHD,CSC - Agency Fostering,Foster Parent Allowances,Action for Children,3788.20, 21-Sep-2022
66,Revenue,CAHD,CSC - Agency Fostering,Foster Parent Allowances,Action for Children,2392.07, 21-Sep-2022
67,Revenue,CAHD,CSC - Age Related Allowances,Foster Parent Allowances,Individual,434.57, 16-Sep-2022
68,Revenue,CAHD,CSC - Professional Fees Foster Carers,Band 3 Foster Care,Individual,555.43, 16-Sep-2022
69,Revenue,CAHD,CSC - Age Related Allowances,Foster Parent Allowances,Individual,384.00, 23-Sep-2022
70,Revenue,CAHD,CSC - Professional Fees Foster Carers,Band 3 Foster Care,Individual,486.00, 23-Sep-2022
71,Revenue,CAHD,CSC - Age Related Allowances,Foster Parent Allowances,Individual,384.00, 30-Sep-2022
72,Revenue,CAHD,CSC - Professional Fees Foster Carers,Band 3 Foster Care,Individual,486.00, 30-Sep-2022
73,Revenue,CAHD,CSC - Asylum Seekers - Unaccompanied,Independent Living,Adolescent Support Home Services Ltd,6689.18, 26-Sep-2022
74,Revenue,CAHD,CSC - Asylum Seekers - Unaccompanied,Independent Living,Adolescent Support Home Services Ltd,6689.18, 09-Sep-2022
75,Revenue,CAHD,CSC - Asylum Seekers - Unaccompanied,Independent Living,Adolescent Support Home Services Ltd,6689.18, 26-Sep-2022
76,Revenue,CAHD,South - Commissioned Services,Other Small Contracts,Advantedge Commercial Finance Limited,695.80, 01-Sep-2022
77,Revenue,CAHD,South - Commissioned Services,Other Small Contracts,Advantedge Commercial Finance Limited,2076.38, 06-Sep-2022
78,Revenue,CAHD,South - Commissioned Services,Other Small Contracts,Advantedge Commercial Finance Limited,1169.94, 06-Sep-2022
79,Revenue,CAHD,South - Commissioned Services,Other Small Contracts,Advantedge Commercial Finance Limited,590.24, 06-Sep-2022
80,Revenue,CAHD,South - Commissioned Services,Other Small Contracts,Advantedge Commercial Finance Limited,885.36, 14-Sep-2022
81,Revenue,CAHD,South - Commissioned Services,Other Small Contracts,Advantedge Commercial Finance Limited,2640.27, 14-Sep-2022
82,Revenue,CAHD,Central - Commissioned Services,Other Small Contracts,Afya Care Ltd,714.42, 14-Sep-2022
83,Revenue,CAHD,Central - Commissioned Services,Day Care / Social Activities,Age Concern,-426.00, 20-Sep-2022
84,Revenue,CAHD,Central - Commissioned Services,Day Care / Social Activities,Age Concern,324.32, 20-Sep-2022
85,Revenue,CAHD,South - Commissioned Services,Day Care / Social Activities,Age Concern,288.08, 20-Sep-2022
86,Revenue,CAHD,North - Community based support,Day Care / Social Activities,Age Concern,766.80, 20-Sep-2022
87,Revenue,CAHD,North - Community based support,Day Care / Social Activities,Age Concern,823.46, 20-Sep-2022
88,Revenue,CAHD,North - Community based support,Day Care / Social Activities,Age Concern,288.08, 20-Sep-2022
89,Revenue,CAHD,Central - Commissioned Services,Day Care / Social Activities,Age UK - Grace Court,288.08, 20-Sep-2022
90,Revenue,CAHD,South - Commissioned Services,Day Care / Social Activities,Age UK - Grace Court,226.48, 20-Sep-2022
91,Revenue,CAHD,South - Commissioned Services,Day Care / Social Activities,Age UK - Grace Court,288.08, 20-Sep-2022
92,Revenue,CAHD,South - Commissioned Services,Day Care / Social Activities,Age UK - Grace Court,288.08, 20-Sep-2022
93,Revenue,CAHD,South - Commissioned Services,Day Care / Social Activities,Age UK - Grace Court,288.08, 20-Sep-2022
94,Revenue,CAHD,South - Commissioned Services,Day Care / Social Activities,Age UK - Grace Court,226.48, 20-Sep-2022
95,Revenue,CAHD,South - Commissioned Services,Day Care / Social Activities,Age UK - Grace Court,334.00, 20-Sep-2022
96,Revenue,CAHD,South - Commissioned Services,Day Care / Social Activities,Age UK - Grace Court,288.08, 20-Sep-2022
97,Revenue,CAHD,North - Community based support,Day Care / Social Activities,Age UK - Grace Court,288.08, 20-Sep-2022
98,Revenue,CAHD,Mental Health and Community Engagement,Grants to Voluntary Bodies,Age UK South Gloucestershire,13725.00, 29-Sep-2022
99,Revenue,CAHD,Extra Care Housing,Private & Voluntary Home Care,Agincare UK Limited,25937.78, 01-Sep-2022
100,Revenue,CAHD,Extra Care Housing,Private & Voluntary Home Care,Agincare UK Limited,25937.78, 30-Sep-2022
101,Revenue,CAHD,Extra Care Housing,Private & Voluntary Home Care,Agincare UK Limited,12479.78, 01-Sep-2022
102,Revenue,CAHD,Extra Care Housing,Private & Voluntary Home Care,Agincare UK Limited,12479.78, 30-Sep-2022
103,Revenue,CAHD,Extra Care Housing,Private & Voluntary Home Care,Agincare UK Limited,32712.59, 16-Sep-2022
104,Revenue,CAHD,Extra Care Housing,Private & Voluntary Home Care,Agincare UK Limited,5458.37, 05-Sep-2022
105,Revenue,CAHD,Extra Care Housing,Private & Voluntary Home Care,Agincare UK Limited,5458.37, 12-Sep-2022
106,Revenue,CAHD,Extra Care Housing,Private & Voluntary Home Care,Agincare UK Limited,5458.37, 16-Sep-2022
107,Revenue,CAHD,Extra Care Housing,Private & Voluntary Home Care,Agincare UK Limited,5458.37, 26-Sep-2022
108,Revenue,CAHD,Extra Care Housing,Private & Voluntary Home Care,Agincare UK Limited,1689.99, 30-Sep-2022
109,Revenue,CAHD,Prison Assessments & Costs,Other Supplies & Services,Agincare UK Limited,4400.00, 09-Sep-2022
110,Revenue,CAHD,Prison Assessments & Costs,Other Supplies & Services,Agincare UK Limited,3300.00, 09-Sep-2022
111,Revenue,CAHD,Prison Assessments & Costs,Other Supplies & Services,Agincare UK Limited,858.00, 26-Sep-2022
112,Revenue,CAHD,Prison Assessments & Costs,Other Supplies & Services,Agincare UK Limited,4664.00, 26-Sep-2022
113,Revenue,CAHD,South - Commissioned Services,Other Small Contracts,Agincare UK Limited,4102.76, 06-Sep-2022
114,Revenue,CAHD,South - Commissioned Services,Other Small Contracts,Agincare UK Limited,4338.08, 06-Sep-2022
115,Revenue,CAHD,South - Commissioned Services,Other Small Contracts,Agincare UK Limited,1184.24, 06-Sep-2022
116,Revenue,CAHD,South - Commissioned Services,Other Small Contracts,Agincare UK Limited,1173.66, 06-Sep-2022
117,Revenue,CAHD,South - Commissioned Services,Other Small Contracts,Agincare UK Limited,1285.84, 06-Sep-2022
118,Revenue,CAHD,South - Commissioned Services,Other Small Contracts,Agincare UK Limited,1400.96, 06-Sep-2022
119,Revenue,CAHD,South - Commissioned Services,Other Small Contracts,Agincare UK Limited,896.04, 28-Sep-2022
120,Revenue,CAHD,South - Commissioned Services,Other Small Contracts,Agincare UK Limited,864.60, 28-Sep-2022
121,Revenue,CAHD,South - Commissioned Services,Other Small Contracts,Agincare UK Limited,293.44, 28-Sep-2022
122,Revenue,CAHD,South - Commissioned Services,Other Small Contracts,Agincare UK Limited,52.40, 28-Sep-2022
123,Revenue,CAHD,South - Commissioned Services,Other Small Contracts,Agincare UK Limited,146.72, 28-Sep-2022
124,Revenue,CAHD,South - Commissioned Services,Other Small Contracts,Agincare UK Limited,183.40, 28-Sep-2022
125,Revenue,CAHD,South - Commissioned Services,Other Small Contracts,Agincare UK Limited,110.04, 28-Sep-2022
126,Revenue,CAHD,South - Commissioned Services,Other Small Contracts,Agincare UK Limited,62.88, 28-Sep-2022
127,Revenue,CAHD,Preparing for Adulthood Team,Catering,AHM Catering Experiance,680.00, 23-Sep-2022
128,Revenue,CAHD,North - Community based support,Other Small Contracts,AliMo Care Ltd,1426.65, 26-Sep-2022
129,Revenue,CAHD,CSC - Age Related Allowances,Foster Parent Allowances,Individual,363.00, 02-Sep-2022
130,Revenue,CAHD,CSC - Professional Fees Foster Carers,Band 3 Foster Care,Individual,486.00, 02-Sep-2022
131,Revenue,CAHD,CSC - Age Related Allowances,Foster Parent Allowances,Individual,363.00, 09-Sep-2022
132,Revenue,CAHD,CSC - Age Related Allowances,Day Care / Social Activities,Individual,155.75, 09-Sep-2022
133,Revenue,CAHD,CSC - Professional Fees Foster Carers,Band 3 Foster Care,Individual,486.00, 09-Sep-2022
134,Revenue,CAHD,CSC - Age Related Allowances,Foster Parent Allowances,Individual,363.00, 16-Sep-2022
135,Revenue,CAHD,CSC - Professional Fees Foster Carers,Band 3 Foster Care,Individual,486.00, 16-Sep-2022
136,Revenue,CAHD,CSC - Age Related Allowances,Foster Parent Allowances,Individual,363.00, 23-Sep-2022
137,Revenue,CAHD,CSC - Professional Fees Foster Carers,Band 3 Foster Care,Individual,486.00, 23-Sep-2022
138,Revenue,CAHD,CSC - Age Related Allowances,Foster Parent Allowances,Individual,363.00, 30-Sep-2022
139,Revenue,CAHD,CSC - Professional Fees Foster Carers,Band 3 Foster Care,Individual,486.00, 30-Sep-2022
140,Revenue,CAHD,South - Commissioned Services,Permanent Nursing,Allambie Court,2734.44, 20-Sep-2022
141,Revenue,CAHD,South - Commissioned Services,Fees & Charges Income - General,Allambie Court,-823.52, 20-Sep-2022
142,Revenue,CAHD,Mental Health and Community Engagement,Grants to Voluntary Bodies,Alzheimers Society,11143.00, 29-Sep-2022
143,Revenue,CAHD,CSC - Residential Placements,Permanent Residential,Ambito Care and Education,19930.88, 06-Sep-2022
144,Revenue,CAHD,CSC - Residential Placements,Permanent Residential,Ambito Care and Education,19920.87, 06-Sep-2022
145,Revenue,CAHD,CSC - Vinney Green Secure Unit,Building Improvements,Ames Timber Solutions,920.00, 14-Sep-2022
146,Revenue,CAHD,CSC - Vinney Green Secure Unit,Building Improvements,Ames Timber Solutions,1725.00, 14-Sep-2022
147,Revenue,CAHD,CSC - Vinney Green Secure Unit,R & M by Departments,Ames Timber Solutions,605.00, 14-Sep-2022
148,Revenue,CAHD,CSC - Vinney Green Secure Unit,R & M by Departments,Ames Timber Solutions,1840.00, 14-Sep-2022
149,Revenue,CAHD,CSC - Agency Fostering,Foster Parent Allowances,Amicus Foster Care Ltd,4879.00, 02-Sep-2022
150,Revenue,CAHD,CSC - Agency Fostering,Foster Parent Allowances,Amicus Foster Care Ltd,4037.13, 02-Sep-2022
151,Revenue,CAHD,CSC - Agency Fostering,Foster Parent Allowances,Amicus Foster Care Ltd,4796.44, 02-Sep-2022
152,Revenue,CAHD,Supporting People Programme,Grants to Voluntary Bodies,Anchor Hanover Group,1070.50, 01-Sep-2022
153,Revenue,CAHD,Supporting People Programme,Grants to Voluntary Bodies,Anchor Hanover Group,1070.50, 30-Sep-2022
154,Revenue,CAHD,Supporting People Programme,Grants to Voluntary Bodies,Anchor Hanover Group,873.08, 01-Sep-2022
155,Revenue,CAHD,Supporting People Programme,Grants to Voluntary Bodies,Anchor Hanover Group,873.08, 30-Sep-2022
156,Revenue,CAHD,Ukranian Refugees,Other Small Contracts,Individual,841.16, 14-Sep-2022
157,Revenue,CAHD,Community Support - South,Preventative Assistance,Angel Care Support Limited,10720.00, 09-Sep-2022
158,Revenue,CAHD,CSC - Special Guardianship Orders,Special Payments,Individual,500.30, 02-Sep-2022
159,Revenue,CAHD,CSC - Special Guardianship Orders,Special Payments,Individual,500.30, 09-Sep-2022
160,Revenue,CAHD,CSC - Special Guardianship Orders,Special Payments,Individual,500.30, 16-Sep-2022
161,Revenue,CAHD,CSC - Special Guardianship Orders,Special Payments,Individual,500.30, 23-Sep-2022
162,Revenue,CAHD,CSC - Special Guardianship Orders,Special Payments,Individual,500.30, 30-Sep-2022
163,Revenue,CAHD,Social Lettings Agency,Rent,Individual,822.73, 20-Sep-2022
164,Revenue,CAHD,Social Lettings Agency,Fees & Charges Income - General,Individual,-65.82, 20-Sep-2022
165,Revenue,CAHD,Social Lettings Agency,Rent,Individual,822.73, 02-Sep-2022
166,Revenue,CAHD,Social Lettings Agency,Fees & Charges Income - General,Individual,-65.82, 02-Sep-2022
167,Revenue,CAHD,Social Lettings Agency,Rent,Individual,822.73, 30-Sep-2022
168,Revenue,CAHD,Social Lettings Agency,Fees & Charges Income - General,Individual,-65.82, 30-Sep-2022
169,Revenue,CAHD,CSC - Vinney Green Secure Unit,Educational Materials,AQA Education Ltd,719.40, 29-Sep-2022
170,Revenue,CAHD,North - Community based support,Permanent Nursing,Arbour Walk,13674.37, 28-Sep-2022
171,Revenue,CAHD,North - Community based support,Fees & Charges Income - General,Arbour Walk,-4423.75, 28-Sep-2022
172,Revenue,CAHD,North - S117,Permanent Nursing,Arbour Walk,11764.29, 28-Sep-2022
173,Revenue,CAHD,CSC - Residential Placements,Permanent Residential,ARC HD Services Ltd,21936.13, 26-Sep-2022
174,Revenue,CAHD,South - S117,Supported Living,Archcare Rehab Limited,2062.52, 20-Sep-2022
175,Revenue,CAHD,Younger MH non-res purchasing,Respite Care,Archcare Rehab Limited,0.00, 20-Sep-2022
176,Revenue,CAHD,CSC - Vinney Green Secure Unit,Educational Materials,Ascentis,700.00, 30-Sep-2022
177,Revenue,CAHD,Accreditation and Duke of Edinburgh,Licences,Asdan Educational Limited,440.00, 21-Sep-2022
178,Revenue,CAHD,South - Commissioned Services,Permanent Residential,Ash Lea House,5885.04, 20-Sep-2022
179,Revenue,CAHD,South - Commissioned Services,Fees & Charges Income - General,Ash Lea House,-438.80, 20-Sep-2022
180,Revenue,CAHD,North - Community based support,Permanent Residential,Ash View House,7525.48, 20-Sep-2022
181,Revenue,CAHD,North - Community based support,Permanent Residential,Ash View House,7547.20, 20-Sep-2022
182,Revenue,CAHD,North - Community based support,Fees & Charges Income - General,Ash View House,-438.80, 20-Sep-2022
183,Revenue,CAHD,North - Community based support,Fees & Charges Income - General,Ash View House,-438.80, 20-Sep-2022
184,Revenue,CAHD,South - Commissioned Services,Permanent Residential,Ash View House,7317.24, 20-Sep-2022
185,Revenue,CAHD,South - Commissioned Services,Permanent Residential,Ash View House,5994.80, 20-Sep-2022
186,Revenue,CAHD,South - Commissioned Services,Fees & Charges Income - General,Ash View House,-438.80, 20-Sep-2022
187,Revenue,CAHD,South - Commissioned Services,Fees & Charges Income - General,Ash View House,-387.80, 20-Sep-2022
188,Revenue,CAHD,South - S117,Permanent Residential,Ash View House,7402.64, 20-Sep-2022
189,Revenue,CAHD,Section 117 Placements MH Younger,Permanent Residential,Ash View House,5444.12, 20-Sep-2022
190,Revenue,CAHD,Jointly Funded H&SC Packages,Permanent Residential,Ash View House,1160.84, 20-Sep-2022
191,Revenue,CAHD,Jointly Funded H&SC Packages,Permanent Residential,Ash View House,2204.28, 20-Sep-2022
192,Revenue,CAHD,S117 Placements PCT,Permanent Residential,Ash View House,8357.80, 20-Sep-2022
193,Revenue,CAHD,CSC - Legal Fees,Legal Fees,Individual,800.00, 23-Sep-2022
194,Revenue,CAHD,"Drugs, Alcohol and Sexual Health",Electricity,Ashville Asset Management Limited,856.55, 02-Sep-2022
195,Revenue,CAHD,"Drugs, Alcohol and Sexual Health",Rent,Ashville Asset Management Limited,1431.08, 29-Sep-2022
196,Revenue,CAHD,"Drugs, Alcohol and Sexual Health",Rent,Ashville Asset Management Limited,4550.00, 29-Sep-2022
197,Revenue,CAHD,Supporting People Programme,Grants to Voluntary Bodies,Aspects and Milestones Trust,3544.83, 01-Sep-2022
198,Revenue,CAHD,Supporting People Programme,Grants to Voluntary Bodies,Aspects and Milestones Trust,1777.17, 01-Sep-2022
199,Revenue,CAHD,Supporting People Programme,Grants to Voluntary Bodies,Aspects and Milestones Trust,3544.83, 30-Sep-2022
200,Revenue,CAHD,Supporting People Programme,Grants to Voluntary Bodies,Aspects and Milestones Trust,1777.17, 30-Sep-2022
201,Revenue,CAHD,18-25 Year Olds,Other Small Contracts,Aspirations,3369.60, 06-Sep-2022
202,Revenue,CAHD,18-25 Year Olds,Other Small Contracts,Aspirations,373.68, 06-Sep-2022
203,Revenue,CAHD,18-25 Year Olds,Other Small Contracts,Aspirations,249.12, 06-Sep-2022
204,Revenue,CAHD,18-25 Year Olds,Other Small Contracts,Aspirations,373.68, 06-Sep-2022
205,Revenue,CAHD,18-25 Year Olds,Other Small Contracts,Aspirations,332.16, 06-Sep-2022
206,Revenue,CAHD,18-25 Year Olds,Supported Living,Aspirations,2397.78, 06-Sep-2022
207,Revenue,CAHD,Central - Commissioned Services,Other Small Contracts,Aspirations,101.76, 06-Sep-2022
208,Revenue,CAHD,Central - Commissioned Services,Other Small Contracts,Aspirations,685.08, 06-Sep-2022
209,Revenue,CAHD,Central - Commissioned Services,Supported Living,Aspirations,216.00, 06-Sep-2022
210,Revenue,CAHD,South - Commissioned Services,Other Small Contracts,Aspirations,5516.19, 06-Sep-2022
211,Revenue,CAHD,South - Commissioned Services,Other Small Contracts,Aspirations,332.16, 06-Sep-2022
212,Revenue,CAHD,South - Commissioned Services,Other Small Contracts,Aspirations,178.08, 06-Sep-2022
213,Revenue,CAHD,South - Commissioned Services,Supported Living,Aspirations,1753.92, 06-Sep-2022
214,Revenue,CAHD,South - Commissioned Services,Supported Living,Aspirations,664.32, 06-Sep-2022
215,Revenue,CAHD,South - Commissioned Services,Supported Living,Aspirations,4484.16, 06-Sep-2022
216,Revenue,CAHD,South - Commissioned Services,Supported Living,Aspirations,986.10, 06-Sep-2022
217,Revenue,CAHD,South - Commissioned Services,Supported Living,Aspirations,2377.02, 06-Sep-2022
218,Revenue,CAHD,South - Commissioned Services,Supported Living,Aspirations,778.50, 06-Sep-2022
219,Revenue,CAHD,South - Commissioned Services,Supported Living,Aspirations,8322.81, 06-Sep-2022
220,Revenue,CAHD,South - Commissioned Services,Supported Living,Aspirations,249.12, 06-Sep-2022
221,Revenue,CAHD,South - Commissioned Services,Supported Living,Aspirations,4120.86, 06-Sep-2022
222,Revenue,CAHD,South - Commissioned Services,Supported Living,Aspirations,1432.44, 06-Sep-2022
223,Revenue,CAHD,South - Commissioned Services,Supported Living,Aspirations,8685.27, 06-Sep-2022
224,Revenue,CAHD,South - Commissioned Services,Supported Living,Aspirations,9315.11, 06-Sep-2022
225,Revenue,CAHD,South - Commissioned Services,Supported Living,Aspirations,5511.78, 06-Sep-2022
226,Revenue,CAHD,South - Commissioned Services,Mentoring,Aspirations,76.32, 06-Sep-2022
227,Revenue,CAHD,North - Community based support,Other Small Contracts,Aspirations,1753.92, 06-Sep-2022
228,Revenue,CAHD,North - Community based support,Other Small Contracts,Aspirations,352.92, 06-Sep-2022
229,Revenue,CAHD,North - Community based support,Supported Living,Aspirations,6939.12, 06-Sep-2022
230,Revenue,CAHD,North - Community based support,Supported Living,Aspirations,166.08, 06-Sep-2022
231,Revenue,CAHD,North - Community based support,Supported Living,Aspirations,280.26, 06-Sep-2022
232,Revenue,CAHD,CSC - Direct Payments - Disabled Chi,Supported Living,Aspirations,3237.18, 01-Sep-2022
233,Revenue,CAHD,18-25 Year Olds,Other Small Contracts,Aspirations,704.16, 01-Sep-2022
234,Revenue,CAHD,18-25 Year Olds,Other Small Contracts,Aspirations,5863.68, 01-Sep-2022
235,Revenue,CAHD,18-25 Year Olds,Other Small Contracts,Aspirations,762.84, 01-Sep-2022
236,Revenue,CAHD,18-25 Year Olds,Other Small Contracts,Aspirations,480.64, 01-Sep-2022
237,Revenue,CAHD,18-25 Year Olds,Other Small Contracts,Aspirations,469.44, 01-Sep-2022
238,Revenue,CAHD,18-25 Year Olds,Other Small Contracts,Aspirations,586.80, 01-Sep-2022
239,Revenue,CAHD,18-25 Year Olds,Other Small Contracts,Aspirations,772.62, 01-Sep-2022
240,Revenue,CAHD,18-25 Year Olds,Supported Living,Aspirations,2894.88, 01-Sep-2022
241,Revenue,CAHD,18-25 Year Olds,Supported Living,Aspirations,1056.24, 01-Sep-2022
242,Revenue,CAHD,18-25 Year Olds,Supported Living,Aspirations,4811.76, 01-Sep-2022
243,Revenue,CAHD,Central - Commissioned Services,Other Small Contracts,Aspirations,336.00, 01-Sep-2022
244,Revenue,CAHD,Central - Commissioned Services,Other Small Contracts,Aspirations,288.00, 01-Sep-2022
245,Revenue,CAHD,South - Commissioned Services,Other Small Contracts,Aspirations,117.36, 01-Sep-2022
246,Revenue,CAHD,South - Commissioned Services,Other Small Contracts,Aspirations,10193.07, 01-Sep-2022
247,Revenue,CAHD,South - Commissioned Services,Other Small Contracts,Aspirations,39.12, 01-Sep-2022
248,Revenue,CAHD,South - Commissioned Services,Other Small Contracts,Aspirations,997.56, 01-Sep-2022
249,Revenue,CAHD,South - Commissioned Services,Other Small Contracts,Aspirations,336.00, 01-Sep-2022
250,Revenue,CAHD,South - Commissioned Services,Supported Living,Aspirations,2097.81, 01-Sep-2022
251,Revenue,CAHD,South - Commissioned Services,Supported Living,Aspirations,3306.24, 01-Sep-2022
252,Revenue,CAHD,South - Commissioned Services,Supported Living,Aspirations,1853.31, 01-Sep-2022
253,Revenue,CAHD,South - Commissioned Services,Supported Living,Aspirations,8665.08, 01-Sep-2022
254,Revenue,CAHD,South - Commissioned Services,Supported Living,Aspirations,1706.61, 01-Sep-2022
255,Revenue,CAHD,South - Commissioned Services,Supported Living,Aspirations,1442.55, 01-Sep-2022
256,Revenue,CAHD,South - Commissioned Services,Supported Living,Aspirations,3682.17, 01-Sep-2022
257,Revenue,CAHD,South - Commissioned Services,Supported Living,Aspirations,1325.19, 01-Sep-2022
258,Revenue,CAHD,South - Commissioned Services,Supported Living,Aspirations,2361.87, 01-Sep-2022
259,Revenue,CAHD,South - Commissioned Services,Supported Living,Aspirations,16072.02, 01-Sep-2022
260,Revenue,CAHD,South - Commissioned Services,Supported Living,Aspirations,704.16, 01-Sep-2022
261,Revenue,CAHD,South - Commissioned Services,Supported Living,Aspirations,7643.07, 01-Sep-2022
262,Revenue,CAHD,South - Commissioned Services,Supported Living,Aspirations,2699.28, 01-Sep-2022
263,Revenue,CAHD,South - Commissioned Services,Supported Living,Aspirations,16401.66, 01-Sep-2022
264,Revenue,CAHD,South - Commissioned Services,Supported Living,Aspirations,17838.19, 01-Sep-2022
265,Revenue,CAHD,South - Commissioned Services,Supported Living,Aspirations,10327.68, 01-Sep-2022
266,Revenue,CAHD,South - Commissioned Services,Supported Living,Aspirations,2562.36, 01-Sep-2022
267,Revenue,CAHD,South - Commissioned Services,Mentoring,Aspirations,104.88, 01-Sep-2022
268,Revenue,CAHD,South - Commissioned Services,Mentoring,Aspirations,96.00, 01-Sep-2022
269,Revenue,CAHD,North - Community based support,Other Small Contracts,Aspirations,14645.22, 01-Sep-2022
270,Revenue,CAHD,North - Community based support,Other Small Contracts,Aspirations,1799.52, 01-Sep-2022
271,Revenue,CAHD,North - Community based support,Supported Living,Aspirations,3306.24, 01-Sep-2022
272,Revenue,CAHD,North - Community based support,Supported Living,Aspirations,469.44, 01-Sep-2022
273,Revenue,CAHD,CSC - Direct Payments - Disabled Chi,Supported Living,Aspirations,2396.10, 01-Sep-2022
274,Revenue,CAHD,18-25 Year Olds,Other Small Contracts,Aspirations,630.72, 01-Sep-2022
275,Revenue,CAHD,18-25 Year Olds,Other Small Contracts,Aspirations,4611.54, 01-Sep-2022
276,Revenue,CAHD,18-25 Year Olds,Other Small Contracts,Aspirations,669.84, 01-Sep-2022
277,Revenue,CAHD,18-25 Year Olds,Other Small Contracts,Aspirations,239.52, 01-Sep-2022
278,Revenue,CAHD,18-25 Year Olds,Other Small Contracts,Aspirations,393.60, 01-Sep-2022
279,Revenue,CAHD,18-25 Year Olds,Other Small Contracts,Aspirations,649.08, 01-Sep-2022
280,Revenue,CAHD,18-25 Year Olds,Other Small Contracts,Aspirations,829.92, 01-Sep-2022
281,Revenue,CAHD,18-25 Year Olds,Supported Living,Aspirations,3002.52, 01-Sep-2022
282,Revenue,CAHD,18-25 Year Olds,Supported Living,Aspirations,625.92, 01-Sep-2022
283,Revenue,CAHD,18-25 Year Olds,Supported Living,Aspirations,4375.74, 01-Sep-2022
284,Revenue,CAHD,Central - Commissioned Services,Other Small Contracts,Aspirations,231.12, 01-Sep-2022
285,Revenue,CAHD,South - Commissioned Services,Other Small Contracts,Aspirations,10379.77, 01-Sep-2022
286,Revenue,CAHD,South - Commissioned Services,Other Small Contracts,Aspirations,635.52, 01-Sep-2022
287,Revenue,CAHD,South - Commissioned Services,Other Small Contracts,Aspirations,509.04, 01-Sep-2022
288,Revenue,CAHD,South - Commissioned Services,Supported Living,Aspirations,1772.22, 01-Sep-2022
289,Revenue,CAHD,South - Commissioned Services,Supported Living,Aspirations,3339.84, 01-Sep-2022
290,Revenue,CAHD,South - Commissioned Services,Supported Living,Aspirations,1642.68, 01-Sep-2022
291,Revenue,CAHD,South - Commissioned Services,Supported Living,Aspirations,8537.43, 01-Sep-2022
292,Revenue,CAHD,South - Commissioned Services,Supported Living,Aspirations,1987.38, 01-Sep-2022
293,Revenue,CAHD,South - Commissioned Services,Supported Living,Aspirations,1259.13, 01-Sep-2022
294,Revenue,CAHD,South - Commissioned Services,Supported Living,Aspirations,601.86, 01-Sep-2022
295,Revenue,CAHD,South - Commissioned Services,Supported Living,Aspirations,4317.96, 01-Sep-2022
296,Revenue,CAHD,South - Commissioned Services,Supported Living,Aspirations,1482.00, 01-Sep-2022
297,Revenue,CAHD,South - Commissioned Services,Supported Living,Aspirations,2393.16, 01-Sep-2022
298,Revenue,CAHD,South - Commissioned Services,Supported Living,Aspirations,15736.77, 01-Sep-2022
299,Revenue,CAHD,South - Commissioned Services,Supported Living,Aspirations,594.00, 01-Sep-2022
300,Revenue,CAHD,South - Commissioned Services,Supported Living,Aspirations,6743.58, 01-Sep-2022
301,Revenue,CAHD,South - Commissioned Services,Supported Living,Aspirations,2570.40, 01-Sep-2022
302,Revenue,CAHD,South - Commissioned Services,Supported Living,Aspirations,16603.95, 01-Sep-2022
303,Revenue,CAHD,South - Commissioned Services,Supported Living,Aspirations,18004.16, 01-Sep-2022
304,Revenue,CAHD,South - Commissioned Services,Supported Living,Aspirations,9883.11, 01-Sep-2022
305,Revenue,CAHD,South - Commissioned Services,Supported Living,Aspirations,2486.16, 01-Sep-2022
306,Revenue,CAHD,South - Commissioned Services,Mentoring,Aspirations,480.00, 01-Sep-2022
307,Revenue,CAHD,South - Commissioned Services,Mentoring,Aspirations,242.88, 01-Sep-2022
308,Revenue,CAHD,North - Community based support,Other Small Contracts,Aspirations,13099.14, 01-Sep-2022
309,Revenue,CAHD,North - Community based support,Other Small Contracts,Aspirations,1834.68, 01-Sep-2022
310,Revenue,CAHD,North - Community based support,Supported Living,Aspirations,5080.32, 01-Sep-2022
311,Revenue,CAHD,North - Community based support,Supported Living,Aspirations,474.24, 01-Sep-2022
312,Revenue,CAHD,North - Community based support,Supported Living,Aspirations,342.72, 01-Sep-2022
313,Revenue,CAHD,18-25 Year Olds,Other Small Contracts,Aspirations,747.36, 01-Sep-2022
314,Revenue,CAHD,18-25 Year Olds,Other Small Contracts,Aspirations,7192.80, 01-Sep-2022
315,Revenue,CAHD,18-25 Year Olds,Other Small Contracts,Aspirations,581.28, 01-Sep-2022
316,Revenue,CAHD,18-25 Year Olds,Other Small Contracts,Aspirations,456.72, 01-Sep-2022
317,Revenue,CAHD,18-25 Year Olds,Other Small Contracts,Aspirations,622.80, 01-Sep-2022
318,Revenue,CAHD,18-25 Year Olds,Other Small Contracts,Aspirations,768.12, 01-Sep-2022
319,Revenue,CAHD,18-25 Year Olds,Supported Living,Aspirations,2896.02, 01-Sep-2022
320,Revenue,CAHD,18-25 Year Olds,Supported Living,Aspirations,4546.44, 01-Sep-2022
321,Revenue,CAHD,Central - Commissioned Services,Other Small Contracts,Aspirations,305.28, 01-Sep-2022
322,Revenue,CAHD,Central - Commissioned Services,Supported Living,Aspirations,425.28, 01-Sep-2022
323,Revenue,CAHD,South - Commissioned Services,Other Small Contracts,Aspirations,11164.77, 01-Sep-2022
324,Revenue,CAHD,South - Commissioned Services,Other Small Contracts,Aspirations,913.44, 01-Sep-2022
325,Revenue,CAHD,South - Commissioned Services,Other Small Contracts,Aspirations,534.24, 01-Sep-2022
326,Revenue,CAHD,South - Commissioned Services,Supported Living,Aspirations,1858.02, 01-Sep-2022
327,Revenue,CAHD,South - Commissioned Services,Supported Living,Aspirations,3507.84, 01-Sep-2022
328,Revenue,CAHD,South - Commissioned Services,Supported Living,Aspirations,1946.25, 01-Sep-2022
329,Revenue,CAHD,South - Commissioned Services,Supported Living,Aspirations,9461.37, 01-Sep-2022
330,Revenue,CAHD,South - Commissioned Services,Supported Living,Aspirations,2096.76, 01-Sep-2022
331,Revenue,CAHD,South - Commissioned Services,Supported Living,Aspirations,1785.36, 01-Sep-2022
332,Revenue,CAHD,South - Commissioned Services,Supported Living,Aspirations,3013.20, 01-Sep-2022
333,Revenue,CAHD,South - Commissioned Services,Supported Living,Aspirations,4629.48, 01-Sep-2022
334,Revenue,CAHD,South - Commissioned Services,Supported Living,Aspirations,1557.00, 01-Sep-2022
335,Revenue,CAHD,South - Commissioned Services,Supported Living,Aspirations,2408.16, 01-Sep-2022
336,Revenue,CAHD,South - Commissioned Services,Supported Living,Aspirations,15891.96, 01-Sep-2022
337,Revenue,CAHD,South - Commissioned Services,Supported Living,Aspirations,736.98, 01-Sep-2022
338,Revenue,CAHD,South - Commissioned Services,Supported Living,Aspirations,7940.70, 01-Sep-2022
339,Revenue,CAHD,South - Commissioned Services,Supported Living,Aspirations,2636.52, 01-Sep-2022
340,Revenue,CAHD,South - Commissioned Services,Supported Living,Aspirations,17349.69, 01-Sep-2022
341,Revenue,CAHD,South - Commissioned Services,Supported Living,Aspirations,17203.28, 01-Sep-2022
342,Revenue,CAHD,South - Commissioned Services,Supported Living,Aspirations,11044.32, 01-Sep-2022
343,Revenue,CAHD,South - Commissioned Services,Supported Living,Aspirations,2491.20, 01-Sep-2022
344,Revenue,CAHD,South - Commissioned Services,Mentoring,Aspirations,559.68, 01-Sep-2022
345,Revenue,CAHD,South - Commissioned Services,Mentoring,Aspirations,305.28, 01-Sep-2022
346,Revenue,CAHD,North - Community based support,Other Small Contracts,Aspirations,3507.84, 01-Sep-2022
347,Revenue,CAHD,North - Community based support,Other Small Contracts,Aspirations,1764.60, 01-Sep-2022
348,Revenue,CAHD,North - Community based support,Supported Living,Aspirations,14058.84, 01-Sep-2022
349,Revenue,CAHD,North - Community based support,Supported Living,Aspirations,41.52, 01-Sep-2022
350,Revenue,CAHD,North - Community based support,Supported Living,Aspirations,332.16, 01-Sep-2022
351,Revenue,CAHD,North - Community based support,Supported Living,Aspirations,799.26, 01-Sep-2022
352,Revenue,CAHD,18-25 Year Olds,Other Small Contracts,Aspirations,249.12, 01-Sep-2022
353,Revenue,CAHD,18-25 Year Olds,Other Small Contracts,Aspirations,5670.00, 01-Sep-2022
354,Revenue,CAHD,18-25 Year Olds,Other Small Contracts,Aspirations,622.80, 01-Sep-2022
355,Revenue,CAHD,18-25 Year Olds,Other Small Contracts,Aspirations,456.72, 01-Sep-2022
356,Revenue,CAHD,18-25 Year Olds,Other Small Contracts,Aspirations,685.08, 01-Sep-2022
357,Revenue,CAHD,18-25 Year Olds,Other Small Contracts,Aspirations,508.62, 01-Sep-2022
358,Revenue,CAHD,18-25 Year Olds,Supported Living,Aspirations,2968.68, 01-Sep-2022
359,Revenue,CAHD,18-25 Year Olds,Supported Living,Aspirations,4286.94, 01-Sep-2022
360,Revenue,CAHD,Central - Commissioned Services,Other Small Contracts,Aspirations,254.40, 01-Sep-2022
361,Revenue,CAHD,Central - Commissioned Services,Other Small Contracts,Aspirations,508.62, 01-Sep-2022
362,Revenue,CAHD,Central - Commissioned Services,Supported Living,Aspirations,425.28, 01-Sep-2022
363,Revenue,CAHD,South - Commissioned Services,Other Small Contracts,Aspirations,10897.11, 01-Sep-2022
364,Revenue,CAHD,South - Commissioned Services,Other Small Contracts,Aspirations,830.40, 01-Sep-2022
365,Revenue,CAHD,South - Commissioned Services,Other Small Contracts,Aspirations,171.12, 01-Sep-2022
366,Revenue,CAHD,South - Commissioned Services,Other Small Contracts,Aspirations,445.20, 01-Sep-2022
367,Revenue,CAHD,South - Commissioned Services,Supported Living,Aspirations,1941.06, 01-Sep-2022
368,Revenue,CAHD,South - Commissioned Services,Supported Living,Aspirations,3507.84, 01-Sep-2022
369,Revenue,CAHD,South - Commissioned Services,Supported Living,Aspirations,1624.47, 01-Sep-2022
370,Revenue,CAHD,South - Commissioned Services,Supported Living,Aspirations,8428.56, 01-Sep-2022
371,Revenue,CAHD,South - Commissioned Services,Supported Living,Aspirations,1816.50, 01-Sep-2022
372,Revenue,CAHD,South - Commissioned Services,Supported Living,Aspirations,1390.92, 01-Sep-2022
373,Revenue,CAHD,South - Commissioned Services,Supported Living,Aspirations,2473.20, 01-Sep-2022
374,Revenue,CAHD,South - Commissioned Services,Supported Living,Aspirations,4619.10, 01-Sep-2022
375,Revenue,CAHD,South - Commissioned Services,Supported Living,Aspirations,1396.11, 01-Sep-2022
376,Revenue,CAHD,South - Commissioned Services,Supported Living,Aspirations,2657.28, 01-Sep-2022
377,Revenue,CAHD,South - Commissioned Services,Supported Living,Aspirations,16274.76, 01-Sep-2022
378,Revenue,CAHD,South - Commissioned Services,Supported Living,Aspirations,622.80, 01-Sep-2022
379,Revenue,CAHD,South - Commissioned Services,Supported Living,Aspirations,8314.38, 01-Sep-2022
380,Revenue,CAHD,South - Commissioned Services,Supported Living,Aspirations,2802.60, 01-Sep-2022
381,Revenue,CAHD,South - Commissioned Services,Supported Living,Aspirations,17292.90, 01-Sep-2022
382,Revenue,CAHD,South - Commissioned Services,Supported Living,Aspirations,18773.07, 01-Sep-2022
383,Revenue,CAHD,South - Commissioned Services,Supported Living,Aspirations,10618.74, 01-Sep-2022
384,Revenue,CAHD,South - Commissioned Services,Supported Living,Aspirations,2729.94, 01-Sep-2022
385,Revenue,CAHD,South - Commissioned Services,Mentoring,Aspirations,457.92, 01-Sep-2022
386,Revenue,CAHD,South - Commissioned Services,Mentoring,Aspirations,254.40, 01-Sep-2022
387,Revenue,CAHD,North - Community based support,Other Small Contracts,Aspirations,3502.65, 01-Sep-2022
388,Revenue,CAHD,North - Community based support,Other Small Contracts,Aspirations,1764.60, 01-Sep-2022
389,Revenue,CAHD,North - Community based support,Supported Living,Aspirations,13875.12, 01-Sep-2022
390,Revenue,CAHD,North - Community based support,Supported Living,Aspirations,41.52, 01-Sep-2022
391,Revenue,CAHD,North - Community based support,Supported Living,Aspirations,249.12, 01-Sep-2022
392,Revenue,CAHD,North - Community based support,Supported Living,Aspirations,799.26, 01-Sep-2022
393,Revenue,CAHD,18-25 Year Olds,Other Small Contracts,Aspirations,207.60, 07-Sep-2022
394,Revenue,CAHD,18-25 Year Olds,Supported Living,Aspirations,1484.34, 07-Sep-2022
395,Revenue,CAHD,South - Commissioned Services,Supported Living,Aspirations,1121.04, 07-Sep-2022
396,Revenue,CAHD,South - Commissioned Services,Supported Living,Aspirations,1058.76, 07-Sep-2022
397,Revenue,CAHD,South - Commissioned Services,Supported Living,Aspirations,1544.40, 07-Sep-2022
398,Revenue,CAHD,South - Commissioned Services,Supported Living,Aspirations,1255.98, 07-Sep-2022
399,Revenue,CAHD,South - Commissioned Services,Supported Living,Aspirations,1370.16, 07-Sep-2022
400,Revenue,CAHD,South - Commissioned Services,Mentoring,Aspirations,305.28, 07-Sep-2022
401,Revenue,CAHD,18-25 Year Olds,Other Small Contracts,Aspirations,290.64, 28-Sep-2022
402,Revenue,CAHD,18-25 Year Olds,Other Small Contracts,Aspirations,3261.60, 28-Sep-2022
403,Revenue,CAHD,18-25 Year Olds,Other Small Contracts,Aspirations,539.76, 28-Sep-2022
404,Revenue,CAHD,18-25 Year Olds,Other Small Contracts,Aspirations,332.16, 28-Sep-2022
405,Revenue,CAHD,18-25 Year Olds,Other Small Contracts,Aspirations,498.24, 28-Sep-2022
406,Revenue,CAHD,18-25 Year Olds,Other Small Contracts,Aspirations,570.90, 28-Sep-2022
407,Revenue,CAHD,18-25 Year Olds,Supported Living,Aspirations,2345.88, 28-Sep-2022
408,Revenue,CAHD,18-25 Year Olds,Supported Living,Aspirations,3197.04, 28-Sep-2022
409,Revenue,CAHD,Central - Commissioned Services,Other Small Contracts,Aspirations,254.40, 28-Sep-2022
410,Revenue,CAHD,Central - Commissioned Services,Other Small Contracts,Aspirations,1141.80, 28-Sep-2022
411,Revenue,CAHD,Central - Commissioned Services,Supported Living,Aspirations,302.40, 28-Sep-2022
412,Revenue,CAHD,South - Commissioned Services,Other Small Contracts,Aspirations,9311.49, 28-Sep-2022
413,Revenue,CAHD,South - Commissioned Services,Other Small Contracts,Aspirations,747.36, 28-Sep-2022
414,Revenue,CAHD,South - Commissioned Services,Other Small Contracts,Aspirations,356.16, 28-Sep-2022
415,Revenue,CAHD,South - Commissioned Services,Supported Living,Aspirations,1868.40, 28-Sep-2022
416,Revenue,CAHD,South - Commissioned Services,Supported Living,Aspirations,3017.88, 28-Sep-2022
417,Revenue,CAHD,South - Commissioned Services,Supported Living,Aspirations,1525.86, 28-Sep-2022
418,Revenue,CAHD,South - Commissioned Services,Supported Living,Aspirations,7307.52, 28-Sep-2022
419,Revenue,CAHD,South - Commissioned Services,Supported Living,Aspirations,1712.70, 28-Sep-2022
420,Revenue,CAHD,South - Commissioned Services,Supported Living,Aspirations,1390.92, 28-Sep-2022
421,Revenue,CAHD,South - Commissioned Services,Supported Living,Aspirations,2397.60, 28-Sep-2022
422,Revenue,CAHD,South - Commissioned Services,Supported Living,Aspirations,3067.29, 28-Sep-2022
423,Revenue,CAHD,South - Commissioned Services,Supported Living,Aspirations,1188.51, 28-Sep-2022
424,Revenue,CAHD,South - Commissioned Services,Supported Living,Aspirations,1946.25, 28-Sep-2022
425,Revenue,CAHD,South - Commissioned Services,Supported Living,Aspirations,14426.82, 28-Sep-2022
426,Revenue,CAHD,South - Commissioned Services,Supported Living,Aspirations,622.80, 28-Sep-2022
427,Revenue,CAHD,South - Commissioned Services,Supported Living,Aspirations,6285.09, 28-Sep-2022
428,Revenue,CAHD,South - Commissioned Services,Supported Living,Aspirations,2314.74, 28-Sep-2022
429,Revenue,CAHD,South - Commissioned Services,Supported Living,Aspirations,14504.67, 28-Sep-2022
430,Revenue,CAHD,South - Commissioned Services,Supported Living,Aspirations,16095.67, 28-Sep-2022
431,Revenue,CAHD,South - Commissioned Services,Supported Living,Aspirations,8698.44, 28-Sep-2022
432,Revenue,CAHD,South - Commissioned Services,Supported Living,Aspirations,2491.20, 28-Sep-2022
433,Revenue,CAHD,South - Commissioned Services,Mentoring,Aspirations,508.80, 28-Sep-2022
434,Revenue,CAHD,South - Commissioned Services,Mentoring,Aspirations,178.08, 28-Sep-2022
435,Revenue,CAHD,North - Community based support,Other Small Contracts,Aspirations,2923.20, 28-Sep-2022
436,Revenue,CAHD,North - Community based support,Other Small Contracts,Aspirations,1494.72, 28-Sep-2022
437,Revenue,CAHD,North - Community based support,Supported Living,Aspirations,11126.46, 28-Sep-2022
438,Revenue,CAHD,North - Community based support,Supported Living,Aspirations,332.16, 28-Sep-2022
439,Revenue,CAHD,North - Community based support,Supported Living,Aspirations,705.84, 28-Sep-2022
440,Revenue,CAHD,CSC - Care Leavers Independent Living,Adults - Family Support,Aspirations Support Bristol Limited,15419.68, 05-Sep-2022
441,Revenue,CAHD,CSC - Care Leavers Independent Living,Adults - Family Support,Aspirations Support Bristol Limited,15419.68, 09-Sep-2022
442,Revenue,CAHD,Shared Lives,Other Supplies & Services,Ategi Limited,52857.00, 30-Sep-2022
443,Revenue,CAHD,18-25 Year Olds,Adults - Family Support,Ategi Limited,2806.24, 20-Sep-2022
444,Revenue,CAHD,18-25 Year Olds,Adults - Family Support,Ategi Limited,1695.36, 20-Sep-2022
445,Revenue,CAHD,18-25 Year Olds,Respite Care,Ategi Limited,0.00, 20-Sep-2022
446,Revenue,CAHD,18-25 Year Olds,Respite Care,Ategi Limited,0.00, 20-Sep-2022
447,Revenue,CAHD,18-25 Year Olds,Respite Care,Ategi Limited,0.00, 20-Sep-2022
448,Revenue,CAHD,South - Commissioned Services,Adults - Family Support,Ategi Limited,1695.36, 20-Sep-2022
449,Revenue,CAHD,South - Commissioned Services,Adults - Family Support,Ategi Limited,2424.64, 20-Sep-2022
450,Revenue,CAHD,South - Commissioned Services,Adults - Family Support,Ategi Limited,2424.64, 20-Sep-2022
451,Revenue,CAHD,South - Commissioned Services,Adults - Family Support,Ategi Limited,1695.36, 20-Sep-2022
452,Revenue,CAHD,South - Commissioned Services,Respite Care,Ategi Limited,0.00, 20-Sep-2022
453,Revenue,CAHD,South - Commissioned Services,Respite Care,Ategi Limited,0.00, 20-Sep-2022
454,Revenue,CAHD,South - Commissioned Services,Respite Care,Ategi Limited,0.00, 20-Sep-2022
455,Revenue,CAHD,North - Community based support,Adults - Family Support,Ategi Limited,1695.36, 20-Sep-2022
456,Revenue,CAHD,North - Community based support,Adults - Family Support,Ategi Limited,1695.36, 20-Sep-2022
457,Revenue,CAHD,North - Community based support,Respite Care,Ategi Limited,0.00, 20-Sep-2022
458,Revenue,CAHD,North - Community based support,Respite Care,Ategi Limited,0.00, 20-Sep-2022
459,Revenue,CAHD,Independent Special Placements - Pre 16,Other Private Contractors,Aurora Hedgeway School,531.89, 26-Sep-2022
460,Revenue,CAHD,Independent Special Placements - Post 16,Other Private Contractors,Aurora Hedgeway School,27381.60, 05-Sep-2022
461,Revenue,CAHD,Independent Special Placements - Post 16,Other Private Contractors,Aurora Hedgeway School,23622.85, 26-Sep-2022
462,Revenue,CAHD,Independent Special Placements - Post 16,Other Private Contractors,Aurora Hedgeway School,24364.00, 05-Sep-2022
463,Revenue,CAHD,Independent Special Placements - Post 16,Other Private Contractors,Aurora Hedgeway School,27730.00, 05-Sep-2022
464,Revenue,CAHD,Independent Special Placements - Post 16,Other Private Contractors,Aurora Hedgeway School,27730.00, 05-Sep-2022
465,Revenue,CAHD,Independent Special Placements - Pre 16,Other Private Contractors,Aurora Hedgeway School,28692.67, 05-Sep-2022
466,Revenue,CAHD,Independent Special Placements - Pre 16,Other Private Contractors,Aurora Severnside School,25473.00, 12-Sep-2022
467,Revenue,CAHD,South - Commissioned Services,Permanent Residential,Autism Specialised Care Homes,6506.88, 20-Sep-2022
468,Revenue,CAHD,South - Commissioned Services,Fees & Charges Income - General,Autism Specialised Care Homes,-438.80, 20-Sep-2022
469,Revenue,CAHD,Younger Adult Mental Health,Health Services (Third Party Payments),Avon & Wiltshire Mental Health,1693.33, 09-Sep-2022
470,Revenue,CAHD,Younger Adult Mental Health,Health Services (Third Party Payments),Avon & Wiltshire Mental Health,1693.33, 09-Sep-2022
471,Revenue,CAHD,Younger Adult Mental Health,Other Supplies & Services,Avon & Wiltshire Mental Health,1694.17, 05-Sep-2022
472,Revenue,CAHD,CSC - LAC - Counselling & Therapy,Other Supplies & Services,Avon & Wiltshire Mental Health,15000.00, 06-Sep-2022
473,Revenue,CAHD,TSG Practice Placements,Training Expenses,Avon & Wiltshire Mental Health,1000.00, 13-Sep-2022
474,Revenue,CAHD,Younger Adult Mental Health,Health Services (Third Party Payments),Avon & Wiltshire Mental Health,1700.00, 20-Sep-2022
475,Revenue,CAHD,South Glos Users in South Glos Homes,Permanent Nursing,Avon Lodge Care Centre,977.74, 20-Sep-2022
476,Revenue,CAHD,South Glos Users in South Glos Homes,Permanent Nursing,Avon Lodge Care Centre,1980.25, 20-Sep-2022
477,Revenue,CAHD,South Glos Users in South Glos Homes,Permanent Nursing,Avon Lodge Care Centre,939.86, 20-Sep-2022
478,Revenue,CAHD,South Glos Users in South Glos Homes,Permanent Nursing,Avon Lodge Care Centre,1980.25, 20-Sep-2022
479,Revenue,CAHD,South Glos Users in South Glos Homes,Permanent Nursing,Avon Lodge Care Centre,419.80, 20-Sep-2022
480,Revenue,CAHD,South Glos Users in South Glos Homes,Permanent Nursing,Avon Lodge Care Centre,1980.25, 20-Sep-2022
481,Revenue,CAHD,South Glos Users in South Glos Homes,Permanent Nursing,Avon Lodge Care Centre,4094.15, 20-Sep-2022
482,Revenue,CAHD,South Glos Users in South Glos Homes,Permanent Nursing,Avon Lodge Care Centre,1143.49, 20-Sep-2022
483,Revenue,CAHD,South Glos Users in South Glos Homes,Permanent Nursing,Avon Lodge Care Centre,1980.25, 20-Sep-2022
484,Revenue,CAHD,South Glos Users in South Glos Homes,Permanent Nursing,Avon Lodge Care Centre,1980.25, 20-Sep-2022
485,Revenue,CAHD,South Glos Users in South Glos Homes,Permanent Nursing,Avon Lodge Care Centre,1980.25, 20-Sep-2022
486,Revenue,CAHD,South Glos Users in South Glos Homes,Permanent Nursing,Avon Lodge Care Centre,1854.93, 20-Sep-2022
487,Revenue,CAHD,South Glos Users in South Glos Homes,Permanent Nursing,Avon Lodge Care Centre,986.85, 20-Sep-2022
488,Revenue,CAHD,South Glos Users in South Glos Homes,Permanent Nursing,Avon Lodge Care Centre,391.61, 20-Sep-2022
489,Revenue,CAHD,South Glos Users in South Glos Homes,Permanent Nursing,Avon Lodge Care Centre,382.21, 20-Sep-2022
490,Revenue,CAHD,South Glos Users in South Glos Homes,Permanent Nursing,Avon Lodge Care Centre,1980.25, 20-Sep-2022
491,Revenue,CAHD,South Glos Users in South Glos Homes,Permanent Nursing,Avon Lodge Care Centre,228.70, 20-Sep-2022
492,Revenue,CAHD,South Glos Users in South Glos Homes,Permanent Nursing,Avon Lodge Care Centre,1980.25, 20-Sep-2022
493,Revenue,CAHD,South Glos Users in South Glos Homes,Permanent Nursing,Avon Lodge Care Centre,1980.25, 20-Sep-2022
494,Revenue,CAHD,South Glos Users in South Glos Homes,Permanent Nursing,Avon Lodge Care Centre,40.73, 20-Sep-2022
495,Revenue,CAHD,South Glos Users in South Glos Homes,Permanent Nursing,Avon Lodge Care Centre,1265.96, 20-Sep-2022
496,Revenue,CAHD,South Glos Users in South Glos Homes,Permanent Nursing,Avon Lodge Care Centre,1215.83, 20-Sep-2022
497,Revenue,CAHD,South Glos Users in South Glos Homes,Permanent Nursing,Avon Lodge Care Centre,1980.25, 20-Sep-2022
498,Revenue,CAHD,South Glos Users in South Glos Homes,Permanent Nursing,Avon Lodge Care Centre,1980.25, 20-Sep-2022
499,Revenue,CAHD,South Glos Users in South Glos Homes,Permanent Nursing,Avon Lodge Care Centre,407.27, 20-Sep-2022
500,Revenue,CAHD,South Glos Users in South Glos Homes,Permanent Nursing,Avon Lodge Care Centre,1980.25, 20-Sep-2022
501,Revenue,CAHD,South Glos Users in South Glos Homes,Permanent Nursing,Avon Lodge Care Centre,1980.25, 20-Sep-2022
502,Revenue,CAHD,South Glos Users in South Glos Homes,Permanent Nursing,Avon Lodge Care Centre,1980.25, 20-Sep-2022
503,Revenue,CAHD,South Glos Users in South Glos Homes,Permanent Nursing,Avon Lodge Care Centre,153.51, 20-Sep-2022
504,Revenue,CAHD,South Glos Users in South Glos Homes,Permanent Nursing,Avon Lodge Care Centre,1980.25, 20-Sep-2022
505,Revenue,CAHD,South Glos Users in South Glos Homes,Permanent Nursing,Avon Lodge Care Centre,1152.74, 20-Sep-2022
506,Revenue,CAHD,South Glos Users in South Glos Homes,Permanent Nursing,Avon Lodge Care Centre,679.83, 20-Sep-2022
507,Revenue,CAHD,South Glos Users in South Glos Homes,Permanent Nursing,Avon Lodge Care Centre,1980.25, 20-Sep-2022
508,Revenue,CAHD,South Glos Users in South Glos Homes,Permanent Nursing,Avon Lodge Care Centre,347.74, 20-Sep-2022
509,Revenue,CAHD,South Glos Users in South Glos Homes,Permanent Nursing,Avon Lodge Care Centre,43.86, 20-Sep-2022
510,Revenue,CAHD,South Glos Users in South Glos Homes,Permanent Nursing,Avon Lodge Care Centre,388.47, 20-Sep-2022
511,Revenue,CAHD,South Glos Users in South Glos Homes,Permanent Nursing,Avon Lodge Care Centre,714.29, 20-Sep-2022
512,Revenue,CAHD,South Glos Users in South Glos Homes,Permanent Nursing,Avon Lodge Care Centre,303.89, 20-Sep-2022
513,Revenue,CAHD,South Glos Users in South Glos Homes,Permanent Nursing,Avon Lodge Care Centre,980.87, 20-Sep-2022
514,Revenue,CAHD,South Glos Users in South Glos Homes,Permanent Nursing,Avon Lodge Care Centre,1980.25, 20-Sep-2022
515,Revenue,CAHD,South Glos Users in South Glos Homes,Permanent Nursing,Avon Lodge Care Centre,1980.25, 20-Sep-2022
516,Revenue,CAHD,South Glos Users in South Glos Homes,Permanent Nursing,Avon Lodge Care Centre,1306.69, 20-Sep-2022
517,Revenue,CAHD,South Glos Users in South Glos Homes,Permanent Nursing,Avon Lodge Care Centre,971.47, 20-Sep-2022
518,Revenue,CAHD,South Glos Users in South Glos Homes,Permanent Nursing,Avon Lodge Care Centre,6097.31, 20-Sep-2022
519,Revenue,CAHD,South Glos Users in South Glos Homes,Permanent Nursing,Avon Lodge Care Centre,1143.49, 20-Sep-2022
520,Revenue,CAHD,South Glos Users in South Glos Homes,Permanent Nursing,Avon Lodge Care Centre,34.47, 20-Sep-2022
521,Revenue,CAHD,South Glos Users in South Glos Homes,Permanent Nursing,Avon Lodge Care Centre,410.40, 20-Sep-2022
522,Revenue,CAHD,South Glos Users in South Glos Homes,Permanent Nursing,Avon Lodge Care Centre,1321.15, 20-Sep-2022
523,Revenue,CAHD,South Glos Users in South Glos Homes,Permanent Nursing,Avon Lodge Care Centre,156.64, 20-Sep-2022
524,Revenue,CAHD,South Glos Users in South Glos Homes,Permanent Nursing,Avon Lodge Care Centre,1143.49, 20-Sep-2022
525,Revenue,CAHD,South Glos Users in South Glos Homes,Permanent Nursing,Avon Lodge Care Centre,695.22, 20-Sep-2022
526,Revenue,CAHD,South Glos Users in South Glos Homes,Permanent Nursing,Avon Lodge Care Centre,1074.86, 20-Sep-2022
527,Revenue,CAHD,South Glos Users in South Glos Homes,Permanent Nursing,Avon Lodge Care Centre,1980.25, 20-Sep-2022
528,Revenue,CAHD,South Glos Users in South Glos Homes,Permanent Nursing,Avon Lodge Care Centre,1980.25, 20-Sep-2022
529,Revenue,CAHD,South Glos Users in South Glos Homes,Permanent Nursing,Avon Lodge Care Centre,974.60, 20-Sep-2022
530,Revenue,CAHD,Central - Commissioned Services,Permanent Nursing,Avon Lodge Care Centre,4296.48, 20-Sep-2022
531,Revenue,CAHD,Central - Commissioned Services,Permanent Nursing,Avon Lodge Care Centre,4120.64, 20-Sep-2022
532,Revenue,CAHD,Central - Commissioned Services,Respite Planned - Nursing,Avon Lodge Care Centre,6444.72, 20-Sep-2022
533,Revenue,CAHD,Central - Commissioned Services,Fees & Charges Income - General,Avon Lodge Care Centre,-1294.55, 20-Sep-2022
534,Revenue,CAHD,Central - Commissioned Services,Fees & Charges Income - General,Avon Lodge Care Centre,-956.96, 20-Sep-2022
535,Revenue,CAHD,South - Commissioned Services,Permanent Residential,Avon Lodge Care Centre,3318.24, 20-Sep-2022
536,Revenue,CAHD,South - Commissioned Services,Permanent Residential,Avon Lodge Care Centre,31892.86, 20-Sep-2022
537,Revenue,CAHD,South - Commissioned Services,Permanent Residential,Avon Lodge Care Centre,3816.00, 20-Sep-2022
538,Revenue,CAHD,South - Commissioned Services,Permanent Residential,Avon Lodge Care Centre,4028.00, 20-Sep-2022
539,Revenue,CAHD,South - Commissioned Services,Permanent Residential,Avon Lodge Care Centre,-460.28, 20-Sep-2022
540,Revenue,CAHD,South - Commissioned Services,Permanent Residential,Avon Lodge Care Centre,-5370.60, 20-Sep-2022
541,Revenue,CAHD,South - Commissioned Services,Permanent Residential,Avon Lodge Care Centre,3667.60, 20-Sep-2022
542,Revenue,CAHD,South - Commissioned Services,Permanent Nursing,Avon Lodge Care Centre,4028.00, 20-Sep-2022
543,Revenue,CAHD,South - Commissioned Services,Permanent Nursing,Avon Lodge Care Centre,4296.48, 20-Sep-2022
544,Revenue,CAHD,South - Commissioned Services,Permanent Nursing,Avon Lodge Care Centre,5349.68, 20-Sep-2022
545,Revenue,CAHD,South - Commissioned Services,Permanent Nursing,Avon Lodge Care Centre,3539.44, 20-Sep-2022
546,Revenue,CAHD,South - Commissioned Services,Permanent Nursing,Avon Lodge Care Centre,3751.96, 20-Sep-2022
547,Revenue,CAHD,South - Commissioned Services,Permanent Nursing,Avon Lodge Care Centre,4210.12, 20-Sep-2022
548,Revenue,CAHD,South - Commissioned Services,Permanent Nursing,Avon Lodge Care Centre,4714.76, 20-Sep-2022
549,Revenue,CAHD,South - Commissioned Services,Permanent Nursing,Avon Lodge Care Centre,4775.44, 20-Sep-2022
550,Revenue,CAHD,South - Commissioned Services,Permanent Nursing,Avon Lodge Care Centre,4674.92, 20-Sep-2022
551,Revenue,CAHD,South - Commissioned Services,Permanent Nursing,Avon Lodge Care Centre,4664.00, 20-Sep-2022
552,Revenue,CAHD,South - Commissioned Services,Permanent Nursing,Avon Lodge Care Centre,4120.64, 20-Sep-2022
553,Revenue,CAHD,South - Commissioned Services,Permanent Nursing,Avon Lodge Care Centre,4554.28, 20-Sep-2022
554,Revenue,CAHD,South - Commissioned Services,Permanent Nursing,Avon Lodge Care Centre,-153.42, 20-Sep-2022
555,Revenue,CAHD,South - Commissioned Services,Permanent Nursing,Avon Lodge Care Centre,451.43, 20-Sep-2022
556,Revenue,CAHD,South - Commissioned Services,Respite Planned - Nursing,Avon Lodge Care Centre,6598.17, 20-Sep-2022
557,Revenue,CAHD,South - Commissioned Services,Fees & Charges Income - General,Avon Lodge Care Centre,-679.80, 20-Sep-2022
558,Revenue,CAHD,South - Commissioned Services,Fees & Charges Income - General,Avon Lodge Care Centre,-725.24, 20-Sep-2022
559,Revenue,CAHD,South - Commissioned Services,Fees & Charges Income - General,Avon Lodge Care Centre,-1066.12, 20-Sep-2022
560,Revenue,CAHD,South - Commissioned Services,Fees & Charges Income - General,Avon Lodge Care Centre,-1393.76, 20-Sep-2022
561,Revenue,CAHD,South - Commissioned Services,Fees & Charges Income - General,Avon Lodge Care Centre,-1525.00, 20-Sep-2022
562,Revenue,CAHD,South - Commissioned Services,Fees & Charges Income - General,Avon Lodge Care Centre,-438.80, 20-Sep-2022
563,Revenue,CAHD,South - Commissioned Services,Fees & Charges Income - General,Avon Lodge Care Centre,-1280.20, 20-Sep-2022
564,Revenue,CAHD,South - Commissioned Services,Fees & Charges Income - General,Avon Lodge Care Centre,-6767.74, 20-Sep-2022
565,Revenue,CAHD,South - Commissioned Services,Fees & Charges Income - General,Avon Lodge Care Centre,-1017.44, 20-Sep-2022
566,Revenue,CAHD,South - Commissioned Services,Fees & Charges Income - General,Avon Lodge Care Centre,-852.32, 20-Sep-2022
567,Revenue,CAHD,South - Commissioned Services,Fees & Charges Income - General,Avon Lodge Care Centre,-1056.84, 20-Sep-2022
568,Revenue,CAHD,South - Commissioned Services,Fees & Charges Income - General,Avon Lodge Care Centre,-1889.12, 20-Sep-2022
569,Revenue,CAHD,South - Commissioned Services,Fees & Charges Income - General,Avon Lodge Care Centre,-2319.64, 20-Sep-2022
570,Revenue,CAHD,South - Commissioned Services,Fees & Charges Income - General,Avon Lodge Care Centre,-635.48, 20-Sep-2022
571,Revenue,CAHD,South - Commissioned Services,Fees & Charges Income - General,Avon Lodge Care Centre,-627.80, 20-Sep-2022
572,Revenue,CAHD,South - Commissioned Services,Fees & Charges Income - General,Avon Lodge Care Centre,139.39, 20-Sep-2022
573,Revenue,CAHD,South - Commissioned Services,Fees & Charges Income - General,Avon Lodge Care Centre,1400.95, 20-Sep-2022
574,Revenue,CAHD,South - Commissioned Services,Fees & Charges Income - General,Avon Lodge Care Centre,-627.80, 20-Sep-2022
575,Revenue,CAHD,North - Community based support,Permanent Residential,Avon Lodge Care Centre,3751.96, 20-Sep-2022
576,Revenue,CAHD,North - Community based support,Permanent Nursing,Avon Lodge Care Centre,4553.76, 20-Sep-2022
577,Revenue,CAHD,North - Community based support,Permanent Nursing,Avon Lodge Care Centre,-1534.29, 20-Sep-2022
578,Revenue,CAHD,North - Community based support,Permanent Nursing,Avon Lodge Care Centre,4120.64, 20-Sep-2022
579,Revenue,CAHD,North - Community based support,Fees & Charges Income - General,Avon Lodge Care Centre,-627.80, 20-Sep-2022
580,Revenue,CAHD,North - Community based support,Fees & Charges Income - General,Avon Lodge Care Centre,515.94, 20-Sep-2022
581,Revenue,CAHD,North - Community based support,Fees & Charges Income - General,Avon Lodge Care Centre,-1493.16, 20-Sep-2022
582,Revenue,CAHD,North - Community based support,Fees & Charges Income - General,Avon Lodge Care Centre,-794.36, 20-Sep-2022
583,Revenue,CAHD,South - S117,Permanent Nursing,Avon Lodge Care Centre,-2708.56, 20-Sep-2022
584,Revenue,CAHD,South - Commissioned Services,Permanent Residential,Avon Valley Care Home,4337.52, 20-Sep-2022
585,Revenue,CAHD,South - Commissioned Services,Permanent Residential,Avon Valley Care Home,4526.20, 20-Sep-2022
586,Revenue,CAHD,South - Commissioned Services,Permanent Residential,Avon Valley Care Home,4294.16, 20-Sep-2022
587,Revenue,CAHD,South - Commissioned Services,Permanent Residential,Avon Valley Care Home,4483.80, 20-Sep-2022
588,Revenue,CAHD,South - Commissioned Services,Permanent Residential,Avon Valley Care Home,4294.16, 20-Sep-2022
589,Revenue,CAHD,South - Commissioned Services,Permanent Residential,Avon Valley Care Home,4526.20, 20-Sep-2022
590,Revenue,CAHD,South - Commissioned Services,Permanent Residential,Avon Valley Care Home,3214.08, 20-Sep-2022
591,Revenue,CAHD,South - Commissioned Services,Permanent Residential,Avon Valley Care Home,4483.80, 20-Sep-2022
592,Revenue,CAHD,South - Commissioned Services,Permanent Residential,Avon Valley Care Home,4570.00, 20-Sep-2022
593,Revenue,CAHD,South - Commissioned Services,Permanent Residential,Avon Valley Care Home,4728.28, 20-Sep-2022
594,Revenue,CAHD,South - Commissioned Services,Permanent Residential,Avon Valley Care Home,3860.40, 20-Sep-2022
595,Revenue,CAHD,South - Commissioned Services,Permanent Residential,Avon Valley Care Home,4429.64, 20-Sep-2022
596,Revenue,CAHD,South - Commissioned Services,Permanent Residential,Avon Valley Care Home,3980.00, 20-Sep-2022
597,Revenue,CAHD,South - Commissioned Services,Permanent Residential,Avon Valley Care Home,4483.80, 20-Sep-2022
598,Revenue,CAHD,South - Commissioned Services,Permanent Residential,Avon Valley Care Home,3980.00, 20-Sep-2022
599,Revenue,CAHD,South - Commissioned Services,Permanent Residential,Avon Valley Care Home,35858.58, 20-Sep-2022
600,Revenue,CAHD,South - Commissioned Services,Fees & Charges Income - General,Avon Valley Care Home,-628.16, 20-Sep-2022
601,Revenue,CAHD,South - Commissioned Services,Fees & Charges Income - General,Avon Valley Care Home,-1009.24, 20-Sep-2022
602,Revenue,CAHD,South - Commissioned Services,Fees & Charges Income - General,Avon Valley Care Home,-1285.52, 20-Sep-2022
603,Revenue,CAHD,South - Commissioned Services,Fees & Charges Income - General,Avon Valley Care Home,-1040.32, 20-Sep-2022
604,Revenue,CAHD,South - Commissioned Services,Fees & Charges Income - General,Avon Valley Care Home,0.00, 20-Sep-2022
605,Revenue,CAHD,South - Commissioned Services,Fees & Charges Income - General,Avon Valley Care Home,-1972.56, 20-Sep-2022
606,Revenue,CAHD,South - Commissioned Services,Fees & Charges Income - General,Avon Valley Care Home,-663.80, 20-Sep-2022
607,Revenue,CAHD,South - Commissioned Services,Fees & Charges Income - General,Avon Valley Care Home,-1202.56, 20-Sep-2022
608,Revenue,CAHD,South - Commissioned Services,Fees & Charges Income - General,Avon Valley Care Home,-1100.24, 20-Sep-2022
609,Revenue,CAHD,South - Commissioned Services,Fees & Charges Income - General,Avon Valley Care Home,-627.80, 20-Sep-2022
610,Revenue,CAHD,South - Commissioned Services,Fees & Charges Income - General,Avon Valley Care Home,-1175.92, 20-Sep-2022
611,Revenue,CAHD,South - Commissioned Services,Fees & Charges Income - General,Avon Valley Care Home,-793.84, 20-Sep-2022
612,Revenue,CAHD,South - Commissioned Services,Fees & Charges Income - General,Avon Valley Care Home,-10364.32, 20-Sep-2022
613,Revenue,CAHD,North - Community based support,Permanent Residential,Avon Valley Care Home,4400.00, 20-Sep-2022
614,Revenue,CAHD,North - Community based support,Fees & Charges Income - General,Avon Valley Care Home,-895.20, 20-Sep-2022
615,Revenue,CAHD,South - S117,Permanent Residential,Avon Valley Care Home,4337.52, 20-Sep-2022
616,Revenue,CAHD,North - Community based support,Permanent Residential,Avonmere Care Home,3700.00, 20-Sep-2022
617,Revenue,CAHD,North - Community based support,Permanent Residential,Avonmere Care Home,4960.80, 20-Sep-2022
618,Revenue,CAHD,North - Community based support,Permanent Residential,Avonmere Care Home,-1170.00, 20-Sep-2022
619,Revenue,CAHD,North - Community based support,Permanent Residential,Avonmere Care Home,4793.00, 20-Sep-2022
620,Revenue,CAHD,North - Community based support,Permanent Residential,Avonmere Care Home,4876.00, 20-Sep-2022
621,Revenue,CAHD,North - Community based support,Permanent Residential,Avonmere Care Home,-178.68, 20-Sep-2022
622,Revenue,CAHD,North - Community based support,Permanent Residential,Avonmere Care Home,2661.43, 20-Sep-2022
623,Revenue,CAHD,North - Community based support,Fees & Charges Income - General,Avonmere Care Home,-560.54, 20-Sep-2022
624,Revenue,CAHD,North - Community based support,Fees & Charges Income - General,Avonmere Care Home,-1090.32, 20-Sep-2022
625,Revenue,CAHD,North - Community based support,Fees & Charges Income - General,Avonmere Care Home,470.94, 20-Sep-2022
626,Revenue,CAHD,North - Community based support,Fees & Charges Income - General,Avonmere Care Home,-1002.96, 20-Sep-2022
627,Revenue,CAHD,North - Community based support,Fees & Charges Income - General,Avonmere Care Home,-1111.72, 20-Sep-2022
628,Revenue,CAHD,North - Community based support,Fees & Charges Income - General,Avonmere Care Home,167.28, 20-Sep-2022
629,Revenue,CAHD,North - Community based support,Fees & Charges Income - General,Avonmere Care Home,-925.87, 20-Sep-2022
630,Revenue,CAHD,South Glos Users in South Glos Homes,Permanent Nursing,Badminton Place,203.64, 20-Sep-2022
631,Revenue,CAHD,South Glos Users in South Glos Homes,Permanent Nursing,Badminton Place,1099.92, 20-Sep-2022
632,Revenue,CAHD,South Glos Users in South Glos Homes,Permanent Nursing,Badminton Place,1980.25, 20-Sep-2022
633,Revenue,CAHD,South Glos Users in South Glos Homes,Permanent Nursing,Badminton Place,761.28, 20-Sep-2022
634,Revenue,CAHD,South Glos Users in South Glos Homes,Permanent Nursing,Badminton Place,1958.32, 20-Sep-2022
635,Revenue,CAHD,South Glos Users in South Glos Homes,Permanent Nursing,Badminton Place,1328.62, 20-Sep-2022
636,Revenue,CAHD,South Glos Users in South Glos Homes,Permanent Nursing,Badminton Place,1851.80, 20-Sep-2022
637,Revenue,CAHD,South Glos Users in South Glos Homes,Permanent Nursing,Badminton Place,1441.40, 20-Sep-2022
638,Revenue,CAHD,South Glos Users in South Glos Homes,Permanent Nursing,Badminton Place,256.89, 20-Sep-2022
639,Revenue,CAHD,South Glos Users in South Glos Homes,Permanent Nursing,Badminton Place,1319.22, 20-Sep-2022
640,Revenue,CAHD,Central - Commissioned Services,Permanent Residential,Badminton Place,5400.00, 20-Sep-2022
641,Revenue,CAHD,Central - Commissioned Services,Permanent Residential,Badminton Place,8000.00, 20-Sep-2022
642,Revenue,CAHD,Central - Commissioned Services,Permanent Nursing,Badminton Place,6352.00, 20-Sep-2022
643,Revenue,CAHD,Central - Commissioned Services,Fees & Charges Income - General,Badminton Place,-981.40, 20-Sep-2022
644,Revenue,CAHD,Central - Commissioned Services,Fees & Charges Income - General,Badminton Place,-1330.40, 20-Sep-2022
645,Revenue,CAHD,Central - Commissioned Services,Fees & Charges Income - General,Badminton Place,-438.80, 20-Sep-2022
646,Revenue,CAHD,South - Commissioned Services,Permanent Residential,Badminton Place,3136.52, 20-Sep-2022
647,Revenue,CAHD,South - Commissioned Services,Fees & Charges Income - General,Badminton Place,-1502.80, 20-Sep-2022
648,Revenue,CAHD,North - Community based support,Permanent Residential,Badminton Place,4480.00, 20-Sep-2022
649,Revenue,CAHD,North - Community based support,Permanent Nursing,Badminton Place,5156.16, 20-Sep-2022
650,Revenue,CAHD,North - Community based support,Permanent Nursing,Badminton Place,5974.00, 20-Sep-2022
651,Revenue,CAHD,North - Community based support,Fees & Charges Income - General,Badminton Place,-689.68, 20-Sep-2022
652,Revenue,CAHD,North - Community based support,Fees & Charges Income - General,Badminton Place,-991.64, 20-Sep-2022
653,Revenue,CAHD,North - Community based support,Permanent Nursing,Bamfield Lodge,11514.29, 20-Sep-2022
654,Revenue,CAHD,North - Community based support,Fees & Charges Income - General,Bamfield Lodge,-2038.56, 20-Sep-2022
655,Revenue,CAHD,Hospital Team,Fees - General,Individual,4275.00, 30-Sep-2022
656,Revenue,CAHD,Ukranian Refugees,Interpreting & Translation,Bawa Healthcare & Leisure,870.00, 26-Sep-2022
657,Revenue,CAHD,South Glos Users in South Glos Homes,Permanent Nursing,Beaufort Grange Care Home,87.72, 20-Sep-2022
658,Revenue,CAHD,South Glos Users in South Glos Homes,Permanent Nursing,Beaufort Grange Care Home,1980.25, 20-Sep-2022
659,Revenue,CAHD,South Glos Users in South Glos Homes,Permanent Nursing,Beaufort Grange Care Home,59.52, 20-Sep-2022
660,Revenue,CAHD,South Glos Users in South Glos Homes,Permanent Nursing,Beaufort Grange Care Home,438.60, 20-Sep-2022
661,Revenue,CAHD,South Glos Users in South Glos Homes,Permanent Nursing,Beaufort Grange Care Home,109.65, 20-Sep-2022
662,Revenue,CAHD,South Glos Users in South Glos Homes,Permanent Nursing,Beaufort Grange Care Home,1980.25, 20-Sep-2022
663,Revenue,CAHD,South Glos Users in South Glos Homes,Permanent Nursing,Beaufort Grange Care Home,980.58, 20-Sep-2022
664,Revenue,CAHD,South Glos Users in South Glos Homes,Permanent Nursing,Beaufort Grange Care Home,1648.17, 20-Sep-2022
665,Revenue,CAHD,South Glos Users in South Glos Homes,Permanent Nursing,Beaufort Grange Care Home,1980.25, 20-Sep-2022
666,Revenue,CAHD,South Glos Users in South Glos Homes,Permanent Nursing,Beaufort Grange Care Home,1980.25, 20-Sep-2022
667,Revenue,CAHD,South Glos Users in South Glos Homes,Permanent Nursing,Beaufort Grange Care Home,166.04, 20-Sep-2022
668,Revenue,CAHD,South Glos Users in South Glos Homes,Permanent Nursing,Beaufort Grange Care Home,294.49, 20-Sep-2022
669,Revenue,CAHD,South Glos Users in South Glos Homes,Permanent Nursing,Beaufort Grange Care Home,1980.25, 20-Sep-2022
670,Revenue,CAHD,South Glos Users in South Glos Homes,Permanent Nursing,Beaufort Grange Care Home,451.13, 20-Sep-2022
671,Revenue,CAHD,South Glos Users in South Glos Homes,Permanent Nursing,Beaufort Grange Care Home,169.18, 20-Sep-2022
672,Revenue,CAHD,South Glos Users in South Glos Homes,Permanent Nursing,Beaufort Grange Care Home,523.18, 20-Sep-2022
673,Revenue,CAHD,South Glos Users in South Glos Homes,Permanent Nursing,Beaufort Grange Care Home,21.93, 20-Sep-2022
674,Revenue,CAHD,South Glos Users in South Glos Homes,Permanent Nursing,Beaufort Grange Care Home,1980.25, 20-Sep-2022
675,Revenue,CAHD,South Glos Users in South Glos Homes,Permanent Nursing,Beaufort Grange Care Home,1980.25, 20-Sep-2022
676,Revenue,CAHD,South Glos Users in South Glos Homes,Permanent Nursing,Beaufort Grange Care Home,1432.00, 20-Sep-2022
677,Revenue,CAHD,South Glos Users in South Glos Homes,Permanent Nursing,Beaufort Grange Care Home,1980.25, 20-Sep-2022
678,Revenue,CAHD,South Glos Users in South Glos Homes,Permanent Nursing,Beaufort Grange Care Home,426.07, 20-Sep-2022
679,Revenue,CAHD,South Glos Users in South Glos Homes,Permanent Nursing,Beaufort Grange Care Home,795.75, 20-Sep-2022
680,Revenue,CAHD,South Glos Users in South Glos Homes,Permanent Nursing,Beaufort Grange Care Home,28.19, 20-Sep-2022
681,Revenue,CAHD,South Glos Users in South Glos Homes,Permanent Nursing,Beaufort Grange Care Home,382.21, 20-Sep-2022
682,Revenue,CAHD,South Glos Users in South Glos Homes,Permanent Nursing,Beaufort Grange Care Home,1980.25, 20-Sep-2022
683,Revenue,CAHD,South Glos Users in South Glos Homes,Permanent Nursing,Beaufort Grange Care Home,122.18, 20-Sep-2022
684,Revenue,CAHD,South Glos Users in South Glos Homes,Permanent Nursing,Beaufort Grange Care Home,629.70, 20-Sep-2022
685,Revenue,CAHD,South Glos Users in South Glos Homes,Permanent Nursing,Beaufort Grange Care Home,1980.25, 20-Sep-2022
686,Revenue,CAHD,South Glos Users in South Glos Homes,Permanent Nursing,Beaufort Grange Care Home,1980.25, 20-Sep-2022
687,Revenue,CAHD,South Glos Users in South Glos Homes,Permanent Nursing,Beaufort Grange Care Home,1980.25, 20-Sep-2022
688,Revenue,CAHD,South Glos Users in South Glos Homes,Permanent Nursing,Beaufort Grange Care Home,1980.25, 20-Sep-2022
689,Revenue,CAHD,South Glos Users in South Glos Homes,Permanent Nursing,Beaufort Grange Care Home,1980.25, 20-Sep-2022
690,Revenue,CAHD,South Glos Users in South Glos Homes,Permanent Nursing,Beaufort Grange Care Home,1980.25, 20-Sep-2022
691,Revenue,CAHD,South Glos Users in South Glos Homes,Permanent Nursing,Beaufort Grange Care Home,814.76, 20-Sep-2022
692,Revenue,CAHD,South Glos Users in South Glos Homes,Permanent Nursing,Beaufort Grange Care Home,1980.25, 20-Sep-2022
693,Revenue,CAHD,South Glos Users in South Glos Homes,Permanent Nursing,Beaufort Grange Care Home,1980.25, 20-Sep-2022
694,Revenue,CAHD,South Glos Users in South Glos Homes,Permanent Nursing,Beaufort Grange Care Home,1300.43, 20-Sep-2022
695,Revenue,CAHD,South Glos Users in South Glos Homes,Permanent Nursing,Beaufort Grange Care Home,964.92, 20-Sep-2022
696,Revenue,CAHD,South Glos Users in South Glos Homes,Permanent Nursing,Beaufort Grange Care Home,366.54, 20-Sep-2022
697,Revenue,CAHD,South Glos Users in South Glos Homes,Permanent Nursing,Beaufort Grange Care Home,1980.25, 20-Sep-2022
698,Revenue,CAHD,South Glos Users in South Glos Homes,Permanent Nursing,Beaufort Grange Care Home,1980.25, 20-Sep-2022
699,Revenue,CAHD,South Glos Users in South Glos Homes,Permanent Nursing,Beaufort Grange Care Home,46.99, 20-Sep-2022
700,Revenue,CAHD,South Glos Users in South Glos Homes,Permanent Nursing,Beaufort Grange Care Home,1980.25, 20-Sep-2022
701,Revenue,CAHD,South Glos Users in South Glos Homes,Permanent Nursing,Beaufort Grange Care Home,482.46, 20-Sep-2022
702,Revenue,CAHD,South Glos Users in South Glos Homes,Permanent Nursing,Beaufort Grange Care Home,811.41, 20-Sep-2022
703,Revenue,CAHD,South Glos Users in South Glos Homes,Permanent Nursing,Beaufort Grange Care Home,1980.25, 20-Sep-2022
704,Revenue,CAHD,South Glos Users in South Glos Homes,Permanent Nursing,Beaufort Grange Care Home,1980.25, 20-Sep-2022
705,Revenue,CAHD,South Glos Users in South Glos Homes,Permanent Nursing,Beaufort Grange Care Home,1980.25, 20-Sep-2022
706,Revenue,CAHD,South Glos Users in South Glos Homes,Permanent Nursing,Beaufort Grange Care Home,516.92, 20-Sep-2022
707,Revenue,CAHD,South Glos Users in South Glos Homes,Permanent Nursing,Beaufort Grange Care Home,1980.25, 20-Sep-2022
708,Revenue,CAHD,South Glos Users in South Glos Homes,Permanent Nursing,Beaufort Grange Care Home,1980.25, 20-Sep-2022
709,Revenue,CAHD,South Glos Users in South Glos Homes,Permanent Nursing,Beaufort Grange Care Home,413.54, 20-Sep-2022
710,Revenue,CAHD,South Glos Users in South Glos Homes,Permanent Nursing,Beaufort Grange Care Home,1980.25, 20-Sep-2022
711,Revenue,CAHD,South Glos Users in South Glos Homes,Permanent Nursing,Beaufort Grange Care Home,15.66, 20-Sep-2022
712,Revenue,CAHD,South Glos Users in South Glos Homes,Permanent Nursing,Beaufort Grange Care Home,1980.25, 20-Sep-2022
713,Revenue,CAHD,South Glos Users in South Glos Homes,Permanent Nursing,Beaufort Grange Care Home,780.08, 20-Sep-2022
714,Revenue,CAHD,South Glos Users in South Glos Homes,Permanent Nursing,Beaufort Grange Care Home,1729.62, 20-Sep-2022
715,Revenue,CAHD,South Glos Users in South Glos Homes,Permanent Nursing,Beaufort Grange Care Home,328.95, 20-Sep-2022
716,Revenue,CAHD,South Glos Users in South Glos Homes,Permanent Nursing,Beaufort Grange Care Home,28.19, 20-Sep-2022
717,Revenue,CAHD,South Glos Users in South Glos Homes,Permanent Nursing,Beaufort Grange Care Home,175.44, 20-Sep-2022
718,Revenue,CAHD,South Glos Users in South Glos Homes,Permanent Nursing,Beaufort Grange Care Home,1450.80, 20-Sep-2022
719,Revenue,CAHD,South Glos Users in South Glos Homes,Permanent Nursing,Beaufort Grange Care Home,1406.94, 20-Sep-2022
720,Revenue,CAHD,South Glos Users in South Glos Homes,Permanent Nursing,Beaufort Grange Care Home,1378.74, 20-Sep-2022
721,Revenue,CAHD,South Glos Users in South Glos Homes,Permanent Nursing,Beaufort Grange Care Home,34.46, 20-Sep-2022
722,Revenue,CAHD,South Glos Users in South Glos Homes,Permanent Nursing,Beaufort Grange Care Home,0.00, 20-Sep-2022
723,Revenue,CAHD,South Glos Users in South Glos Homes,Permanent Nursing,Beaufort Grange Care Home,37.60, 20-Sep-2022
724,Revenue,CAHD,South Glos Users in South Glos Homes,Permanent Nursing,Beaufort Grange Care Home,72.06, 20-Sep-2022
725,Revenue,CAHD,South Glos Users in South Glos Homes,Permanent Nursing,Beaufort Grange Care Home,924.48, 20-Sep-2022
726,Revenue,CAHD,South Glos Users in South Glos Homes,Permanent Nursing,Beaufort Grange Care Home,836.76, 20-Sep-2022
727,Revenue,CAHD,Central - Commissioned Services,Permanent Residential,Beaufort Grange Care Home,7200.00, 20-Sep-2022
728,Revenue,CAHD,Central - Commissioned Services,Permanent Nursing,Beaufort Grange Care Home,5500.00, 20-Sep-2022
729,Revenue,CAHD,Central - Commissioned Services,Permanent Nursing,Beaufort Grange Care Home,11684.00, 20-Sep-2022
730,Revenue,CAHD,Central - Commissioned Services,Permanent Nursing,Beaufort Grange Care Home,5400.00, 20-Sep-2022
731,Revenue,CAHD,Central - Commissioned Services,Permanent Nursing,Beaufort Grange Care Home,5500.00, 20-Sep-2022
732,Revenue,CAHD,Central - Commissioned Services,Permanent Nursing,Beaufort Grange Care Home,5449.60, 20-Sep-2022
733,Revenue,CAHD,Central - Commissioned Services,Fees & Charges Income - General,Beaufort Grange Care Home,613.04, 20-Sep-2022
734,Revenue,CAHD,Central - Commissioned Services,Fees & Charges Income - General,Beaufort Grange Care Home,-607.80, 20-Sep-2022
735,Revenue,CAHD,Central - Commissioned Services,Fees & Charges Income - General,Beaufort Grange Care Home,-894.80, 20-Sep-2022
736,Revenue,CAHD,South - Commissioned Services,Permanent Nursing,Beaufort Grange Care Home,6400.00, 20-Sep-2022
737,Revenue,CAHD,North - Community based support,Permanent Nursing,Beaufort Grange Care Home,4369.60, 20-Sep-2022
738,Revenue,CAHD,North - Community based support,Permanent Nursing,Beaufort Grange Care Home,10620.00, 20-Sep-2022
739,Revenue,CAHD,North - Community based support,Fees & Charges Income - General,Beaufort Grange Care Home,-627.80, 20-Sep-2022
740,Revenue,CAHD,North - Community based support,Fees & Charges Income - General,Beaufort Grange Care Home,-438.80, 20-Sep-2022
741,Revenue,CAHD,MH Purchasing - Younger,Permanent Residential,Beaufort Grange Care Home,-914.29, 20-Sep-2022
742,Revenue,CAHD,MH Purchasing - Younger,Fees & Charges Income - General,Beaufort Grange Care Home,21.03, 20-Sep-2022
743,Revenue,CAHD,Central Team - S117,Permanent Nursing,Beaufort Grange Care Home,6817.94, 20-Sep-2022
744,Revenue,CAHD,North - S117,Permanent Nursing,Beaufort Grange Care Home,893.26, 20-Sep-2022
745,Revenue,CAHD,Central - Commissioned Services,Permanent Residential,Beaufort House,3171.36, 20-Sep-2022
746,Revenue,CAHD,Central - Commissioned Services,Permanent Residential,Beaufort House,3070.00, 20-Sep-2022
747,Revenue,CAHD,Central - Commissioned Services,Permanent Residential,Beaufort House,4028.00, 20-Sep-2022
748,Revenue,CAHD,Central - Commissioned Services,Permanent Residential,Beaufort House,3582.80, 20-Sep-2022
749,Revenue,CAHD,Central - Commissioned Services,Permanent Residential,Beaufort House,3392.00, 20-Sep-2022
750,Revenue,CAHD,Central - Commissioned Services,Permanent Residential,Beaufort House,4240.00, 20-Sep-2022
751,Revenue,CAHD,Central - Commissioned Services,Permanent Residential,Beaufort House,3816.00, 20-Sep-2022
752,Revenue,CAHD,Central - Commissioned Services,Permanent Residential,Beaufort House,3816.00, 20-Sep-2022
753,Revenue,CAHD,Central - Commissioned Services,Fees & Charges Income - General,Beaufort House,-821.12, 20-Sep-2022
754,Revenue,CAHD,Central - Commissioned Services,Fees & Charges Income - General,Beaufort House,-938.32, 20-Sep-2022
755,Revenue,CAHD,Central - Commissioned Services,Fees & Charges Income - General,Beaufort House,-731.44, 20-Sep-2022
756,Revenue,CAHD,Central - Commissioned Services,Fees & Charges Income - General,Beaufort House,-1448.48, 20-Sep-2022
757,Revenue,CAHD,Central - Commissioned Services,Fees & Charges Income - General,Beaufort House,-751.32, 20-Sep-2022
758,Revenue,CAHD,Central - Commissioned Services,Fees & Charges Income - General,Beaufort House,-627.80, 20-Sep-2022
759,Revenue,CAHD,North - Community based support,Permanent Residential,Beaufort House,4240.00, 20-Sep-2022
760,Revenue,CAHD,North - Community based support,Permanent Residential,Beaufort House,2986.32, 20-Sep-2022
761,Revenue,CAHD,North - Community based support,Permanent Residential,Beaufort House,4240.00, 20-Sep-2022
762,Revenue,CAHD,North - Community based support,Fees & Charges Income - General,Beaufort House,-1166.52, 20-Sep-2022
763,Revenue,CAHD,North - Community based support,Fees & Charges Income - General,Beaufort House,-627.80, 20-Sep-2022
764,Revenue,CAHD,North - Community based support,Fees & Charges Income - General,Beaufort House,-663.80, 20-Sep-2022
765,Revenue,CAHD,South Glos Users in South Glos Homes,Permanent Nursing,Beech House,1980.25, 20-Sep-2022
766,Revenue,CAHD,South Glos Users in South Glos Homes,Permanent Nursing,Beech House,1980.25, 20-Sep-2022
767,Revenue,CAHD,South Glos Users in South Glos Homes,Permanent Nursing,Beech House,203.64, 20-Sep-2022
768,Revenue,CAHD,South Glos Users in South Glos Homes,Permanent Nursing,Beech House,817.68, 20-Sep-2022
769,Revenue,CAHD,South Glos Users in South Glos Homes,Permanent Nursing,Beech House,435.46, 20-Sep-2022
770,Revenue,CAHD,South Glos Users in South Glos Homes,Permanent Nursing,Beech House,40.72, 20-Sep-2022
771,Revenue,CAHD,South Glos Users in South Glos Homes,Permanent Nursing,Beech House,1980.25, 20-Sep-2022
772,Revenue,CAHD,South Glos Users in South Glos Homes,Permanent Nursing,Beech House,1272.23, 20-Sep-2022
773,Revenue,CAHD,South Glos Users in South Glos Homes,Permanent Nursing,Beech House,1980.25, 20-Sep-2022
774,Revenue,CAHD,South Glos Users in South Glos Homes,Permanent Nursing,Beech House,93.99, 20-Sep-2022
775,Revenue,CAHD,South Glos Users in South Glos Homes,Permanent Nursing,Beech House,266.29, 20-Sep-2022
776,Revenue,CAHD,South Glos Users in South Glos Homes,Permanent Nursing,Beech House,1980.25, 20-Sep-2022
777,Revenue,CAHD,South Glos Users in South Glos Homes,Permanent Nursing,Beech House,1980.25, 20-Sep-2022
778,Revenue,CAHD,South Glos Users in South Glos Homes,Permanent Nursing,Beech House,457.40, 20-Sep-2022
779,Revenue,CAHD,South Glos Users in South Glos Homes,Permanent Nursing,Beech House,1980.25, 20-Sep-2022
780,Revenue,CAHD,South Glos Users in South Glos Homes,Permanent Nursing,Beech House,1093.37, 20-Sep-2022
781,Revenue,CAHD,South Glos Users in South Glos Homes,Permanent Nursing,Beech House,1165.71, 20-Sep-2022
782,Revenue,CAHD,South Glos Users in South Glos Homes,Permanent Nursing,Beech House,1156.31, 20-Sep-2022
783,Revenue,CAHD,South Glos Users in South Glos Homes,Permanent Nursing,Beech House,1980.25, 20-Sep-2022
784,Revenue,CAHD,South Glos Users in South Glos Homes,Permanent Nursing,Beech House,1858.07, 20-Sep-2022
785,Revenue,CAHD,South Glos Users in South Glos Homes,Permanent Nursing,Beech House,635.97, 20-Sep-2022
786,Revenue,CAHD,South Glos Users in South Glos Homes,Permanent Nursing,Beech House,1980.25, 20-Sep-2022
787,Revenue,CAHD,South Glos Users in South Glos Homes,Permanent Nursing,Beech House,394.74, 20-Sep-2022
788,Revenue,CAHD,South Glos Users in South Glos Homes,Permanent Nursing,Beech House,1068.59, 20-Sep-2022
789,Revenue,CAHD,South Glos Users in South Glos Homes,Permanent Nursing,Beech House,482.46, 20-Sep-2022
790,Revenue,CAHD,South Glos Users in South Glos Homes,Permanent Nursing,Beech House,1980.25, 20-Sep-2022
791,Revenue,CAHD,South Glos Users in South Glos Homes,Permanent Nursing,Beech House,454.26, 20-Sep-2022
792,Revenue,CAHD,South Glos Users in South Glos Homes,Permanent Nursing,Beech House,1008.78, 20-Sep-2022
793,Revenue,CAHD,South Glos Users in South Glos Homes,Permanent Nursing,Beech House,9.25, 20-Sep-2022
794,Revenue,CAHD,South Glos Users in South Glos Homes,Permanent Nursing,Beech House,1187.64, 20-Sep-2022
795,Revenue,CAHD,South Glos Users in South Glos Homes,Permanent Nursing,Beech House,1980.25, 20-Sep-2022
796,Revenue,CAHD,South Glos Users in South Glos Homes,Permanent Nursing,Beech House,1143.49, 20-Sep-2022
797,Revenue,CAHD,South Glos Users in South Glos Homes,Permanent Nursing,Beech House,1043.53, 20-Sep-2022
798,Revenue,CAHD,Central - Commissioned Services,Permanent Nursing,Beech House,836.76, 20-Sep-2022
799,Revenue,CAHD,South - Commissioned Services,Permanent Residential,Beech House,-4607.84, 20-Sep-2022
800,Revenue,CAHD,South - Commissioned Services,Permanent Residential,Beech House,4748.80, 20-Sep-2022
801,Revenue,CAHD,South - Commissioned Services,Fees & Charges Income - General,Beech House,-789.36, 20-Sep-2022
802,Revenue,CAHD,North - Community based support,Permanent Residential,Beech House,4727.88, 20-Sep-2022
803,Revenue,CAHD,North - Community based support,Permanent Residential,Beech House,4748.80, 20-Sep-2022
804,Revenue,CAHD,North - Community based support,Permanent Residential,Beech House,4772.80, 20-Sep-2022
805,Revenue,CAHD,North - Community based support,Permanent Residential,Beech House,4748.80, 20-Sep-2022
806,Revenue,CAHD,North - Community based support,Permanent Residential,Beech House,4664.00, 20-Sep-2022
807,Revenue,CAHD,North - Community based support,Permanent Nursing,Beech House,4660.00, 20-Sep-2022
808,Revenue,CAHD,North - Community based support,Permanent Nursing,Beech House,908.81, 20-Sep-2022
809,Revenue,CAHD,North - Community based support,Permanent Nursing,Beech House,4641.16, 20-Sep-2022
810,Revenue,CAHD,North - Community based support,Permanent Nursing,Beech House,4671.56, 20-Sep-2022
811,Revenue,CAHD,North - Community based support,Permanent Nursing,Beech House,1416.34, 20-Sep-2022
812,Revenue,CAHD,North - Community based support,Permanent Nursing,Beech House,0.00, 20-Sep-2022
813,Revenue,CAHD,North - Community based support,Permanent Nursing,Beech House,573.31, 20-Sep-2022
814,Revenue,CAHD,North - Community based support,Fees & Charges Income - General,Beech House,-627.80, 20-Sep-2022
815,Revenue,CAHD,North - Community based support,Fees & Charges Income - General,Beech House,-1904.60, 20-Sep-2022
816,Revenue,CAHD,North - Community based support,Fees & Charges Income - General,Beech House,-1356.72, 20-Sep-2022
817,Revenue,CAHD,North - Community based support,Fees & Charges Income - General,Beech House,-1856.44, 20-Sep-2022
818,Revenue,CAHD,North - Community based support,Fees & Charges Income - General,Beech House,-629.00, 20-Sep-2022
819,Revenue,CAHD,North - Community based support,Fees & Charges Income - General,Beech House,-1428.72, 20-Sep-2022
820,Revenue,CAHD,North - Community based support,Fees & Charges Income - General,Beech House,-840.16, 20-Sep-2022
821,Revenue,CAHD,North - Community based support,Fees & Charges Income - General,Beech House,-1304.60, 20-Sep-2022
822,Revenue,CAHD,Independent Special Placements - Pre 16,Other Private Contractors,Belgrave School,9604.35, 30-Sep-2022
823,Revenue,CAHD,South - S117,Permanent Residential,Bidna House,3774.24, 20-Sep-2022
824,Revenue,CAHD,Schools Specific Grant Income,Other Public Bodies,Blaise High School,500.00, 20-Sep-2022
825,Revenue,CAHD,Placements OLA Special Schools and RB,Other L.A.s - General,Blaise High School,766.85, 22-Sep-2022
826,Revenue,CAHD,Placements OLA Special Schools and RB,Other L.A.s - General,Blaise High School,766.85, 22-Sep-2022
827,Revenue,CAHD,Statemented Support Payments to OLAs,Other L.A.s - General,Blaise High School,907.83, 22-Sep-2022
828,Revenue,CAHD,Placements OLA Special Schools and RB,Other L.A.s - General,Blaise High School,766.85, 22-Sep-2022
829,Revenue,CAHD,18-25 Year Olds,Other Small Contracts,Blakehill Healthcare Ltd,1608.66, 09-Sep-2022
830,Revenue,CAHD,Central - Commissioned Services,Other Small Contracts,Blakehill Healthcare Ltd,278.04, 09-Sep-2022
831,Revenue,CAHD,Central - Commissioned Services,Other Small Contracts,Blakehill Healthcare Ltd,516.36, 09-Sep-2022
832,Revenue,CAHD,Central - Commissioned Services,Other Small Contracts,Blakehill Healthcare Ltd,1562.32, 09-Sep-2022
833,Revenue,CAHD,Central - Commissioned Services,Other Small Contracts,Blakehill Healthcare Ltd,562.70, 09-Sep-2022
834,Revenue,CAHD,Central - Commissioned Services,Other Small Contracts,Blakehill Healthcare Ltd,3051.82, 09-Sep-2022
835,Revenue,CAHD,Central - Commissioned Services,Other Small Contracts,Blakehill Healthcare Ltd,887.08, 09-Sep-2022
836,Revenue,CAHD,Central - Commissioned Services,Other Small Contracts,Blakehill Healthcare Ltd,668.62, 09-Sep-2022
837,Revenue,CAHD,Central - Commissioned Services,Other Small Contracts,Blakehill Healthcare Ltd,549.46, 09-Sep-2022
838,Revenue,CAHD,Central - Commissioned Services,Other Small Contracts,Blakehill Healthcare Ltd,562.70, 09-Sep-2022
839,Revenue,CAHD,Central - Commissioned Services,Other Small Contracts,Blakehill Healthcare Ltd,575.94, 09-Sep-2022
840,Revenue,CAHD,Central - Commissioned Services,Other Small Contracts,Blakehill Healthcare Ltd,125.78, 09-Sep-2022
841,Revenue,CAHD,Central - Commissioned Services,Other Small Contracts,Blakehill Healthcare Ltd,1211.46, 09-Sep-2022
842,Revenue,CAHD,Central - Commissioned Services,Other Small Contracts,Blakehill Healthcare Ltd,2250.80, 09-Sep-2022
843,Revenue,CAHD,South - Commissioned Services,Other Small Contracts,Blakehill Healthcare Ltd,92.68, 09-Sep-2022
844,Revenue,CAHD,South - Commissioned Services,Other Small Contracts,Blakehill Healthcare Ltd,959.90, 09-Sep-2022
845,Revenue,CAHD,South - Commissioned Services,Other Small Contracts,Blakehill Healthcare Ltd,549.46, 09-Sep-2022
846,Revenue,CAHD,South - Commissioned Services,Other Small Contracts,Blakehill Healthcare Ltd,4389.01, 09-Sep-2022
847,Revenue,CAHD,South - Commissioned Services,Other Small Contracts,Blakehill Healthcare Ltd,761.30, 09-Sep-2022
848,Revenue,CAHD,South - Commissioned Services,Other Small Contracts,Blakehill Healthcare Ltd,9762.91, 09-Sep-2022
849,Revenue,CAHD,South - Commissioned Services,Other Small Contracts,Blakehill Healthcare Ltd,1251.18, 09-Sep-2022
850,Revenue,CAHD,South - Commissioned Services,Other Small Contracts,Blakehill Healthcare Ltd,2780.40, 09-Sep-2022
851,Revenue,CAHD,South - Commissioned Services,Other Small Contracts,Blakehill Healthcare Ltd,668.62, 09-Sep-2022
852,Revenue,CAHD,South - Commissioned Services,Other Small Contracts,Blakehill Healthcare Ltd,271.42, 09-Sep-2022
853,Revenue,CAHD,South - Commissioned Services,Other Small Contracts,Blakehill Healthcare Ltd,522.98, 09-Sep-2022
854,Revenue,CAHD,South - Commissioned Services,Other Small Contracts,Blakehill Healthcare Ltd,1403.44, 09-Sep-2022
855,Revenue,CAHD,South - Commissioned Services,Other Small Contracts,Blakehill Healthcare Ltd,675.24, 09-Sep-2022
856,Revenue,CAHD,South - Commissioned Services,Other Small Contracts,Blakehill Healthcare Ltd,1204.84, 09-Sep-2022
857,Revenue,CAHD,South - Commissioned Services,Other Small Contracts,Blakehill Healthcare Ltd,966.52, 09-Sep-2022
858,Revenue,CAHD,North - Community based support,Other Small Contracts,Blakehill Healthcare Ltd,754.68, 09-Sep-2022
859,Revenue,CAHD,North - Community based support,Other Small Contracts,Blakehill Healthcare Ltd,1390.20, 09-Sep-2022
860,Revenue,CAHD,North - Community based support,Other Small Contracts,Blakehill Healthcare Ltd,10616.27, 09-Sep-2022
861,Revenue,CAHD,North - Community based support,Other Small Contracts,Blakehill Healthcare Ltd,2753.92, 09-Sep-2022
862,Revenue,CAHD,North - Community based support,Other Small Contracts,Blakehill Healthcare Ltd,1138.64, 09-Sep-2022
863,Revenue,CAHD,18-25 Year Olds,Other Small Contracts,Blakehill Healthcare Ltd,4051.44, 09-Sep-2022
864,Revenue,CAHD,Central - Commissioned Services,Other Small Contracts,Blakehill Healthcare Ltd,748.06, 09-Sep-2022
865,Revenue,CAHD,Central - Commissioned Services,Other Small Contracts,Blakehill Healthcare Ltd,1257.80, 09-Sep-2022
866,Revenue,CAHD,Central - Commissioned Services,Other Small Contracts,Blakehill Healthcare Ltd,3760.16, 09-Sep-2022
867,Revenue,CAHD,Central - Commissioned Services,Other Small Contracts,Blakehill Healthcare Ltd,1529.22, 09-Sep-2022
868,Revenue,CAHD,Central - Commissioned Services,Other Small Contracts,Blakehill Healthcare Ltd,251.56, 09-Sep-2022
869,Revenue,CAHD,Central - Commissioned Services,Other Small Contracts,Blakehill Healthcare Ltd,8036.68, 09-Sep-2022
870,Revenue,CAHD,Central - Commissioned Services,Other Small Contracts,Blakehill Healthcare Ltd,1853.60, 09-Sep-2022
871,Revenue,CAHD,Central - Commissioned Services,Other Small Contracts,Blakehill Healthcare Ltd,890.29, 09-Sep-2022
872,Revenue,CAHD,Central - Commissioned Services,Other Small Contracts,Blakehill Healthcare Ltd,880.46, 09-Sep-2022
873,Revenue,CAHD,Central - Commissioned Services,Other Small Contracts,Blakehill Healthcare Ltd,1098.92, 09-Sep-2022
874,Revenue,CAHD,Central - Commissioned Services,Other Small Contracts,Blakehill Healthcare Ltd,105.92, 09-Sep-2022
875,Revenue,CAHD,Central - Commissioned Services,Other Small Contracts,Blakehill Healthcare Ltd,1476.26, 09-Sep-2022
876,Revenue,CAHD,Central - Commissioned Services,Other Small Contracts,Blakehill Healthcare Ltd,1562.32, 09-Sep-2022
877,Revenue,CAHD,Central - Commissioned Services,Other Small Contracts,Blakehill Healthcare Ltd,185.36, 09-Sep-2022
878,Revenue,CAHD,Central - Commissioned Services,Other Small Contracts,Blakehill Healthcare Ltd,5977.86, 09-Sep-2022
879,Revenue,CAHD,South - Commissioned Services,Other Small Contracts,Blakehill Healthcare Ltd,2634.76, 09-Sep-2022
880,Revenue,CAHD,South - Commissioned Services,Other Small Contracts,Blakehill Healthcare Ltd,1476.26, 09-Sep-2022
881,Revenue,CAHD,South - Commissioned Services,Other Small Contracts,Blakehill Healthcare Ltd,11403.57, 09-Sep-2022
882,Revenue,CAHD,South - Commissioned Services,Other Small Contracts,Blakehill Healthcare Ltd,2250.80, 09-Sep-2022
883,Revenue,CAHD,South - Commissioned Services,Other Small Contracts,Blakehill Healthcare Ltd,27475.14, 09-Sep-2022
884,Revenue,CAHD,South - Commissioned Services,Other Small Contracts,Blakehill Healthcare Ltd,3581.42, 09-Sep-2022
885,Revenue,CAHD,South - Commissioned Services,Other Small Contracts,Blakehill Healthcare Ltd,4137.50, 09-Sep-2022
886,Revenue,CAHD,South - Commissioned Services,Other Small Contracts,Blakehill Healthcare Ltd,1733.99, 09-Sep-2022
887,Revenue,CAHD,South - Commissioned Services,Other Small Contracts,Blakehill Healthcare Ltd,734.82, 09-Sep-2022
888,Revenue,CAHD,South - Commissioned Services,Other Small Contracts,Blakehill Healthcare Ltd,3634.38, 09-Sep-2022
889,Revenue,CAHD,South - Commissioned Services,Other Small Contracts,Blakehill Healthcare Ltd,3700.58, 09-Sep-2022
890,Revenue,CAHD,South - Commissioned Services,Other Small Contracts,Blakehill Healthcare Ltd,1787.40, 09-Sep-2022
891,Revenue,CAHD,South - Commissioned Services,Other Small Contracts,Blakehill Healthcare Ltd,3098.16, 09-Sep-2022
892,Revenue,CAHD,South - Commissioned Services,Other Small Contracts,Blakehill Healthcare Ltd,2555.32, 09-Sep-2022
893,Revenue,CAHD,North - Community based support,Other Small Contracts,Blakehill Healthcare Ltd,3369.58, 09-Sep-2022
894,Revenue,CAHD,North - Community based support,Other Small Contracts,Blakehill Healthcare Ltd,28953.22, 09-Sep-2022
895,Revenue,CAHD,North - Community based support,Other Small Contracts,Blakehill Healthcare Ltd,3488.74, 09-Sep-2022
896,Revenue,CAHD,North - Community based support,Other Small Contracts,Blakehill Healthcare Ltd,1423.30, 09-Sep-2022
897,Revenue,CAHD,North - Community based support,Other Small Contracts,Blakehill Healthcare Ltd,2952.52, 09-Sep-2022
898,Revenue,CAHD,18-25 Year Olds,Other Small Contracts,Blakehill Healthcare Ltd,1582.18, 28-Sep-2022
899,Revenue,CAHD,Central - Commissioned Services,Other Small Contracts,Blakehill Healthcare Ltd,231.70, 28-Sep-2022
900,Revenue,CAHD,Central - Commissioned Services,Other Small Contracts,Blakehill Healthcare Ltd,509.74, 28-Sep-2022
901,Revenue,CAHD,Central - Commissioned Services,Other Small Contracts,Blakehill Healthcare Ltd,1463.02, 28-Sep-2022
902,Revenue,CAHD,Central - Commissioned Services,Other Small Contracts,Blakehill Healthcare Ltd,185.36, 28-Sep-2022
903,Revenue,CAHD,Central - Commissioned Services,Other Small Contracts,Blakehill Healthcare Ltd,3058.44, 28-Sep-2022
904,Revenue,CAHD,Central - Commissioned Services,Other Small Contracts,Blakehill Healthcare Ltd,642.14, 28-Sep-2022
905,Revenue,CAHD,Central - Commissioned Services,Other Small Contracts,Blakehill Healthcare Ltd,231.70, 28-Sep-2022
906,Revenue,CAHD,Central - Commissioned Services,Other Small Contracts,Blakehill Healthcare Ltd,86.06, 28-Sep-2022
907,Revenue,CAHD,Central - Commissioned Services,Other Small Contracts,Blakehill Healthcare Ltd,549.46, 28-Sep-2022
908,Revenue,CAHD,Central - Commissioned Services,Other Small Contracts,Blakehill Healthcare Ltd,278.04, 28-Sep-2022
909,Revenue,CAHD,Central - Commissioned Services,Other Small Contracts,Blakehill Healthcare Ltd,417.06, 28-Sep-2022
910,Revenue,CAHD,Central - Commissioned Services,Other Small Contracts,Blakehill Healthcare Ltd,370.72, 28-Sep-2022
911,Revenue,CAHD,Central - Commissioned Services,Other Small Contracts,Blakehill Healthcare Ltd,423.68, 28-Sep-2022
912,Revenue,CAHD,Central - Commissioned Services,Other Small Contracts,Blakehill Healthcare Ltd,377.34, 28-Sep-2022
913,Revenue,CAHD,Central - Commissioned Services,Other Small Contracts,Blakehill Healthcare Ltd,1211.46, 28-Sep-2022
914,Revenue,CAHD,Central - Commissioned Services,Other Small Contracts,Blakehill Healthcare Ltd,820.88, 28-Sep-2022
915,Revenue,CAHD,Central - Commissioned Services,Other Small Contracts,Blakehill Healthcare Ltd,801.02, 28-Sep-2022
916,Revenue,CAHD,Central - Commissioned Services,Other Small Contracts,Blakehill Healthcare Ltd,2217.70, 28-Sep-2022
917,Revenue,CAHD,Central - Commissioned Services,Other Small Contracts,Blakehill Healthcare Ltd,377.34, 28-Sep-2022
918,Revenue,CAHD,South - Commissioned Services,Other Small Contracts,Blakehill Healthcare Ltd,668.62, 28-Sep-2022
919,Revenue,CAHD,South - Commissioned Services,Other Small Contracts,Blakehill Healthcare Ltd,172.12, 28-Sep-2022
920,Revenue,CAHD,South - Commissioned Services,Other Small Contracts,Blakehill Healthcare Ltd,2019.10, 28-Sep-2022
921,Revenue,CAHD,South - Commissioned Services,Other Small Contracts,Blakehill Healthcare Ltd,959.90, 28-Sep-2022
922,Revenue,CAHD,South - Commissioned Services,Other Small Contracts,Blakehill Healthcare Ltd,4192.58, 28-Sep-2022
923,Revenue,CAHD,South - Commissioned Services,Other Small Contracts,Blakehill Healthcare Ltd,880.46, 28-Sep-2022
924,Revenue,CAHD,South - Commissioned Services,Other Small Contracts,Blakehill Healthcare Ltd,9610.98, 28-Sep-2022
925,Revenue,CAHD,South - Commissioned Services,Other Small Contracts,Blakehill Healthcare Ltd,913.56, 28-Sep-2022
926,Revenue,CAHD,South - Commissioned Services,Other Small Contracts,Blakehill Healthcare Ltd,2806.88, 28-Sep-2022
927,Revenue,CAHD,South - Commissioned Services,Other Small Contracts,Blakehill Healthcare Ltd,695.10, 28-Sep-2022
928,Revenue,CAHD,South - Commissioned Services,Other Small Contracts,Blakehill Healthcare Ltd,370.72, 28-Sep-2022
929,Revenue,CAHD,South - Commissioned Services,Other Small Contracts,Blakehill Healthcare Ltd,1390.20, 28-Sep-2022
930,Revenue,CAHD,South - Commissioned Services,Other Small Contracts,Blakehill Healthcare Ltd,218.46, 28-Sep-2022
931,Revenue,CAHD,South - Commissioned Services,Other Small Contracts,Blakehill Healthcare Ltd,383.96, 28-Sep-2022
932,Revenue,CAHD,South - Commissioned Services,Other Small Contracts,Blakehill Healthcare Ltd,92.68, 28-Sep-2022
933,Revenue,CAHD,South - Commissioned Services,Other Small Contracts,Blakehill Healthcare Ltd,979.76, 28-Sep-2022
934,Revenue,CAHD,North - Community based support,Other Small Contracts,Blakehill Healthcare Ltd,556.08, 28-Sep-2022
935,Revenue,CAHD,North - Community based support,Other Small Contracts,Blakehill Healthcare Ltd,1277.66, 28-Sep-2022
936,Revenue,CAHD,North - Community based support,Other Small Contracts,Blakehill Healthcare Ltd,847.36, 28-Sep-2022
937,Revenue,CAHD,North - Community based support,Other Small Contracts,Blakehill Healthcare Ltd,1337.24, 28-Sep-2022
938,Revenue,CAHD,North - Community based support,Other Small Contracts,Blakehill Healthcare Ltd,8649.91, 28-Sep-2022
939,Revenue,CAHD,North - Community based support,Other Small Contracts,Blakehill Healthcare Ltd,1006.24, 28-Sep-2022
940,Revenue,CAHD,North - Community based support,Other Small Contracts,Blakehill Healthcare Ltd,1118.78, 28-Sep-2022
941,Revenue,CAHD,Holiday Activities & Food Grant,Other Supplies & Services,Bloodhound Education Limited,5400.00, 07-Sep-2022
942,Revenue,CAHD,South Glos Users in South Glos Homes,Permanent Nursing,Blossom Fields Nursing Home,1980.25, 20-Sep-2022
943,Revenue,CAHD,South Glos Users in South Glos Homes,Permanent Nursing,Blossom Fields Nursing Home,1143.49, 20-Sep-2022
944,Revenue,CAHD,South Glos Users in South Glos Homes,Permanent Nursing,Blossom Fields Nursing Home,159.78, 20-Sep-2022
945,Revenue,CAHD,South Glos Users in South Glos Homes,Permanent Nursing,Blossom Fields Nursing Home,90.85, 20-Sep-2022
946,Revenue,CAHD,South Glos Users in South Glos Homes,Permanent Nursing,Blossom Fields Nursing Home,466.80, 20-Sep-2022
947,Revenue,CAHD,South Glos Users in South Glos Homes,Permanent Nursing,Blossom Fields Nursing Home,9.40, 20-Sep-2022
948,Revenue,CAHD,South Glos Users in South Glos Homes,Permanent Nursing,Blossom Fields Nursing Home,836.76, 20-Sep-2022
949,Revenue,CAHD,South Glos Users in South Glos Homes,Permanent Nursing,Blossom Fields Nursing Home,231.83, 20-Sep-2022
950,Revenue,CAHD,South Glos Users in South Glos Homes,Permanent Nursing,Blossom Fields Nursing Home,418.38, 20-Sep-2022
951,Revenue,CAHD,South Glos Users in South Glos Homes,Permanent Nursing,Blossom Fields Nursing Home,883.47, 20-Sep-2022
952,Revenue,CAHD,South Glos Users in South Glos Homes,Permanent Nursing,Blossom Fields Nursing Home,250.63, 20-Sep-2022
953,Revenue,CAHD,South Glos Users in South Glos Homes,Permanent Nursing,Blossom Fields Nursing Home,551.38, 20-Sep-2022
954,Revenue,CAHD,South Glos Users in South Glos Homes,Permanent Nursing,Blossom Fields Nursing Home,451.13, 20-Sep-2022
955,Revenue,CAHD,South Glos Users in South Glos Homes,Permanent Nursing,Blossom Fields Nursing Home,639.10, 20-Sep-2022
956,Revenue,CAHD,South Glos Users in South Glos Homes,Permanent Nursing,Blossom Fields Nursing Home,836.76, 20-Sep-2022
957,Revenue,CAHD,South Glos Users in South Glos Homes,Permanent Nursing,Blossom Fields Nursing Home,219.30, 20-Sep-2022
958,Revenue,CAHD,South Glos Users in South Glos Homes,Permanent Nursing,Blossom Fields Nursing Home,1804.81, 20-Sep-2022
959,Revenue,CAHD,South Glos Users in South Glos Homes,Permanent Nursing,Blossom Fields Nursing Home,1099.63, 20-Sep-2022
960,Revenue,CAHD,South Glos Users in South Glos Homes,Permanent Nursing,Blossom Fields Nursing Home,178.57, 20-Sep-2022
961,Revenue,CAHD,South Glos Users in South Glos Homes,Permanent Nursing,Blossom Fields Nursing Home,1143.49, 20-Sep-2022
962,Revenue,CAHD,South Glos Users in South Glos Homes,Permanent Nursing,Blossom Fields Nursing Home,328.95, 20-Sep-2022
963,Revenue,CAHD,South Glos Users in South Glos Homes,Permanent Nursing,Blossom Fields Nursing Home,435.47, 20-Sep-2022
964,Revenue,CAHD,South Glos Users in South Glos Homes,Permanent Nursing,Blossom Fields Nursing Home,635.45, 20-Sep-2022
965,Revenue,CAHD,South Glos Users in South Glos Homes,Permanent Nursing,Blossom Fields Nursing Home,56.39, 20-Sep-2022
966,Revenue,CAHD,South Glos Users in South Glos Homes,Permanent Nursing,Blossom Fields Nursing Home,391.61, 20-Sep-2022
967,Revenue,CAHD,South Glos Users in South Glos Homes,Permanent Nursing,Blossom Fields Nursing Home,836.76, 20-Sep-2022
968,Revenue,CAHD,South Glos Users in South Glos Homes,Permanent Nursing,Blossom Fields Nursing Home,1081.12, 20-Sep-2022
969,Revenue,CAHD,South Glos Users in South Glos Homes,Permanent Nursing,Blossom Fields Nursing Home,1460.20, 20-Sep-2022
970,Revenue,CAHD,South Glos Users in South Glos Homes,Permanent Nursing,Blossom Fields Nursing Home,1980.25, 20-Sep-2022
971,Revenue,CAHD,South Glos Users in South Glos Homes,Permanent Nursing,Blossom Fields Nursing Home,789.48, 20-Sep-2022
972,Revenue,CAHD,South Glos Users in South Glos Homes,Permanent Nursing,Blossom Fields Nursing Home,172.31, 20-Sep-2022
973,Revenue,CAHD,South Glos Users in South Glos Homes,Permanent Nursing,Blossom Fields Nursing Home,1980.25, 20-Sep-2022
974,Revenue,CAHD,South Glos Users in South Glos Homes,Permanent Nursing,Blossom Fields Nursing Home,375.94, 20-Sep-2022
975,Revenue,CAHD,South Glos Users in South Glos Homes,Permanent Nursing,Blossom Fields Nursing Home,961.79, 20-Sep-2022
976,Revenue,CAHD,South Glos Users in South Glos Homes,Permanent Nursing,Blossom Fields Nursing Home,-561.78, 20-Sep-2022
977,Revenue,CAHD,South Glos Users in South Glos Homes,Permanent Nursing,Blossom Fields Nursing Home,1980.25, 20-Sep-2022
978,Revenue,CAHD,South Glos Users in South Glos Homes,Permanent Nursing,Blossom Fields Nursing Home,1854.94, 20-Sep-2022
979,Revenue,CAHD,South Glos Users in South Glos Homes,Permanent Nursing,Blossom Fields Nursing Home,1980.25, 20-Sep-2022
980,Revenue,CAHD,South Glos Users in South Glos Homes,Permanent Nursing,Blossom Fields Nursing Home,175.44, 20-Sep-2022
981,Revenue,CAHD,South Glos Users in South Glos Homes,Permanent Nursing,Blossom Fields Nursing Home,319.55, 20-Sep-2022
982,Revenue,CAHD,South Glos Users in South Glos Homes,Permanent Nursing,Blossom Fields Nursing Home,1143.49, 20-Sep-2022
983,Revenue,CAHD,South Glos Users in South Glos Homes,Permanent Nursing,Blossom Fields Nursing Home,2928.66, 20-Sep-2022
984,Revenue,CAHD,South Glos Users in South Glos Homes,Permanent Nursing,Blossom Fields Nursing Home,1193.90, 20-Sep-2022
985,Revenue,CAHD,South Glos Users in South Glos Homes,Permanent Nursing,Blossom Fields Nursing Home,397.87, 20-Sep-2022
986,Revenue,CAHD,South Glos Users in South Glos Homes,Permanent Nursing,Blossom Fields Nursing Home,833.34, 20-Sep-2022
987,Revenue,CAHD,South Glos Users in South Glos Homes,Permanent Nursing,Blossom Fields Nursing Home,607.77, 20-Sep-2022
988,Revenue,CAHD,South Glos Users in South Glos Homes,Permanent Nursing,Blossom Fields Nursing Home,1980.25, 20-Sep-2022
989,Revenue,CAHD,South Glos Users in South Glos Homes,Permanent Nursing,Blossom Fields Nursing Home,18.80, 20-Sep-2022
990,Revenue,CAHD,South Glos Users in South Glos Homes,Permanent Nursing,Blossom Fields Nursing Home,1980.25, 20-Sep-2022
991,Revenue,CAHD,South Glos Users in South Glos Homes,Permanent Nursing,Blossom Fields Nursing Home,864.95, 20-Sep-2022
992,Revenue,CAHD,South Glos Users in South Glos Homes,Permanent Nursing,Blossom Fields Nursing Home,482.46, 20-Sep-2022
993,Revenue,CAHD,South Glos Users in South Glos Homes,Permanent Nursing,Blossom Fields Nursing Home,893.15, 20-Sep-2022
994,Revenue,CAHD,South Glos Users in South Glos Homes,Permanent Nursing,Blossom Fields Nursing Home,297.63, 20-Sep-2022
995,Revenue,CAHD,South Glos Users in South Glos Homes,Permanent Nursing,Blossom Fields Nursing Home,354.01, 20-Sep-2022
996,Revenue,CAHD,South Glos Users in South Glos Homes,Permanent Nursing,Blossom Fields Nursing Home,667.30, 20-Sep-2022
997,Revenue,CAHD,South Glos Users in South Glos Homes,Permanent Nursing,Blossom Fields Nursing Home,-1135.60, 20-Sep-2022
998,Revenue,CAHD,South Glos Users in South Glos Homes,Permanent Nursing,Blossom Fields Nursing Home,1704.56, 20-Sep-2022
999,Revenue,CAHD,South Glos Users in South Glos Homes,Permanent Nursing,Blossom Fields Nursing Home,1231.50, 20-Sep-2022
1000,Revenue,CAHD,South Glos Users in South Glos Homes,Permanent Nursing,Blossom Fields Nursing Home,9.40, 20-Sep-2022
1001,Revenue,CAHD,South Glos Users in South Glos Homes,Permanent Nursing,Blossom Fields Nursing Home,432.33, 20-Sep-2022
1002,Revenue,CAHD,South Glos Users in South Glos Homes,Permanent Nursing,Blossom Fields Nursing Home,1121.85, 20-Sep-2022
1003,Revenue,CAHD,South Glos Users in South Glos Homes,Permanent Nursing,Blossom Fields Nursing Home,836.76, 20-Sep-2022
1004,Revenue,CAHD,South Glos Users in South Glos Homes,Permanent Nursing,Blossom Fields Nursing Home,200.50, 20-Sep-2022
1005,Revenue,CAHD,South Glos Users in South Glos Homes,Permanent Nursing,Blossom Fields Nursing Home,213.03, 20-Sep-2022
1006,Revenue,CAHD,South Glos Users in South Glos Homes,Permanent Nursing,Blossom Fields Nursing Home,388.48, 20-Sep-2022
1007,Revenue,CAHD,South Glos Users in South Glos Homes,Permanent Nursing,Blossom Fields Nursing Home,316.42, 20-Sep-2022
1008,Revenue,CAHD,South Glos Users in South Glos Homes,Permanent Nursing,Blossom Fields Nursing Home,297.62, 20-Sep-2022
1009,Revenue,CAHD,South Glos Users in South Glos Homes,Permanent Nursing,Blossom Fields Nursing Home,676.70, 20-Sep-2022
1010,Revenue,CAHD,South Glos Users in South Glos Homes,Permanent Nursing,Blossom Fields Nursing Home,1980.25, 20-Sep-2022
1011,Revenue,CAHD,South Glos Users in South Glos Homes,Permanent Nursing,Blossom Fields Nursing Home,0.00, 20-Sep-2022
1012,Revenue,CAHD,South Glos Users in South Glos Homes,Permanent Nursing,Blossom Fields Nursing Home,946.41, 20-Sep-2022
1013,Revenue,CAHD,South Glos Users in South Glos Homes,Permanent Nursing,Blossom Fields Nursing Home,1464.33, 20-Sep-2022
1014,Revenue,CAHD,South Glos Users in South Glos Homes,Permanent Nursing,Blossom Fields Nursing Home,-1045.95, 20-Sep-2022
1015,Revenue,CAHD,Central - Commissioned Services,Respite Planned - Residential,Blossom Fields Nursing Home,1200.00, 20-Sep-2022
1016,Revenue,CAHD,Central - Commissioned Services,Permanent Nursing,Blossom Fields Nursing Home,9.40, 20-Sep-2022
1017,Revenue,CAHD,South - Commissioned Services,Permanent Nursing,Blossom Fields Nursing Home,5088.00, 20-Sep-2022
1018,Revenue,CAHD,South - Commissioned Services,Permanent Nursing,Blossom Fields Nursing Home,4664.00, 20-Sep-2022
1019,Revenue,CAHD,South - Commissioned Services,Permanent Nursing,Blossom Fields Nursing Home,4337.08, 20-Sep-2022
1020,Revenue,CAHD,South - Commissioned Services,Fees & Charges Income - General,Blossom Fields Nursing Home,-1482.92, 20-Sep-2022
1021,Revenue,CAHD,South - Commissioned Services,Fees & Charges Income - General,Blossom Fields Nursing Home,-997.40, 20-Sep-2022
1022,Revenue,CAHD,South - Commissioned Services,Fees & Charges Income - General,Blossom Fields Nursing Home,-750.52, 20-Sep-2022
1023,Revenue,CAHD,North - Community based support,Permanent Nursing,Blossom Fields Nursing Home,5204.88, 20-Sep-2022
1024,Revenue,CAHD,North - Community based support,Permanent Nursing,Blossom Fields Nursing Home,6755.53, 20-Sep-2022
1025,Revenue,CAHD,North - Community based support,Permanent Nursing,Blossom Fields Nursing Home,175.44, 20-Sep-2022
1026,Revenue,CAHD,North - Community based support,Permanent Nursing,Blossom Fields Nursing Home,4664.00, 20-Sep-2022
1027,Revenue,CAHD,North - Community based support,Permanent Nursing,Blossom Fields Nursing Home,4380.04, 20-Sep-2022
1028,Revenue,CAHD,North - Community based support,Permanent Nursing,Blossom Fields Nursing Home,9.40, 20-Sep-2022
1029,Revenue,CAHD,North - Community based support,Permanent Nursing,Blossom Fields Nursing Home,-3498.00, 20-Sep-2022
1030,Revenue,CAHD,North - Community based support,Permanent Nursing,Blossom Fields Nursing Home,4379.92, 20-Sep-2022
1031,Revenue,CAHD,North - Community based support,Permanent Nursing,Blossom Fields Nursing Home,4380.04, 20-Sep-2022
1032,Revenue,CAHD,North - Community based support,Permanent Nursing,Blossom Fields Nursing Home,222.43, 20-Sep-2022
1033,Revenue,CAHD,North - Community based support,Fees & Charges Income - General,Blossom Fields Nursing Home,-627.80, 20-Sep-2022
1034,Revenue,CAHD,North - Community based support,Fees & Charges Income - General,Blossom Fields Nursing Home,-533.56, 20-Sep-2022
1035,Revenue,CAHD,North - Community based support,Fees & Charges Income - General,Blossom Fields Nursing Home,-663.80, 20-Sep-2022
1036,Revenue,CAHD,North - Community based support,Fees & Charges Income - General,Blossom Fields Nursing Home,1427.86, 20-Sep-2022
1037,Revenue,CAHD,North - Community based support,Fees & Charges Income - General,Blossom Fields Nursing Home,-939.56, 20-Sep-2022
1038,Revenue,CAHD,South Glos Users in South Glos Homes,Permanent Nursing,Blossom Fields Nursing Home,281.96, 20-Sep-2022
1039,Revenue,CAHD,South Glos Users in South Glos Homes,Permanent Nursing,Blossom Fields Nursing Home,1084.25, 20-Sep-2022
1040,Revenue,CAHD,South Glos Users in South Glos Homes,Permanent Nursing,Blossom Fields Nursing Home,1538.52, 20-Sep-2022
1041,Revenue,CAHD,South Glos Users in South Glos Homes,Permanent Nursing,Blossom Fields Nursing Home,570.18, 20-Sep-2022
1042,Revenue,CAHD,South Glos Users in South Glos Homes,Permanent Nursing,Blossom Fields Nursing Home,704.89, 20-Sep-2022
1043,Revenue,CAHD,South Glos Users in South Glos Homes,Permanent Nursing,Blossom Fields Nursing Home,1435.13, 20-Sep-2022
1044,Revenue,CAHD,South Glos Users in South Glos Homes,Permanent Nursing,Blossom Fields Nursing Home,1779.75, 20-Sep-2022
1045,Revenue,CAHD,South Glos Users in South Glos Homes,Permanent Nursing,Blossom Fields Nursing Home,288.22, 20-Sep-2022
1046,Revenue,CAHD,South Glos Users in South Glos Homes,Permanent Nursing,Blossom Fields Nursing Home,93.99, 20-Sep-2022
1047,Revenue,CAHD,South Glos Users in South Glos Homes,Permanent Nursing,Blossom Fields Nursing Home,322.68, 20-Sep-2022
1048,Revenue,CAHD,South Glos Users in South Glos Homes,Permanent Nursing,Blossom Fields Nursing Home,375.94, 20-Sep-2022
1049,Revenue,CAHD,South Glos Users in South Glos Homes,Permanent Nursing,Blossom Fields Nursing Home,122.18, 20-Sep-2022
1050,Revenue,CAHD,South Glos Users in South Glos Homes,Permanent Nursing,Blossom Fields Nursing Home,1080.84, 20-Sep-2022
1051,Revenue,CAHD,South Glos Users in South Glos Homes,Permanent Nursing,Blossom Fields Nursing Home,166.04, 20-Sep-2022
1052,Revenue,CAHD,South Glos Users in South Glos Homes,Permanent Nursing,Blossom Fields Nursing Home,1901.93, 20-Sep-2022
1053,Revenue,CAHD,South Glos Users in South Glos Homes,Permanent Nursing,Blossom Fields Nursing Home,648.50, 20-Sep-2022
1054,Revenue,CAHD,South Glos Users in South Glos Homes,Permanent Nursing,Blossom Fields Nursing Home,836.76, 20-Sep-2022
1055,Revenue,CAHD,South Glos Users in South Glos Homes,Permanent Nursing,Blossom Fields Nursing Home,1980.25, 20-Sep-2022
1056,Revenue,CAHD,South Glos Users in South Glos Homes,Permanent Nursing,Blossom Fields Nursing Home,1143.49, 20-Sep-2022
1057,Revenue,CAHD,South Glos Users in South Glos Homes,Permanent Nursing,Blossom Fields Nursing Home,1516.59, 20-Sep-2022
1058,Revenue,CAHD,South Glos Users in South Glos Homes,Permanent Nursing,Blossom Fields Nursing Home,1980.25, 20-Sep-2022
1059,Revenue,CAHD,South Glos Users in South Glos Homes,Permanent Nursing,Blossom Fields Nursing Home,1980.25, 20-Sep-2022
1060,Revenue,CAHD,South Glos Users in South Glos Homes,Permanent Nursing,Blossom Fields Nursing Home,1980.25, 20-Sep-2022
1061,Revenue,CAHD,South Glos Users in South Glos Homes,Permanent Nursing,Blossom Fields Nursing Home,479.33, 20-Sep-2022
1062,Revenue,CAHD,South Glos Users in South Glos Homes,Permanent Nursing,Blossom Fields Nursing Home,169.17, 20-Sep-2022
1063,Revenue,CAHD,South Glos Users in South Glos Homes,Permanent Nursing,Blossom Fields Nursing Home,404.14, 20-Sep-2022
1064,Revenue,CAHD,South Glos Users in South Glos Homes,Permanent Nursing,Blossom Fields Nursing Home,1980.25, 20-Sep-2022
1065,Revenue,CAHD,South Glos Users in South Glos Homes,Permanent Nursing,Blossom Fields Nursing Home,1980.25, 20-Sep-2022
1066,Revenue,CAHD,South Glos Users in South Glos Homes,Permanent Nursing,Blossom Fields Nursing Home,1475.86, 20-Sep-2022
1067,Revenue,CAHD,South Glos Users in South Glos Homes,Permanent Nursing,Blossom Fields Nursing Home,830.21, 20-Sep-2022
1068,Revenue,CAHD,South Glos Users in South Glos Homes,Permanent Nursing,Blossom Fields Nursing Home,21.93, 20-Sep-2022
1069,Revenue,CAHD,South Glos Users in South Glos Homes,Permanent Nursing,Blossom Fields Nursing Home,435.47, 20-Sep-2022
1070,Revenue,CAHD,South Glos Users in South Glos Homes,Permanent Nursing,Blossom Fields Nursing Home,1143.49, 20-Sep-2022
1071,Revenue,CAHD,South Glos Users in South Glos Homes,Permanent Nursing,Blossom Fields Nursing Home,21.93, 20-Sep-2022
1072,Revenue,CAHD,South Glos Users in South Glos Homes,Permanent Nursing,Blossom Fields Nursing Home,582.71, 20-Sep-2022
1073,Revenue,CAHD,South Glos Users in South Glos Homes,Permanent Nursing,Blossom Fields Nursing Home,836.76, 20-Sep-2022
1074,Revenue,CAHD,South Glos Users in South Glos Homes,Permanent Nursing,Blossom Fields Nursing Home,466.80, 20-Sep-2022
1075,Revenue,CAHD,South Glos Users in South Glos Homes,Permanent Nursing,Blossom Fields Nursing Home,1237.76, 20-Sep-2022
1076,Revenue,CAHD,South Glos Users in South Glos Homes,Permanent Nursing,Blossom Fields Nursing Home,479.33, 20-Sep-2022
1077,Revenue,CAHD,South Glos Users in South Glos Homes,Permanent Nursing,Blossom Fields Nursing Home,93.99, 20-Sep-2022
1078,Revenue,CAHD,South Glos Users in South Glos Homes,Permanent Nursing,Blossom Fields Nursing Home,1980.25, 20-Sep-2022
1079,Revenue,CAHD,South Glos Users in South Glos Homes,Permanent Nursing,Blossom Fields Nursing Home,209.90, 20-Sep-2022
1080,Revenue,CAHD,South Glos Users in South Glos Homes,Permanent Nursing,Blossom Fields Nursing Home,1858.07, 20-Sep-2022
1081,Revenue,CAHD,South Glos Users in South Glos Homes,Permanent Nursing,Blossom Fields Nursing Home,836.76, 20-Sep-2022
1082,Revenue,CAHD,South Glos Users in South Glos Homes,Permanent Nursing,Blossom Fields Nursing Home,1980.25, 20-Sep-2022
1083,Revenue,CAHD,South Glos Users in South Glos Homes,Permanent Nursing,Blossom Fields Nursing Home,1134.09, 20-Sep-2022
1084,Revenue,CAHD,South Glos Users in South Glos Homes,Permanent Nursing,Blossom Fields Nursing Home,1980.25, 20-Sep-2022
1085,Revenue,CAHD,South Glos Users in South Glos Homes,Permanent Nursing,Blossom Fields Nursing Home,1980.25, 20-Sep-2022
1086,Revenue,CAHD,South Glos Users in South Glos Homes,Permanent Nursing,Blossom Fields Nursing Home,1980.25, 20-Sep-2022
1087,Revenue,CAHD,South Glos Users in South Glos Homes,Permanent Nursing,Blossom Fields Nursing Home,1980.25, 20-Sep-2022
1088,Revenue,CAHD,South Glos Users in South Glos Homes,Permanent Nursing,Blossom Fields Nursing Home,667.30, 20-Sep-2022
1089,Revenue,CAHD,South Glos Users in South Glos Homes,Permanent Nursing,Blossom Fields Nursing Home,21.93, 20-Sep-2022
1090,Revenue,CAHD,South Glos Users in South Glos Homes,Permanent Nursing,Blossom Fields Nursing Home,294.46, 20-Sep-2022
1091,Revenue,CAHD,South Glos Users in South Glos Homes,Permanent Nursing,Blossom Fields Nursing Home,1739.02, 20-Sep-2022
1092,Revenue,CAHD,South Glos Users in South Glos Homes,Permanent Nursing,Blossom Fields Nursing Home,1980.25, 20-Sep-2022
1093,Revenue,CAHD,South Glos Users in South Glos Homes,Permanent Nursing,Blossom Fields Nursing Home,1980.25, 20-Sep-2022
1094,Revenue,CAHD,South Glos Users in South Glos Homes,Permanent Nursing,Blossom Fields Nursing Home,1980.25, 20-Sep-2022
1095,Revenue,CAHD,South Glos Users in South Glos Homes,Permanent Nursing,Blossom Fields Nursing Home,836.76, 20-Sep-2022
1096,Revenue,CAHD,South Glos Users in South Glos Homes,Permanent Nursing,Blossom Fields Nursing Home,1980.25, 20-Sep-2022
1097,Revenue,CAHD,South Glos Users in South Glos Homes,Permanent Nursing,Blossom Fields Nursing Home,448.00, 20-Sep-2022
1098,Revenue,CAHD,South Glos Users in South Glos Homes,Permanent Nursing,Blossom Fields Nursing Home,247.49, 20-Sep-2022
1099,Revenue,CAHD,South Glos Users in South Glos Homes,Permanent Nursing,Blossom Fields Nursing Home,-107.20, 20-Sep-2022
1100,Revenue,CAHD,South Glos Users in South Glos Homes,Permanent Nursing,Blossom Fields Nursing Home,100.25, 20-Sep-2022
1101,Revenue,CAHD,South Glos Users in South Glos Homes,Permanent Nursing,Blossom Fields Nursing Home,1015.33, 20-Sep-2022
1102,Revenue,CAHD,South Glos Users in South Glos Homes,Permanent Nursing,Blossom Fields Nursing Home,1980.25, 20-Sep-2022
1103,Revenue,CAHD,South Glos Users in South Glos Homes,Permanent Nursing,Blossom Fields Nursing Home,635.45, 20-Sep-2022
1104,Revenue,CAHD,South Glos Users in South Glos Homes,Permanent Nursing,Blossom Fields Nursing Home,770.68, 20-Sep-2022
1105,Revenue,CAHD,South Glos Users in South Glos Homes,Permanent Nursing,Blossom Fields Nursing Home,1143.49, 20-Sep-2022
1106,Revenue,CAHD,South Glos Users in South Glos Homes,Permanent Nursing,Blossom Fields Nursing Home,372.81, 20-Sep-2022
1107,Revenue,CAHD,South Glos Users in South Glos Homes,Permanent Nursing,Blossom Fields Nursing Home,90.86, 20-Sep-2022
1108,Revenue,CAHD,South Glos Users in South Glos Homes,Permanent Nursing,Blossom Fields Nursing Home,1237.76, 20-Sep-2022
1109,Revenue,CAHD,South Glos Users in South Glos Homes,Permanent Nursing,Blossom Fields Nursing Home,1980.25, 20-Sep-2022
1110,Revenue,CAHD,South Glos Users in South Glos Homes,Permanent Nursing,Blossom Fields Nursing Home,1497.79, 20-Sep-2022
1111,Revenue,CAHD,South Glos Users in South Glos Homes,Permanent Nursing,Blossom Fields Nursing Home,836.76, 20-Sep-2022
1112,Revenue,CAHD,South Glos Users in South Glos Homes,Permanent Nursing,Blossom Fields Nursing Home,53.26, 20-Sep-2022
1113,Revenue,CAHD,South Glos Users in South Glos Homes,Permanent Nursing,Blossom Fields Nursing Home,0.00, 20-Sep-2022
1114,Revenue,CAHD,South Glos Users in South Glos Homes,Permanent Nursing,Blossom Fields Nursing Home,128.45, 20-Sep-2022
1115,Revenue,CAHD,South Glos Users in South Glos Homes,Permanent Nursing,Blossom Fields Nursing Home,1648.17, 20-Sep-2022
1116,Revenue,CAHD,South Glos Users in South Glos Homes,Permanent Nursing,Blossom Fields Nursing Home,601.51, 20-Sep-2022
1117,Revenue,CAHD,South Glos Users in South Glos Homes,Permanent Nursing,Blossom Fields Nursing Home,72.06, 20-Sep-2022
1118,Revenue,CAHD,South Glos Users in South Glos Homes,Permanent Nursing,Blossom Fields Nursing Home,836.76, 20-Sep-2022
1119,Revenue,CAHD,South Glos Users in South Glos Homes,Permanent Nursing,Blossom Fields Nursing Home,585.85, 20-Sep-2022
1120,Revenue,CAHD,South Glos Users in South Glos Homes,Permanent Nursing,Blossom Fields Nursing Home,1234.63, 20-Sep-2022
1121,Revenue,CAHD,South Glos Users in South Glos Homes,Permanent Nursing,Blossom Fields Nursing Home,980.87, 20-Sep-2022
1122,Revenue,CAHD,South Glos Users in South Glos Homes,Permanent Nursing,Blossom Fields Nursing Home,1284.76, 20-Sep-2022
1123,Revenue,CAHD,South Glos Users in South Glos Homes,Permanent Nursing,Blossom Fields Nursing Home,0.00, 20-Sep-2022
1124,Revenue,CAHD,South Glos Users in South Glos Homes,Permanent Nursing,Blossom Fields Nursing Home,1331.75, 20-Sep-2022
1125,Revenue,CAHD,South Glos Users in South Glos Homes,Permanent Nursing,Blossom Fields Nursing Home,147.24, 20-Sep-2022
1126,Revenue,CAHD,South Glos Users in South Glos Homes,Permanent Nursing,Blossom Fields Nursing Home,1682.63, 20-Sep-2022
1127,Revenue,CAHD,South Glos Users in South Glos Homes,Permanent Nursing,Blossom Fields Nursing Home,1980.25, 20-Sep-2022
1128,Revenue,CAHD,South Glos Users in South Glos Homes,Permanent Nursing,Blossom Fields Nursing Home,1131.25, 20-Sep-2022
1129,Revenue,CAHD,South Glos Users in South Glos Homes,Permanent Nursing,Blossom Fields Nursing Home,1143.49, 20-Sep-2022
1130,Revenue,CAHD,South Glos Users in South Glos Homes,Permanent Nursing,Blossom Fields Nursing Home,241.23, 20-Sep-2022
1131,Revenue,CAHD,South Glos Users in South Glos Homes,Permanent Nursing,Blossom Fields Nursing Home,836.76, 20-Sep-2022
1132,Revenue,CAHD,South Glos Users in South Glos Homes,Permanent Nursing,Blossom Fields Nursing Home,836.76, 20-Sep-2022
1133,Revenue,CAHD,Central - Commissioned Services,Permanent Residential,Blossom Fields Nursing Home,4028.00, 20-Sep-2022
1134,Revenue,CAHD,Central - Commissioned Services,Permanent Residential,Blossom Fields Nursing Home,3816.00, 20-Sep-2022
1135,Revenue,CAHD,Central - Commissioned Services,Permanent Nursing,Blossom Fields Nursing Home,4600.00, 20-Sep-2022
1136,Revenue,CAHD,Central - Commissioned Services,Permanent Nursing,Blossom Fields Nursing Home,5431.24, 20-Sep-2022
1137,Revenue,CAHD,Central - Commissioned Services,Permanent Nursing,Blossom Fields Nursing Home,4380.04, 20-Sep-2022
1138,Revenue,CAHD,Central - Commissioned Services,Permanent Nursing,Blossom Fields Nursing Home,4380.04, 20-Sep-2022
1139,Revenue,CAHD,Central - Commissioned Services,Permanent Nursing,Blossom Fields Nursing Home,5078.20, 20-Sep-2022
1140,Revenue,CAHD,Central - Commissioned Services,Permanent Nursing,Blossom Fields Nursing Home,4600.00, 20-Sep-2022
1141,Revenue,CAHD,Central - Commissioned Services,Permanent Nursing,Blossom Fields Nursing Home,5107.84, 20-Sep-2022
1142,Revenue,CAHD,Central - Commissioned Services,Permanent Nursing,Blossom Fields Nursing Home,4380.04, 20-Sep-2022
1143,Revenue,CAHD,Central - Commissioned Services,Permanent Nursing,Blossom Fields Nursing Home,-2034.13, 20-Sep-2022
1144,Revenue,CAHD,Central - Commissioned Services,Permanent Nursing,Blossom Fields Nursing Home,4600.00, 20-Sep-2022
1145,Revenue,CAHD,Central - Commissioned Services,Permanent Nursing,Blossom Fields Nursing Home,4600.00, 20-Sep-2022
1146,Revenue,CAHD,Central - Commissioned Services,Permanent Nursing,Blossom Fields Nursing Home,5421.92, 20-Sep-2022
1147,Revenue,CAHD,Central - Commissioned Services,Permanent Nursing,Blossom Fields Nursing Home,4876.00, 20-Sep-2022
1148,Revenue,CAHD,Central - Commissioned Services,Permanent Nursing,Blossom Fields Nursing Home,4600.00, 20-Sep-2022
1149,Revenue,CAHD,Central - Commissioned Services,Fees & Charges Income - General,Blossom Fields Nursing Home,-684.24, 20-Sep-2022
1150,Revenue,CAHD,Central - Commissioned Services,Fees & Charges Income - General,Blossom Fields Nursing Home,-978.56, 20-Sep-2022
1151,Revenue,CAHD,Central - Commissioned Services,Fees & Charges Income - General,Blossom Fields Nursing Home,-627.80, 20-Sep-2022
1152,Revenue,CAHD,Central - Commissioned Services,Fees & Charges Income - General,Blossom Fields Nursing Home,-1241.76, 20-Sep-2022
1153,Revenue,CAHD,Central - Commissioned Services,Fees & Charges Income - General,Blossom Fields Nursing Home,-2103.80, 20-Sep-2022
1154,Revenue,CAHD,Central - Commissioned Services,Fees & Charges Income - General,Blossom Fields Nursing Home,-486.88, 20-Sep-2022
1155,Revenue,CAHD,Central - Commissioned Services,Fees & Charges Income - General,Blossom Fields Nursing Home,-1586.88, 20-Sep-2022
1156,Revenue,CAHD,Central - Commissioned Services,Fees & Charges Income - General,Blossom Fields Nursing Home,-1207.64, 20-Sep-2022
1157,Revenue,CAHD,Central - Commissioned Services,Fees & Charges Income - General,Blossom Fields Nursing Home,-1186.12, 20-Sep-2022
1158,Revenue,CAHD,Central - Commissioned Services,Fees & Charges Income - General,Blossom Fields Nursing Home,363.31, 20-Sep-2022
1159,Revenue,CAHD,Central - Commissioned Services,Fees & Charges Income - General,Blossom Fields Nursing Home,7712.03, 20-Sep-2022
1160,Revenue,CAHD,Central - Commissioned Services,Fees & Charges Income - General,Blossom Fields Nursing Home,-1365.28, 20-Sep-2022
1161,Revenue,CAHD,Central - Commissioned Services,Fees & Charges Income - General,Blossom Fields Nursing Home,-866.68, 20-Sep-2022
1162,Revenue,CAHD,South - Commissioned Services,Permanent Nursing,Blossom Fields Nursing Home,4179.64, 20-Sep-2022
1163,Revenue,CAHD,South - Commissioned Services,Permanent Nursing,Blossom Fields Nursing Home,4381.20, 20-Sep-2022
1164,Revenue,CAHD,South - Commissioned Services,Permanent Nursing,Blossom Fields Nursing Home,5300.00, 20-Sep-2022
1165,Revenue,CAHD,South - Commissioned Services,Permanent Nursing,Blossom Fields Nursing Home,3816.00, 20-Sep-2022
1166,Revenue,CAHD,South - Commissioned Services,Respite Planned - Nursing,Blossom Fields Nursing Home,-9200.00, 20-Sep-2022
1167,Revenue,CAHD,South - Commissioned Services,Fees & Charges Income - General,Blossom Fields Nursing Home,530.00, 20-Sep-2022
1168,Revenue,CAHD,South - Commissioned Services,Fees & Charges Income - General,Blossom Fields Nursing Home,7748.76, 20-Sep-2022
1169,Revenue,CAHD,South - Commissioned Services,Fees & Charges Income - General,Blossom Fields Nursing Home,-1146.60, 20-Sep-2022
1170,Revenue,CAHD,South - Commissioned Services,Fees & Charges Income - General,Blossom Fields Nursing Home,-928.60, 20-Sep-2022
1171,Revenue,CAHD,North - Community based support,Permanent Residential,Blossom Fields Nursing Home,3498.00, 20-Sep-2022
1172,Revenue,CAHD,North - Community based support,Permanent Nursing,Blossom Fields Nursing Home,9.40, 20-Sep-2022
1173,Revenue,CAHD,North - Community based support,Permanent Nursing,Blossom Fields Nursing Home,4381.20, 20-Sep-2022
1174,Revenue,CAHD,North - Community based support,Fees & Charges Income - General,Blossom Fields Nursing Home,-1413.08, 20-Sep-2022
1175,Revenue,CAHD,North - Community based support,Fees & Charges Income - General,Blossom Fields Nursing Home,-627.80, 20-Sep-2022
1176,Revenue,CAHD,North - S117,Permanent Residential,Blossom Fields Nursing Home,5205.04, 20-Sep-2022
1177,Revenue,CAHD,Statemented Support Payments to OLAs,Other L.A.s - General,Blue Coat CE VA Primary School,1292.50, 22-Sep-2022
1178,Revenue,CAHD,Central - Commissioned Services,Other Small Contracts,Bluebird Care (South Gloucestershire),8023.31, 07-Sep-2022
1179,Revenue,CAHD,Central - Commissioned Services,Other Small Contracts,Bluebird Care (South Gloucestershire),9729.60, 07-Sep-2022
1180,Revenue,CAHD,Central - Commissioned Services,Other Small Contracts,Bluebird Care (South Gloucestershire),2043.51, 21-Sep-2022
1181,Revenue,CAHD,Central - Commissioned Services,Other Small Contracts,Bluebird Care (South Gloucestershire),458.43, 01-Sep-2022
1182,Revenue,CAHD,Central - Commissioned Services,Other Small Contracts,Bluebird Care (South Gloucestershire),357.42, 01-Sep-2022
1183,Revenue,CAHD,Central - Commissioned Services,Other Small Contracts,Bluebird Care (South Gloucestershire),2253.30, 01-Sep-2022
1184,Revenue,CAHD,Central - Commissioned Services,Other Small Contracts,Bluebird Care (South Gloucestershire),396.27, 01-Sep-2022
1185,Revenue,CAHD,Central - Commissioned Services,Other Small Contracts,Bluebird Care (South Gloucestershire),93.24, 01-Sep-2022
1186,Revenue,CAHD,Central - Commissioned Services,Other Small Contracts,Bluebird Care (South Gloucestershire),5508.93, 01-Sep-2022
1187,Revenue,CAHD,Central - Commissioned Services,Other Small Contracts,Bluebird Care (South Gloucestershire),466.20, 01-Sep-2022
1188,Revenue,CAHD,Central - Commissioned Services,Other Small Contracts,Bluebird Care (South Gloucestershire),846.93, 01-Sep-2022
1189,Revenue,CAHD,Central - Commissioned Services,Other Small Contracts,Bluebird Care (South Gloucestershire),590.52, 01-Sep-2022
1190,Revenue,CAHD,Central - Commissioned Services,Other Small Contracts,Bluebird Care (South Gloucestershire),489.51, 01-Sep-2022
1191,Revenue,CAHD,Central - Commissioned Services,Other Small Contracts,Bluebird Care (South Gloucestershire),365.19, 01-Sep-2022
1192,Revenue,CAHD,Central - Commissioned Services,Other Small Contracts,Bluebird Care (South Gloucestershire),2812.74, 01-Sep-2022
1193,Revenue,CAHD,Central - Commissioned Services,Other Small Contracts,Bluebird Care (South Gloucestershire),93.24, 01-Sep-2022
1194,Revenue,CAHD,Central - Commissioned Services,Other Small Contracts,Bluebird Care (South Gloucestershire),139.86, 01-Sep-2022
1195,Revenue,CAHD,Central - Commissioned Services,Other Small Contracts,Bluebird Care (South Gloucestershire),582.75, 01-Sep-2022
1196,Revenue,CAHD,Central - Commissioned Services,Other Small Contracts,Bluebird Care (South Gloucestershire),4198.32, 01-Sep-2022
1197,Revenue,CAHD,Central - Commissioned Services,Other Small Contracts,Bluebird Care (South Gloucestershire),139.86, 01-Sep-2022
1198,Revenue,CAHD,Central - Commissioned Services,Other Small Contracts,Bluebird Care (South Gloucestershire),668.22, 01-Sep-2022
1199,Revenue,CAHD,Central - Commissioned Services,Other Small Contracts,Bluebird Care (South Gloucestershire),1383.06, 01-Sep-2022
1200,Revenue,CAHD,Central - Commissioned Services,Other Small Contracts,Bluebird Care (South Gloucestershire),1872.57, 01-Sep-2022
1201,Revenue,CAHD,Central - Commissioned Services,Other Small Contracts,Bluebird Care (South Gloucestershire),372.96, 01-Sep-2022
1202,Revenue,CAHD,Central - Commissioned Services,Other Small Contracts,Bluebird Care (South Gloucestershire),1858.14, 01-Sep-2022
1203,Revenue,CAHD,Central - Commissioned Services,Other Small Contracts,Bluebird Care (South Gloucestershire),194.25, 01-Sep-2022
1204,Revenue,CAHD,Central - Commissioned Services,Other Small Contracts,Bluebird Care (South Gloucestershire),372.96, 01-Sep-2022
1205,Revenue,CAHD,Central - Commissioned Services,Other Small Contracts,Bluebird Care (South Gloucestershire),1080.03, 01-Sep-2022
1206,Revenue,CAHD,South - Commissioned Services,Other Small Contracts,Bluebird Care (South Gloucestershire),1429.68, 01-Sep-2022
1207,Revenue,CAHD,South - Commissioned Services,Other Small Contracts,Bluebird Care (South Gloucestershire),574.98, 01-Sep-2022
1208,Revenue,CAHD,South - Commissioned Services,Other Small Contracts,Bluebird Care (South Gloucestershire),1522.92, 01-Sep-2022
1209,Revenue,CAHD,South - Commissioned Services,Other Small Contracts,Bluebird Care (South Gloucestershire),745.92, 01-Sep-2022
1210,Revenue,CAHD,South - Commissioned Services,Other Small Contracts,Bluebird Care (South Gloucestershire),264.18, 01-Sep-2022
1211,Revenue,CAHD,South - Commissioned Services,Other Small Contracts,Bluebird Care (South Gloucestershire),792.54, 01-Sep-2022
1212,Revenue,CAHD,South - Commissioned Services,Other Small Contracts,Bluebird Care (South Gloucestershire),4198.32, 01-Sep-2022
1213,Revenue,CAHD,South - Commissioned Services,Other Small Contracts,Bluebird Care (South Gloucestershire),186.48, 01-Sep-2022
1214,Revenue,CAHD,South - Commissioned Services,Other Small Contracts,Bluebird Care (South Gloucestershire),209.79, 01-Sep-2022
1215,Revenue,CAHD,South - Commissioned Services,Other Small Contracts,Bluebird Care (South Gloucestershire),349.65, 01-Sep-2022
1216,Revenue,CAHD,South - Commissioned Services,Other Small Contracts,Bluebird Care (South Gloucestershire),186.48, 01-Sep-2022
1217,Revenue,CAHD,South - Commissioned Services,Other Small Contracts,Bluebird Care (South Gloucestershire),1064.49, 01-Sep-2022
1218,Revenue,CAHD,North - Community based support,Other Small Contracts,Bluebird Care (South Gloucestershire),963.48, 01-Sep-2022
1219,Revenue,CAHD,North - Community based support,Other Small Contracts,Bluebird Care (South Gloucestershire),497.28, 01-Sep-2022
1220,Revenue,CAHD,North - Community based support,Other Small Contracts,Bluebird Care (South Gloucestershire),178.71, 01-Sep-2022
1221,Revenue,CAHD,North - Community based support,Other Small Contracts,Bluebird Care (South Gloucestershire),4933.32, 01-Sep-2022
1222,Revenue,CAHD,North - Community based support,Other Small Contracts,Bluebird Care (South Gloucestershire),411.81, 01-Sep-2022
1223,Revenue,CAHD,North - Community based support,Other Small Contracts,Bluebird Care (South Gloucestershire),963.48, 01-Sep-2022
1224,Revenue,CAHD,North - Community based support,Other Small Contracts,Bluebird Care (South Gloucestershire),186.48, 01-Sep-2022
1225,Revenue,CAHD,North - Community based support,Other Small Contracts,Bluebird Care (South Gloucestershire),318.57, 01-Sep-2022
1226,Revenue,CAHD,North - Community based support,Other Small Contracts,Bluebird Care (South Gloucestershire),4752.28, 01-Sep-2022
1227,Revenue,CAHD,North - Community based support,Other Small Contracts,Bluebird Care (South Gloucestershire),271.95, 01-Sep-2022
1228,Revenue,CAHD,Central - Commissioned Services,Other Small Contracts,Bluebird Care (South Gloucestershire),155.40, 14-Sep-2022
1229,Revenue,CAHD,Central - Commissioned Services,Other Small Contracts,Bluebird Care (South Gloucestershire),124.32, 14-Sep-2022
1230,Revenue,CAHD,Central - Commissioned Services,Other Small Contracts,Bluebird Care (South Gloucestershire),738.15, 14-Sep-2022
1231,Revenue,CAHD,Central - Commissioned Services,Other Small Contracts,Bluebird Care (South Gloucestershire),139.86, 14-Sep-2022
1232,Revenue,CAHD,Central - Commissioned Services,Other Small Contracts,Bluebird Care (South Gloucestershire),31.08, 14-Sep-2022
1233,Revenue,CAHD,Central - Commissioned Services,Other Small Contracts,Bluebird Care (South Gloucestershire),1779.33, 14-Sep-2022
1234,Revenue,CAHD,Central - Commissioned Services,Other Small Contracts,Bluebird Care (South Gloucestershire),155.40, 14-Sep-2022
1235,Revenue,CAHD,Central - Commissioned Services,Other Small Contracts,Bluebird Care (South Gloucestershire),279.72, 14-Sep-2022
1236,Revenue,CAHD,Central - Commissioned Services,Other Small Contracts,Bluebird Care (South Gloucestershire),217.56, 14-Sep-2022
1237,Revenue,CAHD,Central - Commissioned Services,Other Small Contracts,Bluebird Care (South Gloucestershire),163.17, 14-Sep-2022
1238,Revenue,CAHD,Central - Commissioned Services,Other Small Contracts,Bluebird Care (South Gloucestershire),116.55, 14-Sep-2022
1239,Revenue,CAHD,Central - Commissioned Services,Other Small Contracts,Bluebird Care (South Gloucestershire),947.94, 14-Sep-2022
1240,Revenue,CAHD,Central - Commissioned Services,Other Small Contracts,Bluebird Care (South Gloucestershire),38.85, 14-Sep-2022
1241,Revenue,CAHD,Central - Commissioned Services,Other Small Contracts,Bluebird Care (South Gloucestershire),202.02, 14-Sep-2022
1242,Revenue,CAHD,Central - Commissioned Services,Other Small Contracts,Bluebird Care (South Gloucestershire),1399.44, 14-Sep-2022
1243,Revenue,CAHD,Central - Commissioned Services,Other Small Contracts,Bluebird Care (South Gloucestershire),132.09, 14-Sep-2022
1244,Revenue,CAHD,Central - Commissioned Services,Other Small Contracts,Bluebird Care (South Gloucestershire),217.56, 14-Sep-2022
1245,Revenue,CAHD,Central - Commissioned Services,Other Small Contracts,Bluebird Care (South Gloucestershire),435.12, 14-Sep-2022
1246,Revenue,CAHD,Central - Commissioned Services,Other Small Contracts,Bluebird Care (South Gloucestershire),644.91, 14-Sep-2022
1247,Revenue,CAHD,Central - Commissioned Services,Other Small Contracts,Bluebird Care (South Gloucestershire),116.55, 14-Sep-2022
1248,Revenue,CAHD,Central - Commissioned Services,Other Small Contracts,Bluebird Care (South Gloucestershire),624.56, 14-Sep-2022
1249,Revenue,CAHD,Central - Commissioned Services,Other Small Contracts,Bluebird Care (South Gloucestershire),93.24, 14-Sep-2022
1250,Revenue,CAHD,Central - Commissioned Services,Other Small Contracts,Bluebird Care (South Gloucestershire),116.55, 14-Sep-2022
1251,Revenue,CAHD,Central - Commissioned Services,Other Small Contracts,Bluebird Care (South Gloucestershire),365.19, 14-Sep-2022
1252,Revenue,CAHD,South - Commissioned Services,Other Small Contracts,Bluebird Care (South Gloucestershire),466.20, 14-Sep-2022
1253,Revenue,CAHD,South - Commissioned Services,Other Small Contracts,Bluebird Care (South Gloucestershire),186.48, 14-Sep-2022
1254,Revenue,CAHD,South - Commissioned Services,Other Small Contracts,Bluebird Care (South Gloucestershire),512.82, 14-Sep-2022
1255,Revenue,CAHD,South - Commissioned Services,Other Small Contracts,Bluebird Care (South Gloucestershire),217.56, 14-Sep-2022
1256,Revenue,CAHD,South - Commissioned Services,Other Small Contracts,Bluebird Care (South Gloucestershire),256.41, 14-Sep-2022
1257,Revenue,CAHD,South - Commissioned Services,Other Small Contracts,Bluebird Care (South Gloucestershire),1399.44, 14-Sep-2022
1258,Revenue,CAHD,South - Commissioned Services,Other Small Contracts,Bluebird Care (South Gloucestershire),62.16, 14-Sep-2022
1259,Revenue,CAHD,South - Commissioned Services,Other Small Contracts,Bluebird Care (South Gloucestershire),93.24, 14-Sep-2022
1260,Revenue,CAHD,South - Commissioned Services,Other Small Contracts,Bluebird Care (South Gloucestershire),124.32, 14-Sep-2022
1261,Revenue,CAHD,South - Commissioned Services,Other Small Contracts,Bluebird Care (South Gloucestershire),62.16, 14-Sep-2022
1262,Revenue,CAHD,South - Commissioned Services,Other Small Contracts,Bluebird Care (South Gloucestershire),372.96, 14-Sep-2022
1263,Revenue,CAHD,North - Community based support,Other Small Contracts,Bluebird Care (South Gloucestershire),341.88, 14-Sep-2022
1264,Revenue,CAHD,North - Community based support,Other Small Contracts,Bluebird Care (South Gloucestershire),194.25, 14-Sep-2022
1265,Revenue,CAHD,North - Community based support,Other Small Contracts,Bluebird Care (South Gloucestershire),54.39, 14-Sep-2022
1266,Revenue,CAHD,North - Community based support,Other Small Contracts,Bluebird Care (South Gloucestershire),1685.88, 14-Sep-2022
1267,Revenue,CAHD,North - Community based support,Other Small Contracts,Bluebird Care (South Gloucestershire),132.09, 14-Sep-2022
1268,Revenue,CAHD,North - Community based support,Other Small Contracts,Bluebird Care (South Gloucestershire),310.80, 14-Sep-2022
1269,Revenue,CAHD,North - Community based support,Other Small Contracts,Bluebird Care (South Gloucestershire),23.31, 14-Sep-2022
1270,Revenue,CAHD,North - Community based support,Other Small Contracts,Bluebird Care (South Gloucestershire),155.40, 14-Sep-2022
1271,Revenue,CAHD,North - Community based support,Other Small Contracts,Bluebird Care (South Gloucestershire),1776.74, 14-Sep-2022
1272,Revenue,CAHD,North - Community based support,Other Small Contracts,Bluebird Care (South Gloucestershire),85.47, 14-Sep-2022
1273,Revenue,CAHD,Central - Commissioned Services,Other Small Contracts,Bluebird Care (South Gloucestershire),404.04, 28-Sep-2022
1274,Revenue,CAHD,Central - Commissioned Services,Other Small Contracts,Bluebird Care (South Gloucestershire),194.25, 28-Sep-2022
1275,Revenue,CAHD,Central - Commissioned Services,Other Small Contracts,Bluebird Care (South Gloucestershire),2175.60, 28-Sep-2022
1276,Revenue,CAHD,Central - Commissioned Services,Other Small Contracts,Bluebird Care (South Gloucestershire),380.73, 28-Sep-2022
1277,Revenue,CAHD,Central - Commissioned Services,Other Small Contracts,Bluebird Care (South Gloucestershire),93.24, 28-Sep-2022
1278,Revenue,CAHD,Central - Commissioned Services,Other Small Contracts,Bluebird Care (South Gloucestershire),4063.71, 28-Sep-2022
1279,Revenue,CAHD,Central - Commissioned Services,Other Small Contracts,Bluebird Care (South Gloucestershire),404.04, 28-Sep-2022
1280,Revenue,CAHD,Central - Commissioned Services,Other Small Contracts,Bluebird Care (South Gloucestershire),846.93, 28-Sep-2022
1281,Revenue,CAHD,Central - Commissioned Services,Other Small Contracts,Bluebird Care (South Gloucestershire),629.37, 28-Sep-2022
1282,Revenue,CAHD,Central - Commissioned Services,Other Small Contracts,Bluebird Care (South Gloucestershire),450.66, 28-Sep-2022
1283,Revenue,CAHD,Central - Commissioned Services,Other Small Contracts,Bluebird Care (South Gloucestershire),341.88, 28-Sep-2022
1284,Revenue,CAHD,Central - Commissioned Services,Other Small Contracts,Bluebird Care (South Gloucestershire),2890.44, 28-Sep-2022
1285,Revenue,CAHD,Central - Commissioned Services,Other Small Contracts,Bluebird Care (South Gloucestershire),93.24, 28-Sep-2022
1286,Revenue,CAHD,Central - Commissioned Services,Other Small Contracts,Bluebird Care (South Gloucestershire),139.86, 28-Sep-2022
1287,Revenue,CAHD,Central - Commissioned Services,Other Small Contracts,Bluebird Care (South Gloucestershire),590.52, 28-Sep-2022
1288,Revenue,CAHD,Central - Commissioned Services,Other Small Contracts,Bluebird Care (South Gloucestershire),4198.32, 28-Sep-2022
1289,Revenue,CAHD,Central - Commissioned Services,Other Small Contracts,Bluebird Care (South Gloucestershire),419.58, 28-Sep-2022
1290,Revenue,CAHD,Central - Commissioned Services,Other Small Contracts,Bluebird Care (South Gloucestershire),124.32, 28-Sep-2022
1291,Revenue,CAHD,Central - Commissioned Services,Other Small Contracts,Bluebird Care (South Gloucestershire),1375.29, 28-Sep-2022
1292,Revenue,CAHD,Central - Commissioned Services,Other Small Contracts,Bluebird Care (South Gloucestershire),1926.96, 28-Sep-2022
1293,Revenue,CAHD,Central - Commissioned Services,Other Small Contracts,Bluebird Care (South Gloucestershire),372.96, 28-Sep-2022
1294,Revenue,CAHD,Central - Commissioned Services,Other Small Contracts,Bluebird Care (South Gloucestershire),1935.84, 28-Sep-2022
1295,Revenue,CAHD,Central - Commissioned Services,Other Small Contracts,Bluebird Care (South Gloucestershire),163.17, 28-Sep-2022
1296,Revenue,CAHD,Central - Commissioned Services,Other Small Contracts,Bluebird Care (South Gloucestershire),341.88, 28-Sep-2022
1297,Revenue,CAHD,Central - Commissioned Services,Other Small Contracts,Bluebird Care (South Gloucestershire),473.97, 28-Sep-2022
1298,Revenue,CAHD,Central - Commissioned Services,Other Small Contracts,Bluebird Care (South Gloucestershire),1103.34, 28-Sep-2022
1299,Revenue,CAHD,South - Commissioned Services,Other Small Contracts,Bluebird Care (South Gloucestershire),1445.22, 28-Sep-2022
1300,Revenue,CAHD,South - Commissioned Services,Other Small Contracts,Bluebird Care (South Gloucestershire),598.29, 28-Sep-2022
1301,Revenue,CAHD,South - Commissioned Services,Other Small Contracts,Bluebird Care (South Gloucestershire),1530.69, 28-Sep-2022
1302,Revenue,CAHD,South - Commissioned Services,Other Small Contracts,Bluebird Care (South Gloucestershire),668.22, 28-Sep-2022
1303,Revenue,CAHD,South - Commissioned Services,Other Small Contracts,Bluebird Care (South Gloucestershire),722.61, 28-Sep-2022
1304,Revenue,CAHD,South - Commissioned Services,Other Small Contracts,Bluebird Care (South Gloucestershire),4198.32, 28-Sep-2022
1305,Revenue,CAHD,South - Commissioned Services,Other Small Contracts,Bluebird Care (South Gloucestershire),186.48, 28-Sep-2022
1306,Revenue,CAHD,South - Commissioned Services,Other Small Contracts,Bluebird Care (South Gloucestershire),279.72, 28-Sep-2022
1307,Revenue,CAHD,South - Commissioned Services,Other Small Contracts,Bluebird Care (South Gloucestershire),310.80, 28-Sep-2022
1308,Revenue,CAHD,South - Commissioned Services,Other Small Contracts,Bluebird Care (South Gloucestershire),186.48, 28-Sep-2022
1309,Revenue,CAHD,South - Commissioned Services,Other Small Contracts,Bluebird Care (South Gloucestershire),1010.10, 28-Sep-2022
1310,Revenue,CAHD,North - Community based support,Other Small Contracts,Bluebird Care (South Gloucestershire),1025.64, 28-Sep-2022
1311,Revenue,CAHD,North - Community based support,Other Small Contracts,Bluebird Care (South Gloucestershire),396.27, 28-Sep-2022
1312,Revenue,CAHD,North - Community based support,Other Small Contracts,Bluebird Care (South Gloucestershire),163.17, 28-Sep-2022
1313,Revenue,CAHD,North - Community based support,Other Small Contracts,Bluebird Care (South Gloucestershire),4917.78, 28-Sep-2022
1314,Revenue,CAHD,North - Community based support,Other Small Contracts,Bluebird Care (South Gloucestershire),411.81, 28-Sep-2022
1315,Revenue,CAHD,North - Community based support,Other Small Contracts,Bluebird Care (South Gloucestershire),955.71, 28-Sep-2022
1316,Revenue,CAHD,North - Community based support,Other Small Contracts,Bluebird Care (South Gloucestershire),178.71, 28-Sep-2022
1317,Revenue,CAHD,North - Community based support,Other Small Contracts,Bluebird Care (South Gloucestershire),419.58, 28-Sep-2022
1318,Revenue,CAHD,North - Community based support,Other Small Contracts,Bluebird Care (South Gloucestershire),5002.40, 28-Sep-2022
1319,Revenue,CAHD,North - Community based support,Other Small Contracts,Bluebird Care (South Gloucestershire),178.71, 28-Sep-2022
1320,Revenue,CAHD,CSC - Asylum Seekers - Unaccompanied,Independent Living,Blueline Healthcare Solutions Ltd T/A Blueline Car,3664.28, 12-Sep-2022
1321,Revenue,CAHD,CSC - Asylum Seekers - Unaccompanied,Independent Living,Blueline Healthcare Solutions Ltd T/A Blueline Car,3121.42, 12-Sep-2022
1322,Revenue,CAHD,CSC - Asylum Seekers - Unaccompanied,Independent Living,Blueline Healthcare Solutions Ltd T/A Blueline Car,5021.42, 05-Sep-2022
1323,Revenue,CAHD,CSC - Asylum Seekers - Unaccompanied,Independent Living,Blueline Healthcare Solutions Ltd T/A Blueline Car,4071.42, 30-Sep-2022
1324,Revenue,CAHD,CSC - Asylum Seekers - Unaccompanied,Independent Living,Blueline Healthcare Solutions Ltd T/A Blueline Car,4071.42, 30-Sep-2022
1325,Revenue,CAHD,CSC - Asylum Seekers - Unaccompanied,Independent Living,Blueline Healthcare Solutions Ltd T/A Blueline Car,4071.42, 30-Sep-2022
1326,Revenue,CAHD,CSC - Asylum Seekers - Unaccompanied,Independent Living,Blueline Healthcare Solutions Ltd T/A Blueline Car,4071.42, 30-Sep-2022
1327,Revenue,CAHD,CSC - Asylum Seekers - Unaccompanied,Independent Living,Blueline Healthcare Solutions Ltd T/A Blueline Car,4071.42, 30-Sep-2022
1328,Revenue,CAHD,CSC - Asylum Seekers - Unaccompanied,Independent Living,Blueline Healthcare Solutions Ltd T/A Blueline Car,4071.42, 30-Sep-2022
1329,Revenue,CAHD,CSC - Asylum Seekers - Unaccompanied,Independent Living,Blueline Healthcare Solutions Ltd T/A Blueline Car,4071.42, 30-Sep-2022
1330,Revenue,CAHD,Schools Specific Grant Income,Books & Publications,Booktrust,904.26, 23-Sep-2022
1331,Revenue,CAHD,"Drugs, Alcohol and Sexual Health",Other Small Contracts,Boots UK Ltd,563.07, 23-Sep-2022
1332,Revenue,CAHD,North - Community based support,Permanent Residential,Bradbury House,42303.75, 20-Sep-2022
1333,Revenue,CAHD,North - Community based support,Fees & Charges Income - General,Bradbury House,-851.20, 20-Sep-2022
1334,Revenue,CAHD,S28A cases,Permanent Residential,Bradbury House,-34152.09, 20-Sep-2022
1335,Revenue,CAHD,S28A cases,Fees & Charges Income - General,Bradbury House,412.40, 20-Sep-2022
1336,Revenue,CAHD,Central - Commissioned Services,Permanent Residential,Bradbury House,11342.80, 20-Sep-2022
1337,Revenue,CAHD,North - S117,Permanent Residential,Bradbury House,54190.46, 20-Sep-2022
1338,Revenue,CAHD,Jointly Funded H&SC Packages,Permanent Residential,Bradbury House,-37311.54, 20-Sep-2022
1339,Revenue,CAHD,"Drugs, Alcohol and Sexual Health",Other Small Contracts,Bradley Stoke Surgery,2591.22, 05-Sep-2022
1340,Revenue,CAHD,"Drugs, Alcohol and Sexual Health",Other Small Contracts,Bradley Stoke Surgery,2012.50, 05-Sep-2022
1341,Revenue,CAHD,"Drugs, Alcohol and Sexual Health",Other Small Contracts,Bradley Stoke Surgery,1421.00, 05-Sep-2022
1342,Revenue,CAHD,Alexandra Way,"Provisions (Food, etc)",Brake Bros,615.47, 05-Sep-2022
1343,Revenue,CAHD,Alexandra Way,"Provisions (Food, etc)",Brake Bros,499.99, 05-Sep-2022
1344,Revenue,CAHD,Alexandra Way,"Provisions (Food, etc)",Brake Bros,711.52, 05-Sep-2022
1345,Revenue,CAHD,Alexandra Way,"Provisions (Food, etc)",Brake Bros,1309.48, 05-Sep-2022
1346,Revenue,CAHD,Alexandra Way,"Provisions (Food, etc)",Brake Bros,669.08, 05-Sep-2022
1347,Revenue,CAHD,CSC - Residential Placements,Permanent Residential,Branas ISAF Ltd,21214.20, 26-Sep-2022
1348,Revenue,CAHD,Social Lettings Agency,Rent,Individual,822.73, 23-Sep-2022
1349,Revenue,CAHD,Social Lettings Agency,Fees & Charges Income - General,Individual,-102.80, 23-Sep-2022
1350,Revenue,CAHD,Social Lettings Agency,Rent,Individual,976.68, 08-Sep-2022
1351,Revenue,CAHD,Social Lettings Agency,Fees & Charges Income - General,Individual,-75.80, 08-Sep-2022
1352,Revenue,CAHD,Placements OLA Special Schools and RB,Other L.A.s - General,Briarwood School,2685.22, 22-Sep-2022
1353,Revenue,CAHD,Placements OLA Special Schools and RB,Other L.A.s - General,Briarwood School,1917.52, 22-Sep-2022
1354,Revenue,CAHD,Placements OLA Special Schools and RB,Other L.A.s - General,Briarwood School,766.85, 22-Sep-2022
1355,Revenue,CAHD,North - Community based support,Permanent Residential,Bridge House Care Home,3286.00, 20-Sep-2022
1356,Revenue,CAHD,North - Community based support,Permanent Residential,Bridge House Care Home,3440.00, 20-Sep-2022
1357,Revenue,CAHD,North - Community based support,Permanent Residential,Bridge House Care Home,3088.32, 20-Sep-2022
1358,Revenue,CAHD,North - Community based support,Permanent Nursing,Bridge House Care Home,3360.00, 20-Sep-2022
1359,Revenue,CAHD,North - Community based support,Fees & Charges Income - General,Bridge House Care Home,-627.80, 20-Sep-2022
1360,Revenue,CAHD,North - Community based support,Fees & Charges Income - General,Bridge House Care Home,-650.88, 20-Sep-2022
1361,Revenue,CAHD,North - Community based support,Fees & Charges Income - General,Bridge House Care Home,-651.64, 20-Sep-2022
1362,Revenue,CAHD,North - Community based support,Fees & Charges Income - General,Bridge House Care Home,-1679.52, 20-Sep-2022
1363,Revenue,CAHD,North - Community based support,Permanent Residential,Bridgwater Court Care Home,10773.64, 20-Sep-2022
1364,Revenue,CAHD,Older People`s Commissioned Se,Grants to Voluntary Bodies,Bristol Area Stroke Foundation,23534.25, 29-Sep-2022
1365,Revenue,CAHD,Statemented Support Payments to OLAs,Other L.A.s - General,Bristol Cathedral Choir School,942.58, 22-Sep-2022
1366,Revenue,CAHD,Statemented Support Payments to OLAs,Other L.A.s - General,Bristol Cathedral Choir School,880.08, 22-Sep-2022
1367,Revenue,CAHD,Statemented Support Payments to OLAs,Other L.A.s - General,Bristol Cathedral Choir School,978.57, 22-Sep-2022
1368,Revenue,CAHD,CSC - Section 17 - ART,Interpreting & Translation,Bristol City Council,430.79, 23-Sep-2022
1369,Revenue,CAHD,Statemented Support Payments to OLAs,Other L.A.s - General,Bristol City Council Schools General,897.42, 22-Sep-2022
1370,Revenue,CAHD,Other Alternative Provision Services,Other Private Contractors,Bristol Tuition Limited,1305.00, 23-Sep-2022
1371,Revenue,CAHD,Other Alternative Provision Services,Other Private Contractors,Bristol Tuition Limited,450.00, 23-Sep-2022
1372,Revenue,CAHD,Statemented Support Payments to OLAs,Other L.A.s - General,Broadlands Academy,835.17, 22-Sep-2022
1373,Revenue,CAHD,North - Community based support,Permanent Residential,Brockhills Farm,3200.00, 20-Sep-2022
1374,Revenue,CAHD,North - Community based support,Fees & Charges Income - General,Brockhills Farm,-658.96, 20-Sep-2022
1375,Revenue,CAHD,Supporting People Programme,Grants to Voluntary Bodies,Bromford  :  Merlin Housing Society,23628.83, 01-Sep-2022
1376,Revenue,CAHD,Supporting People Programme,Grants to Voluntary Bodies,Bromford  :  Merlin Housing Society,1146.92, 01-Sep-2022
1377,Revenue,CAHD,Supporting People Programme,Grants to Voluntary Bodies,Bromford  :  Merlin Housing Society,2824.17, 01-Sep-2022
1378,Revenue,CAHD,Supporting People Programme,Grants to Voluntary Bodies,Bromford  :  Merlin Housing Society,2824.17, 30-Sep-2022
1379,Revenue,CAHD,Supporting People Programme,Grants to Voluntary Bodies,Bromford  :  Merlin Housing Society,23628.83, 30-Sep-2022
1380,Revenue,CAHD,Supporting People Programme,Grants to Voluntary Bodies,Bromford  :  Merlin Housing Society,1146.92, 30-Sep-2022
1381,Revenue,CAHD,Parent Partnership & Disagreement Resolutions,Fees - General,Individual,1131.00, 06-Sep-2022
1382,Revenue,CAHD,North - S117,Permanent Residential,Buckland Care,3600.00, 20-Sep-2022
1383,Revenue,CAHD,CSC - Asylum Seekers - Unaccompanied,Foster Parent Allowances,By the Bridge Ltd,4647.53, 30-Sep-2022
1384,Revenue,CAHD,CSC - Asylum Seekers - Unaccompanied,Foster Parent Allowances,By the Bridge Ltd,4647.53, 30-Sep-2022
1385,Revenue,CAHD,CSC - Asylum Seekers - Unaccompanied,Foster Parent Allowances,By the Bridge Ltd,4742.38, 30-Sep-2022
1386,Revenue,CAHD,CSC - Agency Fostering,Foster Parent Allowances,By the Bridge Ltd,3321.34, 30-Sep-2022
1387,Revenue,CAHD,CSC - Vinney Green Secure Unit,R & M by Departments,C & R Fencing Limited,815.00, 15-Sep-2022
1388,Revenue,CAHD,Social Lettings Agency,Rent,Individual,947.40, 13-Sep-2022
1389,Revenue,CAHD,Social Lettings Agency,Fees & Charges Income - General,Individual,-94.74, 13-Sep-2022
1390,Revenue,CAHD,Statemented Support Academies,Other Public Bodies,Cabot Learning Federation,896.50, 27-Sep-2022
1391,Revenue,CAHD,Statemented Support Academies,Other Public Bodies,Cabot Learning Federation,1012.67, 27-Sep-2022
1392,Revenue,CAHD,Statemented Support Academies,Other Public Bodies,Cabot Learning Federation,896.50, 27-Sep-2022
1393,Revenue,CAHD,Statemented Support Academies,Other Public Bodies,Cabot Learning Federation,740.00, 27-Sep-2022
1394,Revenue,CAHD,Statemented Support Academies,Other Public Bodies,Cabot Learning Federation,740.00, 27-Sep-2022
1395,Revenue,CAHD,Statemented Support Academies,Other Public Bodies,Cabot Learning Federation,740.00, 27-Sep-2022
1396,Revenue,CAHD,Statemented Support Academies,Other Public Bodies,Cabot Learning Federation,740.00, 27-Sep-2022
1397,Revenue,CAHD,Statemented Support Academies,Other Public Bodies,Cabot Learning Federation,740.00, 27-Sep-2022
1398,Revenue,CAHD,Statemented Support Academies,Other Public Bodies,Cabot Learning Federation,896.50, 27-Sep-2022
1399,Revenue,CAHD,Statemented Support Academies,Other Public Bodies,Cabot Learning Federation,740.00, 27-Sep-2022
1400,Revenue,CAHD,Statemented Support Payments to OLAs,Other L.A.s - General,Cabot Learning Federation,561.13, 22-Sep-2022
1401,Revenue,CAHD,Statemented Support Payments to OLAs,Other L.A.s - General,Cabot Learning Federation,1944.17, 22-Sep-2022
1402,Revenue,CAHD,Statemented Support Academies,Other Public Bodies,Cabot Learning Federation,740.00, 27-Sep-2022
1403,Revenue,CAHD,Statemented Support Academies,Other Public Bodies,Cabot Learning Federation,896.50, 27-Sep-2022
1404,Revenue,CAHD,Statemented Support Payments to OLAs,Other L.A.s - General,Cabot Learning Federation,833.34, 22-Sep-2022
1405,Revenue,CAHD,Statemented Support Academies,Other Public Bodies,Cabot Learning Federation,896.50, 27-Sep-2022
1406,Revenue,CAHD,Statemented Support Academies,Other Public Bodies,Cabot Learning Federation,740.00, 27-Sep-2022
1407,Revenue,CAHD,Statemented Support Academies,Other Public Bodies,Cabot Learning Federation,896.50, 27-Sep-2022
1408,Revenue,CAHD,Statemented Support Academies,Other Public Bodies,Cabot Learning Federation,740.00, 27-Sep-2022
1409,Revenue,CAHD,Statemented Support Academies,Other Public Bodies,Cabot Learning Federation,740.00, 27-Sep-2022
1410,Revenue,CAHD,Statemented Support Academies,Other Public Bodies,Cabot Learning Federation,740.00, 27-Sep-2022
1411,Revenue,CAHD,Statemented Support Academies,Other Public Bodies,Cabot Learning Federation,1012.67, 27-Sep-2022
1412,Revenue,CAHD,Statemented Support Academies,Other Public Bodies,Cabot Learning Federation,896.50, 27-Sep-2022
1413,Revenue,CAHD,Statemented Support Payments to OLAs,Other L.A.s - General,Cabot Learning Federation,1062.33, 22-Sep-2022
1414,Revenue,CAHD,Statemented Support Payments to OLAs,Other L.A.s - General,Cabot Learning Federation,809.75, 22-Sep-2022
1415,Revenue,CAHD,Statemented Support Payments to OLAs,Other L.A.s - General,Cabot Learning Federation,5985.00, 22-Sep-2022
1416,Revenue,CAHD,Statemented Support Academies,Other Public Bodies,Cabot Learning Federation,740.00, 27-Sep-2022
1417,Revenue,CAHD,Statemented Support Academies,Other Public Bodies,Cabot Learning Federation,554.42, 30-Sep-2022
1418,Revenue,CAHD,Statemented Support Academies,Other Public Bodies,Cabot Learning Federation,740.00, 27-Sep-2022
1419,Revenue,CAHD,Statemented Support Payments to OLAs,Other L.A.s - General,Cabot Learning Federation,665.33, 22-Sep-2022
1420,Revenue,CAHD,"Drugs, Alcohol and Sexual Health",Other Small Contracts,Cadbury Heath Healthcare,2364.12, 05-Sep-2022
1421,Revenue,CAHD,"Drugs, Alcohol and Sexual Health",Other Small Contracts,Cadbury Heath Healthcare,2012.50, 05-Sep-2022
1422,Revenue,CAHD,"Drugs, Alcohol and Sexual Health",Other Small Contracts,Cadbury Heath Healthcare,3451.00, 05-Sep-2022
1423,Revenue,CAHD,South Glos Users in South Glos Homes,Permanent Nursing,Caernarvon House,43.86, 20-Sep-2022
1424,Revenue,CAHD,South - Commissioned Services,Permanent Nursing,Caernarvon House,5114.28, 20-Sep-2022
1425,Revenue,CAHD,South - Commissioned Services,Permanent Nursing,Caernarvon House,3079.88, 20-Sep-2022
1426,Revenue,CAHD,South - Commissioned Services,Fees & Charges Income - General,Caernarvon House,-1267.84, 20-Sep-2022
1427,Revenue,CAHD,South - Commissioned Services,Fees & Charges Income - General,Caernarvon House,-773.60, 20-Sep-2022
1428,Revenue,CAHD,North - Community based support,Permanent Nursing,Caernarvon House,4901.16, 20-Sep-2022
1429,Revenue,CAHD,North - Community based support,Permanent Nursing,Caernarvon House,3474.32, 20-Sep-2022
1430,Revenue,CAHD,North - Community based support,Fees & Charges Income - General,Caernarvon House,-627.80, 20-Sep-2022
1431,Revenue,CAHD,North - Community based support,Fees & Charges Income - General,Caernarvon House,-1036.92, 20-Sep-2022
1432,Revenue,CAHD,South - S117,Permanent Nursing,Caernarvon House,5114.28, 20-Sep-2022
1433,Revenue,CAHD,North - S117,Permanent Nursing,Caernarvon House,4151.84, 20-Sep-2022
1434,Revenue,CAHD,Independent Special Placements - Pre 16,Other Private Contractors,Calder House School,6825.00, 28-Sep-2022
1435,Revenue,CAHD,Independent Special Placements - Pre 16,Other Private Contractors,Calder House School,6825.00, 28-Sep-2022
1436,Revenue,CAHD,Post 16 High Needs Placements,Other Private Contractors,Cambian Whinfell School Limited,61036.08, 16-Sep-2022
1437,Revenue,CAHD,Post 16 High Needs Placements,Other Private Contractors,Cambian Whinfell School Limited,61003.20, 16-Sep-2022
1438,Revenue,CAHD,Early Years Development,External Lecturers Fees,Cambium Sustainable Landscapes & Training,777.00, 02-Sep-2022
1439,Revenue,CAHD,Central - Commissioned Services,Respite Planned - Residential,Campania Care Home,4478.57, 20-Sep-2022
1440,Revenue,CAHD,MH Purchasing - Younger,Permanent Residential,Canonbury Residential Home,3400.00, 20-Sep-2022
1441,Revenue,CAHD,CSC - OT Equipment - Children,Daily Living Equipment,Cara-sales LTD,1800.00, 02-Sep-2022
1442,Revenue,CAHD,North - Community based support,Other Small Contracts,Care 1st Homecare,16037.00, 26-Sep-2022
1443,Revenue,CAHD,Central - Commissioned Services,Other Small Contracts,Care 1st Homecare,7092.92, 01-Sep-2022
1444,Revenue,CAHD,Central - Commissioned Services,Other Small Contracts,Care 1st Homecare,12580.20, 01-Sep-2022
1445,Revenue,CAHD,North - Community based support,Other Small Contracts,Care 1st Homecare,672.60, 01-Sep-2022
1446,Revenue,CAHD,North - Community based support,Other Small Contracts,Care 1st Homecare,6961.38, 01-Sep-2022
1447,Revenue,CAHD,North - Community based support,Other Small Contracts,Care 1st Homecare,6297.31, 01-Sep-2022
1448,Revenue,CAHD,Central - Commissioned Services,Other Small Contracts,Care 1st Homecare,7398.12, 28-Sep-2022
1449,Revenue,CAHD,Central - Commissioned Services,Other Small Contracts,Care 1st Homecare,13014.00, 28-Sep-2022
1450,Revenue,CAHD,North - Community based support,Other Small Contracts,Care 1st Homecare,3051.30, 28-Sep-2022
1451,Revenue,CAHD,North - Community based support,Other Small Contracts,Care 1st Homecare,7033.60, 28-Sep-2022
1452,Revenue,CAHD,North - Community based support,Other Small Contracts,Care 1st Homecare,6242.81, 28-Sep-2022
1453,Revenue,CAHD,18-25 Year Olds,Other Small Contracts,Care Horizons,206.64, 01-Sep-2022
1454,Revenue,CAHD,Central - Commissioned Services,Other Small Contracts,Care Horizons,357.84, 01-Sep-2022
1455,Revenue,CAHD,Central - Commissioned Services,Other Small Contracts,Care Horizons,80.64, 01-Sep-2022
1456,Revenue,CAHD,Central - Commissioned Services,Other Small Contracts,Care Horizons,3290.56, 01-Sep-2022
1457,Revenue,CAHD,Central - Commissioned Services,Other Small Contracts,Care Horizons,161.28, 01-Sep-2022
1458,Revenue,CAHD,Central - Commissioned Services,Other Small Contracts,Care Horizons,201.60, 01-Sep-2022
1459,Revenue,CAHD,Central - Commissioned Services,Other Small Contracts,Care Horizons,161.28, 01-Sep-2022
1460,Revenue,CAHD,South - Commissioned Services,Other Small Contracts,Care Horizons,262.08, 01-Sep-2022
1461,Revenue,CAHD,South - Commissioned Services,Other Small Contracts,Care Horizons,120.96, 01-Sep-2022
1462,Revenue,CAHD,South - Commissioned Services,Other Small Contracts,Care Horizons,100.80, 01-Sep-2022
1463,Revenue,CAHD,North - Community based support,Other Small Contracts,Care Horizons,241.92, 01-Sep-2022
1464,Revenue,CAHD,North - Community based support,Other Small Contracts,Care Horizons,201.60, 01-Sep-2022
1465,Revenue,CAHD,North - Community based support,Other Small Contracts,Care Horizons,252.00, 01-Sep-2022
1466,Revenue,CAHD,North - Community based support,Other Small Contracts,Care Horizons,2821.28, 01-Sep-2022
1467,Revenue,CAHD,Younger MH non-res purchasing,Other Small Contracts,Care Horizons,80.64, 01-Sep-2022
1468,Revenue,CAHD,Younger MH non-res purchasing,Other Small Contracts,Care Horizons,95.76, 01-Sep-2022
1469,Revenue,CAHD,Younger MH non-res purchasing,Other Small Contracts,Care Horizons,25.20, 01-Sep-2022
1470,Revenue,CAHD,Home care - Elderly MH - North,Other Small Contracts,Care Horizons,40.32, 01-Sep-2022
1471,Revenue,CAHD,18-25 Year Olds,Other Small Contracts,Care Horizons,201.60, 01-Sep-2022
1472,Revenue,CAHD,Central - Commissioned Services,Other Small Contracts,Care Horizons,367.92, 01-Sep-2022
1473,Revenue,CAHD,Central - Commissioned Services,Other Small Contracts,Care Horizons,80.64, 01-Sep-2022
1474,Revenue,CAHD,Central - Commissioned Services,Other Small Contracts,Care Horizons,3290.56, 01-Sep-2022
1475,Revenue,CAHD,Central - Commissioned Services,Other Small Contracts,Care Horizons,110.88, 01-Sep-2022
1476,Revenue,CAHD,Central - Commissioned Services,Other Small Contracts,Care Horizons,201.60, 01-Sep-2022
1477,Revenue,CAHD,Central - Commissioned Services,Other Small Contracts,Care Horizons,166.32, 01-Sep-2022
1478,Revenue,CAHD,South - Commissioned Services,Other Small Contracts,Care Horizons,262.08, 01-Sep-2022
1479,Revenue,CAHD,South - Commissioned Services,Other Small Contracts,Care Horizons,120.96, 01-Sep-2022
1480,Revenue,CAHD,South - Commissioned Services,Other Small Contracts,Care Horizons,95.76, 01-Sep-2022
1481,Revenue,CAHD,North - Community based support,Other Small Contracts,Care Horizons,241.92, 01-Sep-2022
1482,Revenue,CAHD,North - Community based support,Other Small Contracts,Care Horizons,100.80, 01-Sep-2022
1483,Revenue,CAHD,North - Community based support,Other Small Contracts,Care Horizons,201.60, 01-Sep-2022
1484,Revenue,CAHD,North - Community based support,Other Small Contracts,Care Horizons,2806.16, 01-Sep-2022
1485,Revenue,CAHD,Younger MH non-res purchasing,Other Small Contracts,Care Horizons,80.64, 01-Sep-2022
1486,Revenue,CAHD,Younger MH non-res purchasing,Other Small Contracts,Care Horizons,100.80, 01-Sep-2022
1487,Revenue,CAHD,Younger MH non-res purchasing,Other Small Contracts,Care Horizons,-40.32, 01-Sep-2022
1488,Revenue,CAHD,Home care - Elderly MH - North,Other Small Contracts,Care Horizons,80.64, 01-Sep-2022
1489,Revenue,CAHD,18-25 Year Olds,Other Small Contracts,Care Horizons,201.60, 01-Sep-2022
1490,Revenue,CAHD,Central - Commissioned Services,Other Small Contracts,Care Horizons,362.88, 01-Sep-2022
1491,Revenue,CAHD,Central - Commissioned Services,Other Small Contracts,Care Horizons,80.64, 01-Sep-2022
1492,Revenue,CAHD,Central - Commissioned Services,Other Small Contracts,Care Horizons,3290.56, 01-Sep-2022
1493,Revenue,CAHD,Central - Commissioned Services,Other Small Contracts,Care Horizons,161.28, 01-Sep-2022
1494,Revenue,CAHD,Central - Commissioned Services,Other Small Contracts,Care Horizons,191.52, 01-Sep-2022
1495,Revenue,CAHD,Central - Commissioned Services,Other Small Contracts,Care Horizons,161.28, 01-Sep-2022
1496,Revenue,CAHD,South - Commissioned Services,Other Small Contracts,Care Horizons,262.08, 01-Sep-2022
1497,Revenue,CAHD,South - Commissioned Services,Other Small Contracts,Care Horizons,60.48, 01-Sep-2022
1498,Revenue,CAHD,South - Commissioned Services,Other Small Contracts,Care Horizons,100.80, 01-Sep-2022
1499,Revenue,CAHD,North - Community based support,Other Small Contracts,Care Horizons,241.92, 01-Sep-2022
1500,Revenue,CAHD,North - Community based support,Other Small Contracts,Care Horizons,201.60, 01-Sep-2022
1501,Revenue,CAHD,North - Community based support,Other Small Contracts,Care Horizons,201.60, 01-Sep-2022
1502,Revenue,CAHD,North - Community based support,Other Small Contracts,Care Horizons,2821.28, 01-Sep-2022
1503,Revenue,CAHD,Younger MH non-res purchasing,Other Small Contracts,Care Horizons,95.76, 01-Sep-2022
1504,Revenue,CAHD,Younger MH non-res purchasing,Other Small Contracts,Care Horizons,110.88, 01-Sep-2022
1505,Revenue,CAHD,Younger MH non-res purchasing,Other Small Contracts,Care Horizons,45.36, 01-Sep-2022
1506,Revenue,CAHD,Home care - Elderly MH - North,Other Small Contracts,Care Horizons,40.32, 01-Sep-2022
1507,Revenue,CAHD,18-25 Year Olds,Other Small Contracts,Care Horizons,206.64, 01-Sep-2022
1508,Revenue,CAHD,Central - Commissioned Services,Other Small Contracts,Care Horizons,367.92, 01-Sep-2022
1509,Revenue,CAHD,Central - Commissioned Services,Other Small Contracts,Care Horizons,80.64, 01-Sep-2022
1510,Revenue,CAHD,Central - Commissioned Services,Other Small Contracts,Care Horizons,3290.56, 01-Sep-2022
1511,Revenue,CAHD,Central - Commissioned Services,Other Small Contracts,Care Horizons,161.28, 01-Sep-2022
1512,Revenue,CAHD,Central - Commissioned Services,Other Small Contracts,Care Horizons,161.28, 01-Sep-2022
1513,Revenue,CAHD,Central - Commissioned Services,Other Small Contracts,Care Horizons,161.28, 01-Sep-2022
1514,Revenue,CAHD,South - Commissioned Services,Other Small Contracts,Care Horizons,262.08, 01-Sep-2022
1515,Revenue,CAHD,South - Commissioned Services,Other Small Contracts,Care Horizons,60.48, 01-Sep-2022
1516,Revenue,CAHD,South - Commissioned Services,Other Small Contracts,Care Horizons,100.80, 01-Sep-2022
1517,Revenue,CAHD,North - Community based support,Other Small Contracts,Care Horizons,241.92, 01-Sep-2022
1518,Revenue,CAHD,North - Community based support,Other Small Contracts,Care Horizons,201.60, 01-Sep-2022
1519,Revenue,CAHD,North - Community based support,Other Small Contracts,Care Horizons,201.60, 01-Sep-2022
1520,Revenue,CAHD,North - Community based support,Other Small Contracts,Care Horizons,2737.20, 01-Sep-2022
1521,Revenue,CAHD,Younger MH non-res purchasing,Other Small Contracts,Care Horizons,80.64, 01-Sep-2022
1522,Revenue,CAHD,Younger MH non-res purchasing,Other Small Contracts,Care Horizons,40.32, 01-Sep-2022
1523,Revenue,CAHD,Home care - Elderly MH - North,Other Small Contracts,Care Horizons,40.32, 01-Sep-2022
1524,Revenue,CAHD,18-25 Year Olds,Other Small Contracts,Care Horizons,201.60, 01-Sep-2022
1525,Revenue,CAHD,Central - Commissioned Services,Other Small Contracts,Care Horizons,362.88, 01-Sep-2022
1526,Revenue,CAHD,Central - Commissioned Services,Other Small Contracts,Care Horizons,80.64, 01-Sep-2022
1527,Revenue,CAHD,Central - Commissioned Services,Other Small Contracts,Care Horizons,3290.56, 01-Sep-2022
1528,Revenue,CAHD,Central - Commissioned Services,Other Small Contracts,Care Horizons,161.28, 01-Sep-2022
1529,Revenue,CAHD,Central - Commissioned Services,Other Small Contracts,Care Horizons,80.64, 01-Sep-2022
1530,Revenue,CAHD,Central - Commissioned Services,Other Small Contracts,Care Horizons,161.28, 01-Sep-2022
1531,Revenue,CAHD,South - Commissioned Services,Other Small Contracts,Care Horizons,262.08, 01-Sep-2022
1532,Revenue,CAHD,South - Commissioned Services,Other Small Contracts,Care Horizons,60.48, 01-Sep-2022
1533,Revenue,CAHD,South - Commissioned Services,Other Small Contracts,Care Horizons,100.80, 01-Sep-2022
1534,Revenue,CAHD,North - Community based support,Other Small Contracts,Care Horizons,241.92, 01-Sep-2022
1535,Revenue,CAHD,North - Community based support,Other Small Contracts,Care Horizons,201.60, 01-Sep-2022
1536,Revenue,CAHD,North - Community based support,Other Small Contracts,Care Horizons,282.24, 01-Sep-2022
1537,Revenue,CAHD,North - Community based support,Other Small Contracts,Care Horizons,2811.20, 01-Sep-2022
1538,Revenue,CAHD,Younger MH non-res purchasing,Other Small Contracts,Care Horizons,80.64, 01-Sep-2022
1539,Revenue,CAHD,Younger MH non-res purchasing,Other Small Contracts,Care Horizons,100.80, 01-Sep-2022
1540,Revenue,CAHD,Younger MH non-res purchasing,Other Small Contracts,Care Horizons,35.28, 01-Sep-2022
1541,Revenue,CAHD,Home care - Elderly MH - North,Other Small Contracts,Care Horizons,40.32, 01-Sep-2022
1542,Revenue,CAHD,18-25 Year Olds,Other Small Contracts,Care Horizons,196.56, 01-Sep-2022
1543,Revenue,CAHD,Central - Commissioned Services,Other Small Contracts,Care Horizons,362.88, 01-Sep-2022
1544,Revenue,CAHD,Central - Commissioned Services,Other Small Contracts,Care Horizons,80.64, 01-Sep-2022
1545,Revenue,CAHD,Central - Commissioned Services,Other Small Contracts,Care Horizons,3290.56, 01-Sep-2022
1546,Revenue,CAHD,Central - Commissioned Services,Other Small Contracts,Care Horizons,161.28, 01-Sep-2022
1547,Revenue,CAHD,Central - Commissioned Services,Other Small Contracts,Care Horizons,201.60, 01-Sep-2022
1548,Revenue,CAHD,Central - Commissioned Services,Other Small Contracts,Care Horizons,156.24, 01-Sep-2022
1549,Revenue,CAHD,South - Commissioned Services,Other Small Contracts,Care Horizons,262.08, 01-Sep-2022
1550,Revenue,CAHD,South - Commissioned Services,Other Small Contracts,Care Horizons,60.48, 01-Sep-2022
1551,Revenue,CAHD,South - Commissioned Services,Other Small Contracts,Care Horizons,100.80, 01-Sep-2022
1552,Revenue,CAHD,North - Community based support,Other Small Contracts,Care Horizons,236.88, 01-Sep-2022
1553,Revenue,CAHD,North - Community based support,Other Small Contracts,Care Horizons,201.60, 01-Sep-2022
1554,Revenue,CAHD,North - Community based support,Other Small Contracts,Care Horizons,322.56, 01-Sep-2022
1555,Revenue,CAHD,North - Community based support,Other Small Contracts,Care Horizons,2811.20, 01-Sep-2022
1556,Revenue,CAHD,Younger MH non-res purchasing,Other Small Contracts,Care Horizons,75.60, 01-Sep-2022
1557,Revenue,CAHD,Younger MH non-res purchasing,Other Small Contracts,Care Horizons,100.80, 01-Sep-2022
1558,Revenue,CAHD,Younger MH non-res purchasing,Other Small Contracts,Care Horizons,40.32, 01-Sep-2022
1559,Revenue,CAHD,Home care - Elderly MH - North,Other Small Contracts,Care Horizons,40.32, 01-Sep-2022
1560,Revenue,CAHD,18-25 Year Olds,Other Small Contracts,Care Horizons,201.60, 01-Sep-2022
1561,Revenue,CAHD,Central - Commissioned Services,Other Small Contracts,Care Horizons,362.88, 01-Sep-2022
1562,Revenue,CAHD,Central - Commissioned Services,Other Small Contracts,Care Horizons,80.64, 01-Sep-2022
1563,Revenue,CAHD,Central - Commissioned Services,Other Small Contracts,Care Horizons,3290.56, 01-Sep-2022
1564,Revenue,CAHD,Central - Commissioned Services,Other Small Contracts,Care Horizons,161.28, 01-Sep-2022
1565,Revenue,CAHD,Central - Commissioned Services,Other Small Contracts,Care Horizons,80.64, 01-Sep-2022
1566,Revenue,CAHD,Central - Commissioned Services,Other Small Contracts,Care Horizons,161.28, 01-Sep-2022
1567,Revenue,CAHD,South - Commissioned Services,Other Small Contracts,Care Horizons,262.08, 01-Sep-2022
1568,Revenue,CAHD,South - Commissioned Services,Other Small Contracts,Care Horizons,60.48, 01-Sep-2022
1569,Revenue,CAHD,South - Commissioned Services,Other Small Contracts,Care Horizons,100.80, 01-Sep-2022
1570,Revenue,CAHD,North - Community based support,Other Small Contracts,Care Horizons,241.92, 01-Sep-2022
1571,Revenue,CAHD,North - Community based support,Other Small Contracts,Care Horizons,191.52, 01-Sep-2022
1572,Revenue,CAHD,North - Community based support,Other Small Contracts,Care Horizons,272.16, 01-Sep-2022
1573,Revenue,CAHD,North - Community based support,Other Small Contracts,Care Horizons,2811.20, 01-Sep-2022
1574,Revenue,CAHD,Younger MH non-res purchasing,Other Small Contracts,Care Horizons,80.64, 01-Sep-2022
1575,Revenue,CAHD,Younger MH non-res purchasing,Other Small Contracts,Care Horizons,100.80, 01-Sep-2022
1576,Revenue,CAHD,Younger MH non-res purchasing,Other Small Contracts,Care Horizons,40.32, 01-Sep-2022
1577,Revenue,CAHD,Home care - Elderly MH - North,Other Small Contracts,Care Horizons,40.32, 01-Sep-2022
1578,Revenue,CAHD,18-25 Year Olds,Other Small Contracts,Care Horizons,201.60, 01-Sep-2022
1579,Revenue,CAHD,Central - Commissioned Services,Other Small Contracts,Care Horizons,362.88, 01-Sep-2022
1580,Revenue,CAHD,Central - Commissioned Services,Other Small Contracts,Care Horizons,80.64, 01-Sep-2022
1581,Revenue,CAHD,Central - Commissioned Services,Other Small Contracts,Care Horizons,3290.56, 01-Sep-2022
1582,Revenue,CAHD,Central - Commissioned Services,Other Small Contracts,Care Horizons,161.28, 01-Sep-2022
1583,Revenue,CAHD,Central - Commissioned Services,Other Small Contracts,Care Horizons,80.64, 01-Sep-2022
1584,Revenue,CAHD,Central - Commissioned Services,Other Small Contracts,Care Horizons,161.28, 01-Sep-2022
1585,Revenue,CAHD,South - Commissioned Services,Other Small Contracts,Care Horizons,262.08, 01-Sep-2022
1586,Revenue,CAHD,South - Commissioned Services,Other Small Contracts,Care Horizons,60.48, 01-Sep-2022
1587,Revenue,CAHD,South - Commissioned Services,Other Small Contracts,Care Horizons,100.80, 01-Sep-2022
1588,Revenue,CAHD,North - Community based support,Other Small Contracts,Care Horizons,241.92, 01-Sep-2022
1589,Revenue,CAHD,North - Community based support,Other Small Contracts,Care Horizons,201.60, 01-Sep-2022
1590,Revenue,CAHD,North - Community based support,Other Small Contracts,Care Horizons,302.40, 01-Sep-2022
1591,Revenue,CAHD,North - Community based support,Other Small Contracts,Care Horizons,2811.20, 01-Sep-2022
1592,Revenue,CAHD,Younger MH non-res purchasing,Other Small Contracts,Care Horizons,80.64, 01-Sep-2022
1593,Revenue,CAHD,Younger MH non-res purchasing,Other Small Contracts,Care Horizons,100.80, 01-Sep-2022
1594,Revenue,CAHD,Younger MH non-res purchasing,Other Small Contracts,Care Horizons,40.32, 01-Sep-2022
1595,Revenue,CAHD,Home care - Elderly MH - North,Other Small Contracts,Care Horizons,40.32, 01-Sep-2022
1596,Revenue,CAHD,18-25 Year Olds,Other Small Contracts,Care Horizons,196.56, 01-Sep-2022
1597,Revenue,CAHD,Central - Commissioned Services,Other Small Contracts,Care Horizons,362.88, 01-Sep-2022
1598,Revenue,CAHD,Central - Commissioned Services,Other Small Contracts,Care Horizons,80.64, 01-Sep-2022
1599,Revenue,CAHD,Central - Commissioned Services,Other Small Contracts,Care Horizons,3290.56, 01-Sep-2022
1600,Revenue,CAHD,Central - Commissioned Services,Other Small Contracts,Care Horizons,161.28, 01-Sep-2022
1601,Revenue,CAHD,Central - Commissioned Services,Other Small Contracts,Care Horizons,80.64, 01-Sep-2022
1602,Revenue,CAHD,Central - Commissioned Services,Other Small Contracts,Care Horizons,161.28, 01-Sep-2022
1603,Revenue,CAHD,South - Commissioned Services,Other Small Contracts,Care Horizons,312.48, 01-Sep-2022
1604,Revenue,CAHD,South - Commissioned Services,Other Small Contracts,Care Horizons,60.48, 01-Sep-2022
1605,Revenue,CAHD,South - Commissioned Services,Other Small Contracts,Care Horizons,100.80, 01-Sep-2022
1606,Revenue,CAHD,North - Community based support,Other Small Contracts,Care Horizons,241.92, 01-Sep-2022
1607,Revenue,CAHD,North - Community based support,Other Small Contracts,Care Horizons,201.60, 01-Sep-2022
1608,Revenue,CAHD,North - Community based support,Other Small Contracts,Care Horizons,282.24, 01-Sep-2022
1609,Revenue,CAHD,North - Community based support,Other Small Contracts,Care Horizons,2742.24, 01-Sep-2022
1610,Revenue,CAHD,Younger MH non-res purchasing,Other Small Contracts,Care Horizons,80.64, 01-Sep-2022
1611,Revenue,CAHD,Younger MH non-res purchasing,Other Small Contracts,Care Horizons,100.80, 01-Sep-2022
1612,Revenue,CAHD,Younger MH non-res purchasing,Other Small Contracts,Care Horizons,45.36, 01-Sep-2022
1613,Revenue,CAHD,Home care - Elderly MH - North,Other Small Contracts,Care Horizons,40.32, 01-Sep-2022
1614,Revenue,CAHD,18-25 Year Olds,Other Small Contracts,Care Horizons,206.64, 01-Sep-2022
1615,Revenue,CAHD,Central - Commissioned Services,Other Small Contracts,Care Horizons,362.88, 01-Sep-2022
1616,Revenue,CAHD,Central - Commissioned Services,Other Small Contracts,Care Horizons,80.64, 01-Sep-2022
1617,Revenue,CAHD,Central - Commissioned Services,Other Small Contracts,Care Horizons,3290.56, 01-Sep-2022
1618,Revenue,CAHD,Central - Commissioned Services,Other Small Contracts,Care Horizons,161.28, 01-Sep-2022
1619,Revenue,CAHD,Central - Commissioned Services,Other Small Contracts,Care Horizons,80.64, 01-Sep-2022
1620,Revenue,CAHD,Central - Commissioned Services,Other Small Contracts,Care Horizons,161.28, 01-Sep-2022
1621,Revenue,CAHD,South - Commissioned Services,Other Small Contracts,Care Horizons,302.40, 01-Sep-2022
1622,Revenue,CAHD,South - Commissioned Services,Other Small Contracts,Care Horizons,60.48, 01-Sep-2022
1623,Revenue,CAHD,South - Commissioned Services,Other Small Contracts,Care Horizons,100.80, 01-Sep-2022
1624,Revenue,CAHD,North - Community based support,Other Small Contracts,Care Horizons,236.88, 01-Sep-2022
1625,Revenue,CAHD,North - Community based support,Other Small Contracts,Care Horizons,201.60, 01-Sep-2022
1626,Revenue,CAHD,North - Community based support,Other Small Contracts,Care Horizons,302.40, 01-Sep-2022
1627,Revenue,CAHD,North - Community based support,Other Small Contracts,Care Horizons,2831.66, 01-Sep-2022
1628,Revenue,CAHD,Younger MH non-res purchasing,Other Small Contracts,Care Horizons,80.64, 01-Sep-2022
1629,Revenue,CAHD,Younger MH non-res purchasing,Other Small Contracts,Care Horizons,100.80, 01-Sep-2022
1630,Revenue,CAHD,Younger MH non-res purchasing,Other Small Contracts,Care Horizons,35.28, 01-Sep-2022
1631,Revenue,CAHD,Home care - Elderly MH - North,Other Small Contracts,Care Horizons,40.32, 01-Sep-2022
1632,Revenue,CAHD,18-25 Year Olds,Other Small Contracts,Care Horizons,201.60, 01-Sep-2022
1633,Revenue,CAHD,Central - Commissioned Services,Other Small Contracts,Care Horizons,362.88, 01-Sep-2022
1634,Revenue,CAHD,Central - Commissioned Services,Other Small Contracts,Care Horizons,80.64, 01-Sep-2022
1635,Revenue,CAHD,Central - Commissioned Services,Other Small Contracts,Care Horizons,3482.08, 01-Sep-2022
1636,Revenue,CAHD,Central - Commissioned Services,Other Small Contracts,Care Horizons,161.28, 01-Sep-2022
1637,Revenue,CAHD,Central - Commissioned Services,Other Small Contracts,Care Horizons,80.64, 01-Sep-2022
1638,Revenue,CAHD,Central - Commissioned Services,Other Small Contracts,Care Horizons,161.28, 01-Sep-2022
1639,Revenue,CAHD,South - Commissioned Services,Other Small Contracts,Care Horizons,262.08, 01-Sep-2022
1640,Revenue,CAHD,South - Commissioned Services,Other Small Contracts,Care Horizons,60.48, 01-Sep-2022
1641,Revenue,CAHD,South - Commissioned Services,Other Small Contracts,Care Horizons,100.80, 01-Sep-2022
1642,Revenue,CAHD,North - Community based support,Other Small Contracts,Care Horizons,241.92, 01-Sep-2022
1643,Revenue,CAHD,North - Community based support,Other Small Contracts,Care Horizons,201.60, 01-Sep-2022
1644,Revenue,CAHD,North - Community based support,Other Small Contracts,Care Horizons,262.08, 01-Sep-2022
1645,Revenue,CAHD,North - Community based support,Other Small Contracts,Care Horizons,2747.58, 01-Sep-2022
1646,Revenue,CAHD,Younger MH non-res purchasing,Other Small Contracts,Care Horizons,85.68, 01-Sep-2022
1647,Revenue,CAHD,Younger MH non-res purchasing,Other Small Contracts,Care Horizons,100.80, 01-Sep-2022
1648,Revenue,CAHD,Younger MH non-res purchasing,Other Small Contracts,Care Horizons,40.32, 01-Sep-2022
1649,Revenue,CAHD,Home care - Elderly MH - North,Other Small Contracts,Care Horizons,40.32, 01-Sep-2022
1650,Revenue,CAHD,18-25 Year Olds,Other Small Contracts,Care Horizons,213.60, 01-Sep-2022
1651,Revenue,CAHD,Central - Commissioned Services,Other Small Contracts,Care Horizons,384.48, 01-Sep-2022
1652,Revenue,CAHD,Central - Commissioned Services,Other Small Contracts,Care Horizons,85.44, 01-Sep-2022
1653,Revenue,CAHD,Central - Commissioned Services,Other Small Contracts,Care Horizons,3498.36, 01-Sep-2022
1654,Revenue,CAHD,Central - Commissioned Services,Other Small Contracts,Care Horizons,170.88, 01-Sep-2022
1655,Revenue,CAHD,Central - Commissioned Services,Other Small Contracts,Care Horizons,85.44, 01-Sep-2022
1656,Revenue,CAHD,Central - Commissioned Services,Other Small Contracts,Care Horizons,170.88, 01-Sep-2022
1657,Revenue,CAHD,South - Commissioned Services,Other Small Contracts,Care Horizons,373.80, 01-Sep-2022
1658,Revenue,CAHD,South - Commissioned Services,Other Small Contracts,Care Horizons,106.80, 01-Sep-2022
1659,Revenue,CAHD,North - Community based support,Other Small Contracts,Care Horizons,256.32, 01-Sep-2022
1660,Revenue,CAHD,North - Community based support,Other Small Contracts,Care Horizons,213.60, 01-Sep-2022
1661,Revenue,CAHD,North - Community based support,Other Small Contracts,Care Horizons,299.04, 01-Sep-2022
1662,Revenue,CAHD,North - Community based support,Other Small Contracts,Care Horizons,2979.20, 01-Sep-2022
1663,Revenue,CAHD,Younger MH non-res purchasing,Other Small Contracts,Care Horizons,85.44, 01-Sep-2022
1664,Revenue,CAHD,Younger MH non-res purchasing,Other Small Contracts,Care Horizons,106.80, 01-Sep-2022
1665,Revenue,CAHD,Younger MH non-res purchasing,Other Small Contracts,Care Horizons,-10.68, 01-Sep-2022
1666,Revenue,CAHD,Home care - Elderly MH - North,Other Small Contracts,Care Horizons,106.80, 01-Sep-2022
1667,Revenue,CAHD,18-25 Year Olds,Other Small Contracts,Care Horizons,213.60, 01-Sep-2022
1668,Revenue,CAHD,Central - Commissioned Services,Other Small Contracts,Care Horizons,384.48, 01-Sep-2022
1669,Revenue,CAHD,Central - Commissioned Services,Other Small Contracts,Care Horizons,85.44, 01-Sep-2022
1670,Revenue,CAHD,Central - Commissioned Services,Other Small Contracts,Care Horizons,3498.36, 01-Sep-2022
1671,Revenue,CAHD,Central - Commissioned Services,Other Small Contracts,Care Horizons,170.88, 01-Sep-2022
1672,Revenue,CAHD,Central - Commissioned Services,Other Small Contracts,Care Horizons,85.44, 01-Sep-2022
1673,Revenue,CAHD,Central - Commissioned Services,Other Small Contracts,Care Horizons,170.88, 01-Sep-2022
1674,Revenue,CAHD,South - Commissioned Services,Other Small Contracts,Care Horizons,277.68, 01-Sep-2022
1675,Revenue,CAHD,South - Commissioned Services,Other Small Contracts,Care Horizons,64.08, 01-Sep-2022
1676,Revenue,CAHD,South - Commissioned Services,Other Small Contracts,Care Horizons,106.80, 01-Sep-2022
1677,Revenue,CAHD,North - Community based support,Other Small Contracts,Care Horizons,256.32, 01-Sep-2022
1678,Revenue,CAHD,North - Community based support,Other Small Contracts,Care Horizons,208.26, 01-Sep-2022
1679,Revenue,CAHD,North - Community based support,Other Small Contracts,Care Horizons,299.04, 01-Sep-2022
1680,Revenue,CAHD,North - Community based support,Other Small Contracts,Care Horizons,2979.20, 01-Sep-2022
1681,Revenue,CAHD,Younger MH non-res purchasing,Other Small Contracts,Care Horizons,85.44, 01-Sep-2022
1682,Revenue,CAHD,Younger MH non-res purchasing,Other Small Contracts,Care Horizons,133.50, 01-Sep-2022
1683,Revenue,CAHD,Younger MH non-res purchasing,Other Small Contracts,Care Horizons,37.38, 01-Sep-2022
1684,Revenue,CAHD,Home care - Elderly MH - North,Other Small Contracts,Care Horizons,42.72, 01-Sep-2022
1685,Revenue,CAHD,18-25 Year Olds,Other Small Contracts,Care Horizons,218.94, 01-Sep-2022
1686,Revenue,CAHD,Central - Commissioned Services,Other Small Contracts,Care Horizons,384.48, 01-Sep-2022
1687,Revenue,CAHD,Central - Commissioned Services,Other Small Contracts,Care Horizons,85.44, 01-Sep-2022
1688,Revenue,CAHD,Central - Commissioned Services,Other Small Contracts,Care Horizons,3498.36, 01-Sep-2022
1689,Revenue,CAHD,Central - Commissioned Services,Other Small Contracts,Care Horizons,170.88, 01-Sep-2022
1690,Revenue,CAHD,Central - Commissioned Services,Other Small Contracts,Care Horizons,85.44, 01-Sep-2022
1691,Revenue,CAHD,Central - Commissioned Services,Other Small Contracts,Care Horizons,170.88, 01-Sep-2022
1692,Revenue,CAHD,South - Commissioned Services,Other Small Contracts,Care Horizons,448.56, 01-Sep-2022
1693,Revenue,CAHD,South - Commissioned Services,Other Small Contracts,Care Horizons,106.80, 01-Sep-2022
1694,Revenue,CAHD,North - Community based support,Other Small Contracts,Care Horizons,250.98, 01-Sep-2022
1695,Revenue,CAHD,North - Community based support,Other Small Contracts,Care Horizons,208.26, 01-Sep-2022
1696,Revenue,CAHD,North - Community based support,Other Small Contracts,Care Horizons,299.04, 01-Sep-2022
1697,Revenue,CAHD,North - Community based support,Other Small Contracts,Care Horizons,2979.20, 01-Sep-2022
1698,Revenue,CAHD,Younger MH non-res purchasing,Other Small Contracts,Care Horizons,90.78, 01-Sep-2022
1699,Revenue,CAHD,Younger MH non-res purchasing,Other Small Contracts,Care Horizons,106.80, 01-Sep-2022
1700,Revenue,CAHD,Younger MH non-res purchasing,Other Small Contracts,Care Horizons,42.72, 01-Sep-2022
1701,Revenue,CAHD,Home care - Elderly MH - North,Other Small Contracts,Care Horizons,42.72, 01-Sep-2022
1702,Revenue,CAHD,18-25 Year Olds,Other Small Contracts,Care Horizons,1612.68, 01-Sep-2022
1703,Revenue,CAHD,Central - Commissioned Services,Other Small Contracts,Care Horizons,3844.80, 01-Sep-2022
1704,Revenue,CAHD,Central - Commissioned Services,Other Small Contracts,Care Horizons,768.96, 01-Sep-2022
1705,Revenue,CAHD,Central - Commissioned Services,Other Small Contracts,Care Horizons,34876.80, 01-Sep-2022
1706,Revenue,CAHD,Central - Commissioned Services,Other Small Contracts,Care Horizons,1708.80, 01-Sep-2022
1707,Revenue,CAHD,Central - Commissioned Services,Other Small Contracts,Care Horizons,897.12, 01-Sep-2022
1708,Revenue,CAHD,Central - Commissioned Services,Other Small Contracts,Care Horizons,1708.80, 01-Sep-2022
1709,Revenue,CAHD,Central - Commissioned Services,Other Small Contracts,Care Horizons,950.52, 01-Sep-2022
1710,Revenue,CAHD,South - Commissioned Services,Other Small Contracts,Care Horizons,3540.42, 01-Sep-2022
1711,Revenue,CAHD,South - Commissioned Services,Other Small Contracts,Care Horizons,2456.40, 01-Sep-2022
1712,Revenue,CAHD,South - Commissioned Services,Other Small Contracts,Care Horizons,1062.66, 01-Sep-2022
1713,Revenue,CAHD,North - Community based support,Other Small Contracts,Care Horizons,2536.50, 01-Sep-2022
1714,Revenue,CAHD,North - Community based support,Other Small Contracts,Care Horizons,2136.00, 01-Sep-2022
1715,Revenue,CAHD,North - Community based support,Other Small Contracts,Care Horizons,3129.24, 01-Sep-2022
1716,Revenue,CAHD,North - Community based support,Other Small Contracts,Care Horizons,29751.68, 01-Sep-2022
1717,Revenue,CAHD,North - S117,Other Small Contracts,Care Horizons,-42.72, 01-Sep-2022
1718,Revenue,CAHD,Younger MH non-res purchasing,Other Small Contracts,Care Horizons,421.86, 01-Sep-2022
1719,Revenue,CAHD,Younger MH non-res purchasing,Other Small Contracts,Care Horizons,1084.02, 01-Sep-2022
1720,Revenue,CAHD,Younger MH non-res purchasing,Other Small Contracts,Care Horizons,603.42, 01-Sep-2022
1721,Revenue,CAHD,Home care - Elderly MH - North,Other Small Contracts,Care Horizons,512.64, 01-Sep-2022
1722,Revenue,CAHD,North - Community based support,Respite Care,Care Horizons,0.00, 20-Sep-2022
1723,Revenue,CAHD,North - Community based support,Respite Care,Care Horizons,0.00, 20-Sep-2022
1724,Revenue,CAHD,North - Community based support,Supported Living,Care Horizons,5727.08, 20-Sep-2022
1725,Revenue,CAHD,North - Community based support,Supported Living,Care Horizons,5727.08, 20-Sep-2022
1726,Revenue,CAHD,Central - Commissioned Services,Other Small Contracts,Care Horizons,384.48, 01-Sep-2022
1727,Revenue,CAHD,Central - Commissioned Services,Other Small Contracts,Care Horizons,149.52, 01-Sep-2022
1728,Revenue,CAHD,Central - Commissioned Services,Other Small Contracts,Care Horizons,85.44, 01-Sep-2022
1729,Revenue,CAHD,Central - Commissioned Services,Other Small Contracts,Care Horizons,3487.68, 01-Sep-2022
1730,Revenue,CAHD,Central - Commissioned Services,Other Small Contracts,Care Horizons,64.08, 01-Sep-2022
1731,Revenue,CAHD,Central - Commissioned Services,Other Small Contracts,Care Horizons,170.88, 01-Sep-2022
1732,Revenue,CAHD,Central - Commissioned Services,Other Small Contracts,Care Horizons,85.44, 01-Sep-2022
1733,Revenue,CAHD,Central - Commissioned Services,Other Small Contracts,Care Horizons,170.88, 01-Sep-2022
1734,Revenue,CAHD,Central - Commissioned Services,Other Small Contracts,Care Horizons,85.44, 01-Sep-2022
1735,Revenue,CAHD,Central - Commissioned Services,Mentoring,Care Horizons,64.08, 01-Sep-2022
1736,Revenue,CAHD,South - Commissioned Services,Other Small Contracts,Care Horizons,405.84, 01-Sep-2022
1737,Revenue,CAHD,South - Commissioned Services,Other Small Contracts,Care Horizons,106.80, 01-Sep-2022
1738,Revenue,CAHD,South - Commissioned Services,Mentoring,Care Horizons,85.44, 01-Sep-2022
1739,Revenue,CAHD,North - Community based support,Other Small Contracts,Care Horizons,250.98, 01-Sep-2022
1740,Revenue,CAHD,North - Community based support,Other Small Contracts,Care Horizons,213.60, 01-Sep-2022
1741,Revenue,CAHD,North - Community based support,Other Small Contracts,Care Horizons,320.40, 01-Sep-2022
1742,Revenue,CAHD,North - Community based support,Other Small Contracts,Care Horizons,2979.20, 01-Sep-2022
1743,Revenue,CAHD,North - S117,Other Small Contracts,Care Horizons,0.00, 01-Sep-2022
1744,Revenue,CAHD,Younger MH non-res purchasing,Other Small Contracts,Care Horizons,128.16, 01-Sep-2022
1745,Revenue,CAHD,Central - Commissioned Services,Other Small Contracts,Care Horizons,1153.44, 01-Sep-2022
1746,Revenue,CAHD,Central - Commissioned Services,Other Small Contracts,Care Horizons,448.56, 01-Sep-2022
1747,Revenue,CAHD,Central - Commissioned Services,Other Small Contracts,Care Horizons,256.32, 01-Sep-2022
1748,Revenue,CAHD,Central - Commissioned Services,Other Small Contracts,Care Horizons,10473.72, 01-Sep-2022
1749,Revenue,CAHD,Central - Commissioned Services,Other Small Contracts,Care Horizons,512.64, 01-Sep-2022
1750,Revenue,CAHD,Central - Commissioned Services,Other Small Contracts,Care Horizons,256.32, 01-Sep-2022
1751,Revenue,CAHD,Central - Commissioned Services,Other Small Contracts,Care Horizons,512.64, 01-Sep-2022
1752,Revenue,CAHD,Central - Commissioned Services,Other Small Contracts,Care Horizons,256.32, 01-Sep-2022
1753,Revenue,CAHD,Central - Commissioned Services,Mentoring,Care Horizons,384.48, 01-Sep-2022
1754,Revenue,CAHD,South - Commissioned Services,Other Small Contracts,Care Horizons,1089.36, 01-Sep-2022
1755,Revenue,CAHD,South - Commissioned Services,Other Small Contracts,Care Horizons,320.40, 01-Sep-2022
1756,Revenue,CAHD,South - Commissioned Services,Mentoring,Care Horizons,256.32, 01-Sep-2022
1757,Revenue,CAHD,North - Community based support,Other Small Contracts,Care Horizons,768.96, 01-Sep-2022
1758,Revenue,CAHD,North - Community based support,Other Small Contracts,Care Horizons,635.46, 01-Sep-2022
1759,Revenue,CAHD,North - Community based support,Other Small Contracts,Care Horizons,961.20, 01-Sep-2022
1760,Revenue,CAHD,North - Community based support,Other Small Contracts,Care Horizons,8956.64, 01-Sep-2022
1761,Revenue,CAHD,North - S117,Other Small Contracts,Care Horizons,-21.36, 01-Sep-2022
1762,Revenue,CAHD,Younger MH non-res purchasing,Other Small Contracts,Care Horizons,320.40, 01-Sep-2022
1763,Revenue,CAHD,Younger MH non-res purchasing,Other Small Contracts,Care Horizons,469.92, 01-Sep-2022
1764,Revenue,CAHD,Central - Commissioned Services,Other Small Contracts,Care Horizons,1153.44, 28-Sep-2022
1765,Revenue,CAHD,Central - Commissioned Services,Other Small Contracts,Care Horizons,448.56, 28-Sep-2022
1766,Revenue,CAHD,Central - Commissioned Services,Other Small Contracts,Care Horizons,256.32, 28-Sep-2022
1767,Revenue,CAHD,Central - Commissioned Services,Other Small Contracts,Care Horizons,10481.64, 28-Sep-2022
1768,Revenue,CAHD,Central - Commissioned Services,Other Small Contracts,Care Horizons,512.64, 28-Sep-2022
1769,Revenue,CAHD,Central - Commissioned Services,Other Small Contracts,Care Horizons,256.32, 28-Sep-2022
1770,Revenue,CAHD,Central - Commissioned Services,Other Small Contracts,Care Horizons,512.64, 28-Sep-2022
1771,Revenue,CAHD,Central - Commissioned Services,Other Small Contracts,Care Horizons,256.32, 28-Sep-2022
1772,Revenue,CAHD,Central - Commissioned Services,Mentoring,Care Horizons,384.48, 28-Sep-2022
1773,Revenue,CAHD,South - Commissioned Services,Other Small Contracts,Care Horizons,1196.16, 28-Sep-2022
1774,Revenue,CAHD,South - Commissioned Services,Other Small Contracts,Care Horizons,320.40, 28-Sep-2022
1775,Revenue,CAHD,South - Commissioned Services,Mentoring,Care Horizons,170.88, 28-Sep-2022
